Workbook

Sheet Data Summary
A1: Report Name
A2: Table 1 : SEBI Registered Market Intermediaries/Market Infrastructure Institutions
A3: Table 2 : Company-wise Capital Raised through Public and Rights Issues (Equity) during the month
A4: Table 3 : Open Offers Closed under SAST Regulations (during the month)
A5: Table 4 : Substantial Acquisition of Shares and Takeovers
A6: Table 5 : Capital Raised from the Primary Market through Public and Rights Issues
A7: Table 6 : Issues Listed on SME Platform
A8: Table 7 : Industry-wise Classification of Capital Raised through Public and Rights Issues (Equity)
A9: Table 8 : Sector-wise and Region-wise Distribution of Capital Mobilised through Public and Rights Issues (Equity)
A10: Table 9 : Size-wise Classification of Capital Raised through Public and Rights Issues (Equity)
A11: Table 10 : Capital Raised by Listed Companies from the Primary Market through QIPs
A12: Table 11 : Preferential Allotments Listed at Stock Exchanges
A13: Table 12 : Private Placement of Corporate Debt Reported to Stock Exchanges
A14: Table 13 : Trading in the Corporate Debt Market
A15: Table 14 : Ratings Assigned for Long-term Corporate Debt Securities (Maturity ≥ 1 year)
A16: Table 15 : Review of Accepted Ratings of Corporate Debt Securities (Maturity ≥ 1 year)
A17: Table 16 : Distribution of Turnover on Cash Segments of Stock Exchanges (₹crore)
A18: Table 17 : Trends in Cash Segment of BSE
A19: Table 18 : Trends in Cash Segment of NSE
A20: Table 19 : Trends in Cash Segment of MSEI
A21: Table 20 : City-wise Distribution of Turnover on Cash Segment of Exchanges
A22: Table 21 : Category-wise Share of Turnover in Cash Segment of BSE
A23: Table 22 : Category-wise Share of Turnover in Cash Segment of NSE
A24: Table 23 : Category-wise Share of Turnover in Cash Segment of MSEI
A25: Table 24 : Component Stocks: S&P BSE Sensex
A26: Table 25 : Component Stocks: Nifty 50 Index
A27: Table 26 : Component Stocks: SX40 Index during
A28: Table 27 : Advances/Declines in Cash Segment of Exchanges
A29: Table 28 : Trading Frequency in Cash Segment of of Exchanges
A30: Table 29 : Daily Volatility of Major Indices
A31: Table 30 : Percentage Share of Top ‘N’ Securities/Members in Turnover of Cash Segment of Exchanges
A32: Table 31 : Settlement Statistics for Cash Segment of ICCL
A33: Table 32 : Settlement Statistics for Cash Segment of NCL
A34: Table 33 : Settlement Statistics for Cash Segment of MCCIL
A35: Table 34 : Trends in Equity Derivatives Segment at BSE (Turnover in Notional Value)
A36: Table 35 : Trends in Equity Derivatives Segment at NSE (Turnover in Notional Value)
A37: Table 36 : Settlement Statistics in Equity Derivatives Segment
A38: Table 37 : Category-wise Share of Turnover & Open Interest in Equity Derivative Segment of BSE
A39: Table 38 : Category-wise Share of Turnover & Open Interest in Equity Derivative Segment of NSE
A40: Table 39 : Instrument-wise Turnover in Index Derivatives at BSE
A41: Table 40 : Instrument-wise Turnover in Index Derivatives at NSE
A42: Table 41 : Trends in Currency Derivatives Segment at BSE
A43: Table 42 : Trends in Currency Derivatives Segment at NSE
A44: Table 43 : Trends in Currency Derivatives Segment at MSEI
A45: Table 44 : Settlement Statistics of Currency Derivatives Segment
A46: Table 45 : Instrument-wise Turnover in Currency Derivative Segment of BSE
A47: Table 46 : Instrument-wise Turnover in Currency Derivatives of NSE
A48: Table 47 : Instrument-wise Turnover in Currency Derivative Segment of MSEI
A49: Table 48 : Maturity-wise Turnover in Currency Derivative Segment of BSE
A50: Table 49 : Maturity-wise Turnover in Currency Derivative Segment of NSE
A51: Table 50 : Maturity-wise Turnover in Currency Derivative Segment of MSEI
A52: Table 51 : Trading Statistics in Interest Rate Derivatives Segment
A53: Table 52 : Settlement Statistics in Interest Rate Derivatives Segment
A54: Table 53 : Trends in Foreign Portfolio Investment
A55: Table 54 : Notional Value of Offshore Derivative Instruments (ODIs) compared to Assets Under Custody (AUC) of FPIs/Deemed FPIs
A56: Table 55 : Assets under the Custody of Custodians
A57: Table 56 : Trends in Resource Mobilization by Mutual Funds
A58: Table 57 : Status of Mutual Funds Industry in India
A59: Table 58 : Trends in Transactions on Stock Exchanges by Mutual Funds
A60: Table 59 : Assets Managed by Portfolio Managers
A61: Table 60 : Progress Report of NSDL & CDSL for Listed Companies
A62: Table 61 : Progress of Dematerialisation at NSDL and CDSL (Listed and Unlisted Companies)
A63: Table 62 : Depository Statistics
A64: Table 63 : Number of Commodities Permitted and Traded at Exchanges
A65: Table 64 : Trends in Commodity Indices
A66: Table 65 : Trends in Commodity Derivatives at MCX
A67: Table 66 : Trends in Commodity Derivatives at NCDEX
A68: Table 67 : Trends in Commodity Derivatives at ICEX
A69: Table 68 : Trends in Commodity Derivatives Segment at BSE
A70: Table 69 : Trends in Commodity Derivatives Segment at NSE
A71: Table 70 : Participant-wise percentage Share of Turnover in Commodity Derivatives at various Exchanges
A72: Table 71 : Commodity-wise Turnover and Trading Volume at MCX
A73: Table 72 : Commodity-wise Turnover and Trading Volume at NCDEX
A74: Table 73 : Commodity-wise Turnover and Trading Volume at ICEX, BSE and NSE
A75: Table 74 : Macro Economic Indicators
A78: Note- No. - Number

Sheet 1
A1: Table 1: SEBI Recognised/Registered Intermediaries / Market Infrastructure Institutions
A2: Particular | B2: 2019-20 | C2: 2020-21$
A3: Stock Exchanges | B3: 9 | C3: 7
A4: of that have:
A5: Cash Segment # | B5: 3 | C5: 3
A6: Equity Derivatives Segment # | B6: 3 | C6: 3
A7: Currency Derivatives Segment# | B7: 3 | C7: 3
A8: Commodity Derivatives Segment# | B8: 5 | C8: 5
A9: International Exchange (IFSC)#% | B9: 2 | C9: 0
A10: Brokers (Cash Segment) | B10: 4249 | C10: 4628
A11: Brokers (Equity Derivatives Segment) | B11: 3460 | C11: 3555
A12: Brokers (Currency Derivatives Segment) | B12: 2708 | C12: 2749
A13: Brokers (Debt Segment) | B13: 378 | C13: 431
A14: Brokers (Commodity Derivatives Segment) | B14: 2257 | C14: 2223
A15: Corporate Brokers(Cash Segment) | B15: 3231 | C15: 3573
A16: Clearing Corporation** | B16: 5 | C16: 3
A17: Foreign Portfolio Investors (FPIs) | B17: 9679 | C17: 9981
A18: Custodians | B18: 19 | C18: 18
A19: Depositories | B19: 2 | C19: 2
A20: Depository Participants (NSDL) | B20: 285 | C20: 276
A21: Depository Participants (CDSL) | B21: 614 | C21: 605
A22: Merchant Bankers | B22: 215 | C22: 213
A23: Bankers to an Issue | B23: 66 | C23: 64
A24: Underwriters | B24: 2 | C24: 2
A25: Debenture Trustees | B25: 31 | C25: 30
A26: Credit Rating Agencies | B26: 7 | C26: 7
A27: KYC Registration Agencies (KRA) | B27: 5 | C27: 5
A28: Registrars to an Issue & Share Transfer Agents | B28: 80 | C28: 78
A29: Venture Capital Funds | B29: 189 | C29: 188
A30: Foreign Venture Capital Investors | B30: 251 | C30: 257
A31: Alternative Investment Funds | B31: 649 | C31: 713
A32: Portfolio Managers | B32: 351 | C32: 359
A33: Mutual Funds | B33: 47 | C33: 49
A34: Investment Advisors | B34: 1291 | C34: 1353
A35: Research Analysts | B35: 680 | C35: 720
A36: Infrastructure Investment Trusts (InvITs) | B36: 10 | C36: 12
A37: Real estate investment trust (REITs) | B37: 3 | C37: 4
A38: Collective Investment Schemes | B38: 1 | C38: 1
A39: Approved Intermediaries (Stock Lending Schemes) | B39: 2 | C39: 2
A40: STP (Centralised Hub) | B40: 1 | C40: 1
A41: STP Service Providers | B41: 3 | C41: 3
A42: Notes:
A43: $ indicates as on December 31, 2020
A44: # SEBI has granted recognition for carrying out operations in the respective segment.
A45: **Government of India notified the commencement of Section 13 and Section 33 of the IFSCA Act, 2019 w.e.f. Oct 1, 2020. Pursuant to the same, IFSCA was empowered as the unified regulator; and the issues relating to GIFT-IFSC no longer fall under the regulatory purview of SEBI.
A46: #% IFSC are now under regulatory jurisdiction of International Financial Services Centres Authority (IFSCA) w.e.f. October 01, 2020
A47: Source: SEBI, NSDL.

Sheet 2
A1: Table 2: Company-wise Capital Raised through Public and Rights Issues (Equity) during December 2020
A2: Sl.No. | B2: Name of the Issuer/Company | C2: Date of Listing | D2: Type of Issue | E2: Type of Instrument | F2: No. of Shares Issued | G2: Face Value (₹ ) | H2: Premium Value (₹ ) | I2: Issue Price (₹ ) | J2: Size of Issue ( ₹ crore)
A3: 1 | B3: Burger King India Limited | C3: 2020-12-14 | D3: BSE/ NSE | E3: Equity | F3: 135000000 | G3: 10 | H3: 50 | I3: 60 | J3: 810
A4: 2 | B4: Mrs. Bectors Food Specialities Limited | C4: 2020-12-24 | D4: BSE/ NSE | E4: Equity | F4: 18769701 | G4: 10 | H4: 278 | I4: 288 | J4: 540.54
A5: 3 | B5: SHOPPERS STOP LTD. | C5: 2020-12-22 | D5: BSE/ NSE | E5: Equity | F5: 21368982 | G5: 5 | H5: 135 | I5: 140 | J5: 299.16
A6: 4 | B6: Net Pix Shorts Digital Media Limited | C6: 2020-12-02 | D6: BSE SME START-UP | E6: Equity | F6: 900000 | G6: 10 | H6: 20 | I6: 30 | J6: 2.7
A7: Notes: All the issues are compiled from the Prospectus of Issuer Companies filed with SEBI.
A8: From April, 2020 onwards the data is being prepared based on the listing date of the issues as against earlier practice of preparing it based on the closing date.
A9: Source: SEBI.

Sheet 3
A1: Table 3: Open Offers Closed under SAST Regulations (during December 2020)
A2: Sl.No | B2: Target Company | C2: Acquirer | D2: Offer Opening Date | E2: Offer Closing Date | F2: Offer Size | H2: Offer Price (₹ ) per share | I2: Offer Size ( ₹ crore)
F3: No. of Shares | G3: as per cent of Equity Capital
A4: 1 | B4: Amarnath Securities | C4: MR SURESH BABU MALGE | D4: 2020-11-18 | E4: 2020-12-02 | F4: 780052 | G4: 26 | H4: 18.13 | I4: 1.41
A5: 2 | B5: International Conveyors Limited | C5: IGE (India) Private Limited | D5: 2020-11-24 | E5: 2020-12-08 | F5: 8100000 | G5: 12 | H5: 33 | I5: 26.73
A6: 3 | B6: Ashok Alco-Chem Limited | C6: Manan Chetan Shah | D6: 2020-11-25 | E6: 2020-12-09 | F6: 1196090 | G6: 26 | H6: 22.55 | I6: 2.7
A7: 4 | B7: Resonance Specialties Ltd | C7: Makers Laboratories Limited, Kaygee Investments Private Limited | D7: 2020-11-26 | E7: 2020-12-10 | F7: 3001440 | G7: 26 | H7: 55.5 | I7: 16.65
A8: Source: SEBI.

Sheet 4
A1: Table 4: Substantial Acquisition of Shares and Takeovers
A2: Year / Month | B2: Offers
B3: Objectives | H3: Total
B4: Change in Control of Management | D4: Consolidation of Holdings | F4: Substantial Acquisition | H4: No. of Offers | I4: Amount ( ₹ crore)
B5: No. of Offers | C5: Amount ( ₹ crore) | D5: No. of Offers | E5: Amount ( ₹ crore) | F5: No. of Offers | G5: Amount ( ₹ crore)
A6: 2019-20 | B6: 49 | C6: 16401.64 | D6: 4 | E6: 3641.83 | F6: 3 | G6: 478.38 | H6: 56 | I6: 20521.85
A7: 2020-21$ | B7: =SUM(B8:B16) -> 28 | C7: =SUM(C8:C16) -> 8977.95 | D7: 2 | E7: 9.87 | F7: 4 | G7: 32.22 | H7: 34 | I7: 9020.04
A8: April-20 | B8: 2 | C8: 1.36 | D8: 1 | E8: 2.36 | F8: 0 | G8: 0 | H8: 3 | I8: 3.72
A9: May-20 | B9: 0 | C9: 0 | D9: 0 | E9: 0 | F9: 0 | G9: 0 | H9: 0 | I9: 0
A10: Jun-20 | B10: 4 | C10: 1088.11 | D10: 0 | E10: 0 | F10: 0 | G10: 0 | H10: 4 | I10: 1088.11
A11: Jul-20 | B11: 2 | C11: 528.16 | D11: 0 | E11: 0 | F11: 0 | G11: 0 | H11: 2 | I11: 528.16
A12: Aug-20 | B12: 7 | C12: 3852.44 | D12: 1 | E12: 7.51 | F12: 1 | G12: 1.72 | H12: 9 | I12: 3861.67
A13: 2020-09-01 | B13: 5 | C13: 3008.03 | D13: 0 | E13: 0 | F13: 1 | G13: 2.36 | H13: =B13+D13+F13 -> 6 | I13: =C13+E13+G13 -> 3010.39
A14: 2020-10-01 | B14: 6 | C14: 480.5 | D14: 0 | E14: 0 | F14: 0 | G14: 0 | H14: 6 | I14: 480.5
A15: Nov-20 | B15: 0 | C15: 0 | D15: 0 | E15: 0 | F15: 0 | G15: 0 | H15: 0 | I15: 0
A16: 2020-12-02 | B16: 2 | C16: 19.35 | D16: 0 | E16: 0 | F16: 2 | G16: 28.14 | H16: 4 | I16: 47.49
A17: Note: $ indicates as on December 31, 2020
A18: Source: SEBI.

Sheet 5
A1: Table 5: Capital Raised from the Primary Market through Public and Rights Issues
A2: Year / Month | B2: Total (Equity + Debt) | D2: Equity Issue | P2: Debt Issue
D3: Category-wise | H3: Issue-Type | L3: Instrument-wise | P3: No. of issues | Q3: Amount ( ₹ crore)
D4: Public | F4: Rights | H4: Listed | J4: IPOs | L4: At Par | N4: At Premium
B5: No. of issues | C5: Amount ( ₹ crore) | D5: No. of issues | E5: Amount ( ₹ crore) | F5: No. of issues | G5: Amount ( ₹ crore) | H5: No. of issues | I5: Amount ( ₹ crore) | J5: No. of issues | K5: Amount ( ₹ crore) | L5: No. of issues | M5: Amount ( ₹ crore) | N5: No. of issues | O5: Amount ( ₹ crore)
A6: 2019-20 | B6: =D6+F6+P6 -> 110 | C6: 91948.93544 | D6: 60 | E6: 21322.87377 | F6: 16 | G6: 55642.04166 | H6: 19 | I6: 55679.27166 | J6: 57 | K6: 21285.65 | L6: 2 | M6: 8.74 | N6: 74 | O6: 76956.18166 | P6: 34 | Q6: 14984.02
A7: 2020-21$ | B7: =D7+F7+P7 -> 59 | C7: 95864.59075 | D7: =SUM(D8:D16) -> 33 | E7: =SUM(E8:E16) -> 31086.64127 | F7: 16 | G7: 60906.89948 | H7: 17 | I7: =SUM(I8:I16) -> 75906.89948 | J7: =SUM(J8:J16) -> 32 | K7: =SUM(K8:K16) -> 16086.64127 | L7: 0 | M7: =SUM(M8:M16) -> 0 | N7: =SUM(N8:N16) -> 49 | O7: =SUM(O8:O16) -> 91993.54445 | P7: =SUM(P8:P16) -> 10 | Q7: =SUM(Q8:Q16) -> 3871.05
A8: 2020-04-01 | B8: 4 | C8: 116.31 | D8: 3 | E8: 13.92 | F8: 0 | G8: 0 | H8: 0 | I8: 0 | J8: 3 | K8: 13.92 | L8: 0 | M8: 0 | N8: 3 | O8: 13.92 | P8: 1 | Q8: 102.39
A9: 2020-05-01 | B9: 1 | C9: 297.25 | D9: 0 | E9: 0 | F9: 0 | G9: 0 | H9: 0 | I9: 0 | J9: 0 | K9: 0 | L9: 0 | M9: 0 | N9: 0 | O9: 0 | P9: 1 | Q9: 297.25
A10: 2020-06-01 | B10: =D10+F10+P10 -> 4 | C10: =E10+G10+Q10 -> 53448.84 | D10: 1 | E10: 2.46 | F10: 1 | G10: 53124.2 | H10: 1 | I10: 53124.2 | J10: 1 | K10: 2.46 | L10: 0 | M10: 0 | N10: 2 | O10: =E10+G10 -> 53126.66 | P10: 2 | Q10: 322.18
A11: 2020-07-01 | B11: 6 | C11: 16070.56998 | D11: 4 | E11: 15510.77998 | F11: 1 | G11: 399.79 | H11: 2 | I11: 15399.79 | J11: 3 | K11: 510.779975 | L11: 0 | M11: 0 | N11: 5 | O11: 15910.56998 | P11: 1 | Q11: 160
A12: 2020-08-01 | B12: =D12+F12+P12 -> 9 | C12: 6107.75 | D12: 2 | E12: 11.45 | F12: 7 | G12: 6096.3 | H12: 7 | I12: 6096.3 | J12: 2 | K12: 11.45 | L12: 0 | M12: 0 | N12: 9 | O12: 6107.75 | P12: 0 | Q12: 0
A13: 2020-09-01 | B13: 6 | C13: 1821.294477 | D13: 3 | E13: 1308.905 | F13: 2 | G13: 362.689477 | H13: 2 | I13: 362.689477 | J13: 3 | K13: 1308.905 | L13: 0 | M13: 0 | N13: 5 | O13: 1671.594477 | P13: 1 | Q13: 149.7
A14: 2020-10-01 | B14: 20 | C14: 9137.6063 | D14: 14 | E14: 5887.1463 | F14: 3 | G14: 553.46 | H14: 3 | I14: 553.46 | J14: 14 | K14: 5887.1463 | L14: 0 | M14: 0 | N14: 17 | O14: 6440.61 | P14: 3 | Q14: =300+397+2000 -> 2697
A15: 2020-11-01 | B15: =D15+F15+P15 -> 5 | C15: =E15+G15+Q15 -> 7212.57 | D15: 3 | E15: 6998.74 | F15: 1 | G15: 71.3 | H15: 1 | I15: 71.3 | J15: 3 | K15: 6998.74 | L15: 0 | M15: 0 | N15: 4 | O15: 7070.04 | P15: 1 | Q15: 142.53
A16: 2020-12-01 | B16: =D16+F16+P16 -> 4 | C16: 1652.4 | D16: 3 | E16: 1353.24 | F16: 1 | G16: 299.16 | H16: 1 | I16: 299.16 | J16: 3 | K16: 1353.24 | L16: 0 | M16: 0 | N16: 4 | O16: 1652.4 | P16: 0 | Q16: 0
A17: Notes:
A18: 1. Equity public issues also includes issues listed on SME platform.
A19: 2. From April, 2020 onwards the data of equity is being prepared based on the listing date of the issues as against earlier practice of preparing it based on the closing date.
A20: 3. The data of Debt is being prepared based on closing date.
A21: $ indicates as on December 31, 2020
A22: Source: SEBI.

Sheet 6
A1: Table 6: Issues Listed on SME Platform
A2: Year/Month | B2: No. of issue | C2: Amount ( ₹ crore)
A3: 2019-20 | B3: 46 | C3: 495.3828
A4: 2020-21$ | B4: =SUM(B5:B13) -> 19 | C4: =SUM(C5:C13) -> 115.795
A5: 2020-04-01 | B5: 3 | C5: 13.92
A6: 2020-05-01 | B6: 0 | C6: 0
A7: 2020-06-01 | B7: 1 | C7: 2.46
A8: 2020-07-01 | B8: 2 | C8: 14.53
A9: 2020-08-01 | B9: 2 | C9: 11.45
A10: 2020-09-01 | B10: 1 | C10: 6.885
A11: 2020-10-01 | B11: 8 | C11: 62.26
A12: 2020-11-01 | B12: 1 | C12: 1.59
A13: 2020-12-01 | B13: 1 | C13: 2.7
A14: Notes -
A15: From April, 2020 onwards the data of equity is being prepared based on the listing date of the issues as against earlier practice of preparing it based on the closing date.
A16: $ indicates as on December 31, 2020
A17: Source: SEBI

Sheet 7
A1: Table 7: Industry-wise Classification of Capital Raised through Public and Rights Issues (Equity)
A2: Industry | B2: 2019-20 | D2: 2020-21$ | F2: 2020-12-01
B3: No. of issues | C3: Amount ( ₹ crore) | D3: No. of issues | E3: Amount ( ₹ crore) | F3: No. of issues | G3: Amount ( ₹ crore)
A4: Airlines | B4: 0 | C4: 0
A5: Automobiles | B5: 0 | C5: 0
A6: Banks/FIs | B6: 3 | C6: 2345.476223 | D6: 2 | E6: 15119.896
A7: Cement/ Constructions | B7: 5 | C7: 274.9363706 | D7: 3 | E7: 22.65
A8: Chemical | B8: 4 | C8: 152.655882 | D8: 3 | E8: 993.17
A9: Consumer Services | B9: 3 | C9: 66.1104 | D9: 4 | E9: 487.06
A10: Electronic Equipments/ Products | B10: 5 | C10: 4217.97356 | D10: 1 | E10: 6.89
A11: Engineering | B11: 5 | C11: 1992.097451 | D11: 3 | E11: 515.4
A12: Entertainment | B12: 1 | C12: 2.2692 | D12: 3 | E12: 306.2 | F12: 1 | G12: 2.7
A13: Finance | B13: 3 | C13: 10446.40757 | D13: 4 | E13: 5519.6
A14: Food processing | B14: 2 | C14: 64.08 | D14: 2 | E14: 1350.54 | F14: 2 | G14: 1350.54
A15: Healthcare | B15: 7 | C15: 4701.94867 | D15: 1 | E15: 6479.55
A16: Hotels | B16: 0 | C16: 0 | D16: 1 | E16: 349.66
A17: Info Tech | B17: 4 | C17: 484.0077222 | D17: 6 | E17: 1336.25
A18: Misc | B18: 0 | C18: 0 | D18: 8 | E18: 5343.4 | F18: 1 | G18: 299.16
A19: Roads & Highways | B19: 0 | C19: 0 | D19: 1 | E19: 4.55
A20: Telecom | B20: 1 | C20: 500
A21: Textile | B21: 0 | C21: 0 | D21: 2 | E21: 996.71
A22: Plastic | B22: 2 | C22: 8.9792 | D22: 2 | E22: 10.55
A23: Power | B23: 0 | C23: 0
A24: Printing | B24: 3 | C24: 49969.65765 | D24: 1 | E24: 2.4
A25: Oil & Natural Gas | B25: 1 | C25: 23.1576345 | D25: 2 | E25: 53149.07
A26: Insurance | B26: 27 | C26: 1715.155245
A27: Total | B27: 76 | C27: 76964.91278 | D27: =SUM(D4:D26) -> 49 | E27: 91993.546 | F27: =SUM(F4:F26) -> 4 | G27: =SUM(G4:G26) -> 1652.4
A28: Notes - From April, 2020 onwards the data of equity is being prepared based on the listing date of the issues as against earlier practice of preparing it based on the closing date.
A29: $ indicates as on December 31, 2020
A30: Source: SEBI.

Sheet 8
A1: Table 8: Sector-wise and Region-wise Distribution of Capital Mobilised through Public and Rights Issues (Equity)
A2: Year / Month | B2: Total | D2: Sector-wise | H2: Region-wise
D3: Private | F3: Public | H3: Northern | J3: Eastern | L3: Western | N3: Southern | P3: Central
B4: No. of issues | C4: Amount ( ₹ crore) | D4: No. of issues | E4: Amount ( ₹ crore) | F4: No. of issues | G4: Amount ( ₹ crore) | H4: No. of issues | I4: Amount ( ₹ crore) | J4: No. of issues | K4: Amount ( ₹ crore) | L4: No. of issues | M4: Amount ( ₹ crore) | N4: No. of issues | O4: Amount ( ₹ crore) | P4: No. of issues | Q4: Amount ( ₹ crore)
A5: 2019-20 | B5: =D5+F5 -> 76 | C5: =E5+G5 -> 76964.92166 | D5: 74 | E5: 75849.85166 | F5: 2 | G5: 1115.07 | H5: 17 | I5: 39089.74361 | J5: 0 | K5: 0 | L5: 51 | M5: 34666.08 | N5: 8 | O5: 3209.099586 | P5: 0 | Q5: 0
A6: 2020-21$ | B6: =SUM(B7:B15) -> 49 | C6: =SUM(C7:C15) -> 91993.54445 | D6: =SUM(D7:D15) -> 48 | E6: =SUM(E7:E15) -> 91549.85445 | F6: 1 | G6: 443.69 | H6: 7 | I6: 1222.049477 | J6: 2 | K6: 429.19 | L6: 32 | M6: 78751.46497 | N6: 8 | O6: 11590.84 | P6: 0 | Q6: 0
A7: 2020-04-01 | B7: 3 | C7: 13.92 | D7: 3 | E7: 13.92 | F7: 0 | G7: 0 | H7: 0 | I7: 0 | J7: 0 | K7: 0 | L7: 3 | M7: 13.92 | N7: 0 | O7: 0 | P7: 0 | Q7: 0
A8: 2020-05-01 | B8: 0 | C8: 0 | D8: 0 | E8: 0 | F8: 0 | G8: 0 | H8: 0 | I8: 0 | J8: 0 | K8: 0 | L8: 0 | M8: 0 | N8: 0 | O8: 0 | P8: 0 | Q8: 0
A9: 2020-06-01 | B9: 2 | C9: =E9+G9 -> 53126.66 | D9: 2 | E9: 53126.66 | F9: 0 | G9: 0 | H9: 0 | I9: 0 | J9: 0 | K9: 0 | L9: 2 | M9: 53126.66 | N9: 0 | O9: 0 | P9: 0 | Q9: 0
A10: 2020-07-01 | B10: 5 | C10: 15910.56998 | D10: 5 | E10: 15910.56998 | F10: 0 | G10: 0 | H10: 2 | I10: 14.53 | J10: 0 | K10: 0 | L10: 3 | M10: 15896.03998 | N10: 0 | O10: 0 | P10: 0 | Q10: 0
A11: 2020-08-01 | B11: 9 | C11: =E11+G11 -> 6107.75 | D11: 9 | E11: 6107.75 | F11: 0 | G11: 0 | H11: 1 | I11: 299.79 | J11: 1 | K11: 79.53 | L11: 5 | M11: 4211.37 | N11: 2 | O11: 1517.06 | P11: 0 | Q11: 0
A12: 2020-09-01 | B12: 5 | C12: 1671.594477 | D12: 5 | E12: 1671.594477 | F12: 0 | G12: 0 | H12: 2 | I12: 362.689477 | J12: 0 | K12: 0 | L12: 2 | M12: 606.885 | N12: 1 | O12: 702.02 | P12: 0 | Q12: 0
A13: 2020-10-01 | B13: =D13+F13 -> 17 | C13: 6440.61 | D13: 16 | E13: 5996.92 | F13: 1 | G13: 443.69 | H13: 1 | I13: 4.5 | J13: 1 | K13: 349.66 | L13: 13 | M13: 3783.14 | N13: 2 | O13: 2303.31 | P13: 0 | Q13: 0
A14: 2020-11-01 | B14: 4 | C14: 7070.04 | D14: 4 | E14: 7070.04 | F14: 0 | G14: 0 | H14: 0 | I14: 0 | J14: 0 | K14: 0 | L14: 1 | M14: 1.59 | N14: 3 | O14: 7068.45 | P14: 0 | Q14: 0
A15: 2020-12-01 | B15: 4 | C15: 1652.4 | D15: 4 | E15: 1652.4 | F15: 0 | G15: 0 | H15: 1 | I15: 540.54 | J15: 0 | K15: 0 | L15: 3 | M15: 1111.86 | N15: 0 | O15: 0 | P15: 0 | Q15: 0
A16: Notes - From April, 2020 onwards the data of equity is being prepared based on the listing date of the issues as against earlier practice of preparing it based on the closing date.
A17: $ indicates as on December 31, 2020
A18: Source: SEBI.

Sheet 9
A1: Table 9: Size-wise Classification of Capital Raised through Public and Rights Issues (Equity)
A2: Year / Month | B2: Total | D2: < ₹ 5 crore | F2: ≥ ₹5crore - < ₹10crore | H2: ≥₹ 10 crore - < ₹50 crore | J2: ≥₹ 50 crore - < ₹100 crore | L2: ≥ ₹100 crore - < ₹500 crore | N2: >=₹500 crore
B3: No. of issues | C3: Amount ( ₹ crore) | D3: No. of issues | E3: Amount ( ₹ crore) | F3: No. of issues | G3: Amount ( ₹ crore) | H3: No. of issues | I3: Amount ( ₹ crore) | J3: No. of issues | K3: Amount ( ₹ crore) | L3: No. of issues | M3: Amount ( ₹ crore) | N3: No. of issues | O3: Amount ( ₹ crore)
A4: 2019-20 | B4: 76 | C4: 76964.91166 | D4: 19 | E4: 59.28 | F4: 12 | G4: 89.88 | H4: 24 | I4: 481.426867 | J4: 1 | K4: 60 | L4: 8 | M4: 2606.62369 | N4: 12 | O4: 73667.70111
A5: 2020-21$ | B5: =SUM(B6:B14) -> 49 | C5: =SUM(C6:C14) -> 91993.54497 | D5: 11 | E5: 39.04 | F5: 4 | G5: 30.155 | H5: 6 | I5: 96.35 | J5: 3 | K5: 212.03 | L5: 11 | M5: 3263.929975 | N5: 14 | O5: 88352.04
A6: 2020-04-01 | B6: =D6+H6+L6+N6+F6+J6 -> 3 | C6: 13.92 | D6: 2 | E6: 5.64 | F6: 1 | G6: 8.28 | H6: 0 | I6: 0 | J6: 0 | K6: 0 | L6: 0 | M6: 0 | N6: 0 | O6: 0
A7: 2020-05-01 | B7: 0 | C7: 0 | D7: 0 | E7: 0 | F7: 0 | G7: 0 | H7: 0 | I7: 0 | J7: 0 | K7: 0 | L7: 0 | M7: 0 | N7: 0 | O7: 0
A8: 2020-06-01 | B8: 2 | C8: 53126.66 | D8: 1 | E8: 2.46 | F8: 0 | G8: 0 | H8: 0 | I8: 0 | J8: 0 | K8: 0 | L8: 0 | M8: 0 | N8: 1 | O8: 53124.2
A9: 2020-07-01 | B9: 5 | C9: 15910.56998 | D9: 1 | E9: 4.02 | F9: 0 | G9: 0 | H9: 1 | I9: 10.51 | J9: 0 | K9: 0 | L9: 2 | M9: 896.039975 | N9: 1 | O9: 15000
A10: 2020-08-01 | B10: 9 | C10: 6107.75 | D10: 1 | E10: 4.55 | F10: 1 | G10: 6.9 | H10: 1 | I10: 24.87 | J10: 1 | K10: 79.53 | L10: 2 | M10: 415.77 | N10: 3 | O10: 5576.13
A11: 2020-09-01 | B11: 5 | C11: 1671.595 | D11: 0 | E11: 0 | F11: 1 | G11: 6.885 | H11: 0 | I11: 0 | J11: 0 | K11: 0 | L11: 2 | M11: 362.69 | N11: 2 | O11: 1302.02
A12: 2020-10-01 | B12: 17 | C12: =E12+I12+M12+O12+G12+K12 -> 6440.61 | D12: 4 | E12: 18.08 | F12: 1 | G12: 8.09 | H12: 4 | I12: 60.97 | J12: 1 | K12: 61.2 | L12: 4 | M12: 1290.27 | N12: 3 | O12: 5002
A13: 2020-11-01 | B13: =D13+H13+L13+N13+F13+J13 -> 4 | C13: =E13+I13+M13+O13+G13+K13 -> 7070.04 | D13: 1 | E13: 1.59 | F13: 0 | G13: 0 | H13: 0 | I13: 0 | J13: 1 | K13: 71.3 | L13: 0 | M13: 0 | N13: 2 | O13: 6997.15
A14: 2020-12-01 | B14: =D14+H14+L14+N14+F14+J14 -> 4 | C14: =E14+I14+M14+O14+G14+K14 -> 1652.4 | D14: 1 | E14: 2.7 | F14: 0 | G14: 0 | H14: 0 | I14: 0 | J14: 0 | K14: 0 | L14: 1 | M14: 299.16 | N14: 2 | O14: 1350.54
A15: Notes - From April, 2020 onwards the data of equity is being prepared based on the listing date of the issues as against earlier practice of preparing it based on the closing date.
A16: $ indicates as on December 31, 2020
A17: Source: SEBI.

Sheet 10
A1: Table 10: Capital Raised by Listed Companies from the Primary Market through QIPs
A2: Year / Month | B2: BSE@ | D2: NSE@ | F2: MSEI @ | H2: Common# | J2: Total
B3: No. of issues | C3: Amount (₹ crore) | D3: No. of issues | E3: Amount (₹crore) | F3: No. of issues | G3: Amount (₹crore) | H3: No. of issues | I3: Amount (₹ crore) | J3: No. of issues | K3: Amount (₹ crore)
A4: 2019-20 | B4: 0 | C4: 0 | D4: 0 | E4: 0 | F4: 0 | G4: 0 | H4: 14 | I4: 54388.92492 | J4: 14 | K4: 54388.92492
A5: 2020-21$ | B5: =SUM(B6:B14) -> 0 | C5: =SUM(C6:C14) -> 0 | D5: 0 | E5: 0 | F5: 0 | G5: 0 | H5: 21 | I5: 64148.48738 | J5: =SUM(J6:J14) -> 21 | K5: =SUM(K6:K14) -> 64148.48738
A6: Apr-20 | B6: 0 | C6: 0 | D6: 0 | E6: 0 | F6: 0 | G6: 0 | H6: 0 | I6: 0 | J6: 0 | K6: 0
A7: May-20 | B7: 0 | C7: 0 | D7: 0 | E7: 0 | F7: 0 | G7: 0 | H7: 0 | I7: 0 | J7: 0 | K7: 0
A8: Jun-20 | B8: 0 | C8: 0 | D8: 0 | E8: 0 | F8: 0 | G8: 0 | H8: 2 | I8: 8212.5 | J8: 2 | K8: 8212.5
A9: Jul-20 | B9: 0 | C9: 0 | D9: 0 | E9: 0 | F9: 0 | G9: 0 | H9: 1 | I9: 2000 | J9: 1 | K9: 2000
A10: Aug-20 * | B10: 0 | C10: 0 | D10: 0 | E10: 0 | F10: 0 | G10: 0 | H10: 7 | I10: 42724.94 | J10: 7 | K10: 42724.94
A11: 2020-09-01 | B11: 0 | C11: 0 | D11: 0 | E11: 0 | F11: 0 | G11: 0 | H11: 3 | I11: 1337.87 | J11: 3 | K11: 1337.87
A12: 2020-10-01 | B12: 0 | C12: 0 | D12: 0 | E12: 0 | F12: 0 | G12: 0 | H12: 3 | I12: 2199.97 | J12: 3 | K12: 2199.97
A13: 2020-11-01 | B13: 0 | C13: 0 | D13: 0 | E13: 0 | F13: 0 | G13: 0 | H13: 1 | I13: 249.99 | J13: 1 | K13: 249.99
A14: 2020-12-01 | B14: 0 | C14: 0 | D14: 0 | E14: 0 | F14: 0 | G14: 0 | H14: 4 | I14: 7423.217383 | J14: =B14+D14+F14+H14 -> 4 | K14: =C14+E14+G14+I14 -> 7423.217383
A15: Notes -
A16: $ indicates as on December 31, 2020
A17: * In the month of August 2020, the common amount on BSE and NSE includes warrants of HDFC Ltd of ₹ 3,999.99 cr
A18: 1.@ The issues are exclusively listed on respective exchanges.
A19: 2. # The issues listed on 'any two' or 'all three' exchanges.
A20: Source: BSE, NSE and MSEI.

Sheet 11
A1: Table 11: Preferential Allotments Listed at Stock Exchanges
B2: BSE@ | D2: NSE@ | F2: MSEI @ | H2: Common# | J2: Total
A3: Year/ Month | B3: No.of issues | C3: Amount (₹crore) | D3: No.of issues | E3: Amount (₹crore) | F3: No.of issues | G3: Amount (₹crore) | H3: No.of issues | I3: Amount (₹crore) | J3: No.of issues | K3: Amount (₹crore)
A4: 1 | B4: 2 | C4: 3 | D4: 4 | E4: 5 | F4: 6 | G4: 7 | H4: 8 | I4: 9 | J4: 10 | K4: 11
A5: 2019-20 | B5: 128 | C5: 1839.73 | D5: 14 | E5: 76.11 | F5: 4 | G5: 11.26 | H5: 138 | I5: 172959.35 | J5: 284 | K5: 174886.46
A6: 2020-21$ | B6: =SUM(B7:B15) -> 73 | C6: =SUM(C7:C15) -> 735.48 | D6: 9 | E6: 56.66 | F6: 4 | G6: 10.12 | H6: 76 | I6: 26680.57402 | J6: 162 | K6: 27482.83
A7: Apr-20 | B7: 14 | C7: 117.45 | D7: 0 | E7: 0 | F7: 0 | G7: 0 | H7: 8 | I7: 988.95 | J7: 22 | K7: 1106.4
A8: May-20 | B8: 4 | C8: 11.14 | D8: 0 | E8: 0 | F8: 0 | G8: 0 | H8: 7 | I8: 295.88 | J8: 11 | K8: 307.02
A9: Jun-20 | B9: 10 | C9: 64.96 | D9: 0 | E9: 0 | F9: 0 | G9: 0 | H9: 8 | I9: 3967.7 | J9: 18 | K9: 4032.66
A10: Jul-20 | B10: 9 | C10: 83.64 | D10: 0 | E10: 0 | F10: 0 | G10: 0 | H10: 9 | I10: 798.85 | J10: 18 | K10: 882.49
A11: Aug-20 | B11: 10 | C11: 101.04 | D11: 2 | E11: 9 | F11: 0 | G11: 0 | H11: 6 | I11: 2626.62 | J11: 18 | K11: 2736.66
A12: 2020-09-01 | B12: 7 | C12: 43.41 | D12: 2 | E12: 10.46 | F12: 0 | G12: 0 | H12: 11 | I12: 7621.09 | J12: 20 | K12: 7674.96
A13: 2020-10-01 | B13: 5 | C13: 63.09 | D13: 2 | E13: 30.1 | F13: 3 | G13: 7.8 | H13: 15 | I13: 1851.294023 | J13: 25 | K13: 1952.28
A14: 2020-11-01 | B14: 6 | C14: 149.51 | D14: 1 | E14: 1.2 | F14: 0 | G14: 0 | H14: 6 | I14: 6858.08 | J14: 13 | K14: 7008.79
A15: 2020-12-01 | B15: 8 | C15: 101.24 | D15: 2 | E15: 5.9 | F15: 1 | G15: 2.32 | H15: 6 | I15: 1672.11 | J15: 17 | K15: 1781.57
A16: Notes :
A17: 1. @ The issues are exclusively listed on respective exchanges.
A18: 2. # The issues listed on 'any two' or 'all three' exchanges.
A19: $ indicates as on December 31, 2020
A20: Source: BSE, NSE and MSEI.

Sheet 12
A1: Table 12: Private Placement of Corporate Debt Reported to Stock Exchanges
A2: Year/Month | B2: Listed only on NSE | D2: Listed only on BSE | F2: Listed both Both NSE and BSE | H2: TOTAL
B3: No. of Issues | C3: Amount (₹crore) | D3: No. of Issues | E3: Amount (₹ crore) | F3: No. of Issues | G3: Amount (₹ crore) | H3: No. of Issues | I3: Amount (₹crore)
A4: 2019-20 | B4: 363 | C4: 203066.26 | D4: 1272 | E4: 254976.4 | F4: 152 | G4: 216660.39 | H4: 1787 | I4: 674702.88
A5: 2020-21$ | B5: =SUM(B6:B14) -> 307 | C5: =SUM(C6:C14) -> 150659.3328 | D5: 1104 | E5: 205093.92 | F5: 129 | G5: 220448.62 | H5: 1540 | I5: 576201.5028
A6: Apr-20 | B6: 19 | C6: 11880 | D6: 40 | E6: 15200 | F6: 11 | G6: 27559.1 | H6: 70 | I6: 54638.72
A7: May-20 | B7: 33 | C7: 21706 | D7: 48 | E7: 14911.19 | F7: 26 | G7: 47956.3 | H7: 107 | I7: 84573.49
A8: Jun-20 | B8: 43 | C8: 18704 | D8: 136 | E8: 28221 | F8: 9 | G8: 23289 | H8: 188 | I8: 70214
A9: Jul-20 | B9: 40 | C9: 17454.84 | D9: 191 | E9: 20187.64 | F9: 12 | G9: 10319.2 | H9: 243 | I9: 47961.68
A10: 2020-08-01 | B10: 26 | C10: 5592.7 | D10: 163 | E10: 21144.71 | F10: 24 | G10: 31681.8 | H10: =SUM(B10,D10,F10) -> 213 | I10: =SUM(C10,E10,G10) -> 58419.21
A11: 2020-09-01 | B11: 34 | C11: 12161.71 | D11: 145 | E11: 28999.54 | F11: 10 | G11: 23227.4 | H11: 189 | I11: 64388.65
A12: 2020-10-01 | B12: 26 | C12: 16792.11 | D12: 110 | E12: 24320.69 | F12: 11 | G12: 21218.01 | H12: 147 | I12: 62330.82
A13: 2020-11-01 | B13: 32 | C13: 17269.9728 | D13: 97 | E13: 10393.72 | F13: 13 | G13: 17881.3 | H13: 142 | I13: 45544.9928
A14: 2020-12-01 | B14: 54 | C14: 29098 | D14: 174 | E14: 41715.43 | F14: 13 | G14: 17316.51 | H14: 241 | I14: 88129.94
A15: Notes -
A16: $ indicates as on December 31, 2020
A17: Source: BSE and NSE

Sheet 13
A1: Table 13: Trading in the Corporate Debt Market
A2: Year / Month | B2: BSE | D2: NSE | F2: MSEI | H2: Total
B3: No. of Trades | C3: Traded Value (₹crore) | D3: No. of Trades | E3: Traded Value (₹crore) | F3: No. of Trades | G3: Traded Value (₹crore) | H3: No. of Trades | I3: Traded Value (₹crore)
A4: 2019-20 | B4: 57669 | C4: 764268.62 | D4: 80558 | E4: 1463552.27 | F4: 0 | G4: 0 | H4: 138227 | I4: 2227820.96
A5: 2020-21$ | B5: =SUM(B6:B14) -> 49543 | C5: =SUM(C6:C14) -> 504250.8112 | D5: 52509 | E5: 957920.502 | F5: 0 | G5: 0 | H5: 102052 | I5: 1462171.313
A6: Apr-20 | B6: 3753 | C6: 65285.07 | D6: 5173 | E6: 149229.69 | F6: 0 | G6: 0 | H6: =B6+D6 -> 8926 | I6: =E6+C6 -> 214514.76
A7: May-20 | B7: 4677 | C7: 64964.768 | D7: 6004 | E7: 131841.632 | F7: 0 | G7: 0 | H7: =B7+D7 -> 10681 | I7: =E7+C7 -> 196806.4
A8: Jun-20 | B8: 7231 | C8: 76987.05 | D8: 7647 | E8: 130256.79 | F8: 0 | G8: 0 | H8: 14878 | I8: 207243.84
A9: Jul-20 | B9: 6813 | C9: 80074.63 | D9: 6710 | E9: 121730.01 | F9: 0 | G9: 0 | H9: 13523 | I9: 201804.64
A10: 2020-08-01 | B10: 4946 | C10: 53915.52 | D10: 5200 | E10: 89136.44 | F10: 0 | G10: 0 | H10: =SUM(B10,D10,F10) -> 10146 | I10: =SUM(C10,E10,G10) -> 143051.96
A11: 2020-09-01 | B11: 5695 | C11: 50693.92 | D11: 5864 | E11: 90782.64 | F11: 0 | G11: 0 | H11: 11559 | I11: 141476.56
A12: 2020-10-01 | B12: 5019 | C12: 42448.36 | D12: 5332 | E12: 88404 | F12: 0 | G12: 0 | H12: 10351 | I12: 130852.36
A13: 2020-11-01 | B13: 4913 | C13: 35255.33322 | D13: 4860 | E13: 79665.3 | F13: 0 | G13: 0 | H13: 9773 | I13: 114920.6332
A14: Dec-20 | B14: 6496 | C14: 34626.16 | D14: 5719 | E14: 76874 | F14: 0 | G14: 0 | H14: 12215 | I14: 111500.16
A15: Notes -
A16: $ indicates as on December 31, 2020
A17: Source: BSE, NSE & MSEI

Sheet 14
A1: Table 14: Ratings Assigned for Long-term Corporate Debt Securities (Maturity ≥ 1 year)
A2: Grade | B2: Investment Grade | J2: Non-Investment Grade | L2: Total
B3: Highest Safety (AAA) | D3: High Safety (AA) | F3: Adequate Safety (A) | H3: Moderate Safety (BBB)
A4: Period | B4: No. of issue | C4: Amount (₹crore) | D4: No. of issue | E4: Amount (₹crore) | F4: No. of issue | G4: Amount (₹ crore) | H4: No. of issue | I4: Amount (₹crore) | J4: No. of issue | K4: Amount (₹ crore) | L4: No. of issue | M4: Amount (₹ crore)
A5: 2019-20 | B5: 315 | C5: 1895046.59 | D5: =308+2 -> 310 | E5: =194418.72+1600 -> 196018.72 | F5: 278 | G5: 40357.38 | H5: =200+2 -> 202 | I5: =31405.885+1294 -> 32699.885 | J5: =44+2 -> 46 | K5: =10059.96+450 -> 10509.96 | L5: =1145+6 -> 1151 | M5: =2171738.535+3344 -> 2175082.535
A6: 2020-21$ | B6: =SUM(B7:B15) -> 199 | C6: =SUM(C7:C15) -> 1521739.45 | D6: =SUM(D7:D15) -> 358 | E6: 270795.07 | F6: 254 | G6: 42578.38 | H6: 150 | I6: 33755.05 | J6: 50 | K6: 8901.7 | L6: 1010 | M6: =SUM(M7:M15) -> 1877769.57
A7: Apr-20 | B7: 25 | C7: 540951.9 | D7: 28 | E7: 52120.9 | F7: 11 | G7: 5075 | H7: 5 | I7: 1630.19 | J7: =2+3 -> 5 | K7: =535+400 -> 935 | L7: =71+3 -> 74 | M7: =600312.99+400 -> 600712.99
A8: May-20 | B8: 17 | C8: 76524.42 | D8: 38 | E8: 19249.33 | F8: =21+2 -> 23 | G8: =5426.38+600 -> 6026.38 | H8: =7+1 -> 8 | I8: =620+350 -> 970 | J8: 1 | K8: 100 | L8: =84+3 -> 87 | M8: 102870.13
A9: Jun-20 | B9: 30 | C9: 49056.53 | D9: =43+1 -> 44 | E9: =33536.16+225 -> 33761.16 | F9: 36 | G9: 4757.08 | H9: =27+1 -> 28 | I9: =19665.78+25 -> 19690.78 | J9: 0 | K9: 0 | L9: =136+2 -> 138 | M9: =107015.55+250 -> 107265.55
A10: Jul-20 | B10: 23 | C10: 115681.76 | D10: 41 | E10: 16437.48 | F10: 22 | G10: 2665.11 | H10: =22+1 -> 23 | I10: =866.59+50 -> 916.59 | J10: 7 | K10: 352 | L10: =115+1 -> 116 | M10: =136003.02+50 -> 136053.02
A11: Aug-20 | B11: 18 | C11: 148303.47 | D11: 24 | E11: 25639.17 | F11: 32 | G11: 6989.12 | H11: =17+1 -> 18 | I11: =3401.9+100 -> 3501.9 | J11: =3+1 -> 4 | K11: =167+20 -> 187 | L11: =94+2 -> 96 | M11: =184500.66+120 -> 184620.66
A12: 2020-09-01 | B12: 34 | C12: 357648.64 | D12: 63 | E12: 58608.86 | F12: 34 | G12: 5034.52 | H12: 17 | I12: 2227.82 | J12: =7+3 -> 10 | K12: =2544.05+435 -> 2979.05 | L12: =155+3 -> 158 | M12: =426063.89+435 -> 426498.89
A13: Oct-20 | B13: 22 | C13: 64275.07 | D13: 35 | E13: 21266.64 | F13: 10 | G13: 1254.93 | H13: 10 | I13: 772.91 | J13: =10+1 -> 11 | K13: =1687.65+199 -> 1886.65 | L13: =87+1 -> 88 | M13: =89257.2+199 -> 89456.2
A14: Nov-20 | B14: 10 | C14: 26880 | D14: =45+1 -> 46 | E14: =29140+25 -> 29165 | F14: 30 | G14: 3126.89 | H14: =18+1 -> 19 | I14: =1707.55+20 -> 1727.55 | J14: =4+1 -> 5 | K14: =755+123 -> 878 | L14: =107+3 -> 110 | M14: =61609.28+168 -> 61777.28
A15: Dec-20 | B15: 20 | C15: 142417.66 | D15: 39 | E15: 14546.53 | F15: 56 | G15: 7649.35 | H15: 22 | I15: 2317.31 | J15: 7 | K15: 1584 | L15: 143 | M15: 168514.85
A16: Notes -
A17: Data for 2019-20 and 2020-21 include data of INFOMERICS Valuation abd Rating Private Limited
A18: $ indicates as on December 31, 2020
A19: Source: Credit Rating Agencies.

Sheet 15
A1: Table 15: Review of Accepted Ratings of Corporate Debt Securities (Maturity ≥ 1 year)
A2: Grade | B2: Upgraded | D2: Downgraded | F2: Reaffirmed | H2: Rating Watch | J2: Withdrawn/ Suspended | L2: Total
A3: Period | B3: No. of issue | C3: Amount (₹crore) | D3: No. of issue | E3: Amount (₹crore) | F3: No. of issue | G3: Amount (₹crore) | H3: No. of issue | I3: Amount (₹crore) | J3: No. of issue | K3: Amount (₹crore) | L3: No. of issue | M3: Amount (₹crore)
A4: 2019-20 | B4: 252 | C4: 75088.09 | D4: =1689+2 -> 1691 | E4: =1854100.55+1552 -> 1855652.55 | F4: =4425+6 -> 4431 | G4: =9132486.1+1196.83 -> 9133682.93 | H4: 768 | I4: 739873.1 | J4: =1193+4 -> 1197 | K4: =580065.57+1362 -> 581427.57 | L4: =8184+12 -> 8196 | M4: =12225936.51+4110.83 -> 12230047.34
A5: 2020-21$ | B5: =SUM(B6:B14) -> 194 | C5: =SUM(C6:C14) -> 97802.46 | D5: 698 | E5: 281438.25 | F5: 5010 | G5: 11713418.16 | H5: 217 | I5: 133932.95 | J5: 1105 | K5: 1021122.22 | L5: 7071 | M5: 13070302.68
A6: Apr-20 | B6: 4 | C6: 598.4 | D6: 78 | E6: 18083.34 | F6: 335 | G6: 1772609.63 | H6: =46+1 -> 47 | I6: =24584.43+735 -> 25319.43 | J6: =181+2 -> 183 | K6: =514291.99+360 -> 514651.99 | L6: =644+3 -> 647 | M6: =2330167.795+1095 -> 2331262.795
A7: May-20 | B7: 4 | C7: 37.63 | D7: 85 | E7: 57246.42 | F7: =493+2 -> 495 | G7: =1201121.33+275.9 -> 1201397.23 | H7: 29 | I7: 40188.47 | J7: =82+1 -> 83 | K7: =42963.5+55 -> 43018.5 | L7: =689+3 -> 692 | M7: =1340951.46+330.9 -> 1341282.36
A8: Jun-20 | B8: =9+1 -> 10 | C8: =2751.45+510 -> 3261.45 | D8: 78 | E8: 47594.14 | F8: =700+5 -> 705 | G8: =1263013.22+1467.9 -> 1264481.12 | H8: 16 | I8: 13712.15 | J8: 104 | K8: 55701.22 | L8: =889+6 -> 895 | M8: =1361302.26+1977.9 -> 1363280.16
A9: Jul-20 | B9: 6 | C9: 138.13 | D9: =61+1 -> 62 | E9: =11188+300 -> 11488 | F9: 567 | G9: 1234071.65 | H9: 9 | I9: 3821.4 | J9: 111 | K9: 76813.8 | L9: =737+1 -> 738 | M9: =1310780.67+300 -> 1311080.67
A10: Aug-20 | B10: =21+1 -> 22 | C10: =7118.39+100 -> 7218.39 | D10: =67+1 -> 68 | E10: =24674.93+302 -> 24976.93 | F10: =612+1 -> 613 | G10: =1496279.868+30 -> 1496309.868 | H10: 15 | I10: 5088.58 | J10: =115+1 -> 116 | K10: =117215.56+350 -> 117565.56 | L10: =803+4 -> 807 | M10: =1589777.448+782 -> 1590559.448
A11: 2020-09-01 | B11: 38 | C11: 51115 | D11: 127 | E11: 57497.39 | F11: 832 | G11: 1777440.668 | H11: 27 | I11: 18424.75 | J11: 189 | K11: 97682.6 | L11: 1186 | M11: 1966397.238
A12: Oct-20 | B12: 29 | C12: 1063.24 | D12: 75 | E12: 38775.13 | F12: 346 | G12: 726268.648 | H12: 27 | I12: 12466.2 | J12: =142+1 -> 143 | K12: =78441.39+1250 -> 79691.39 | L12: =572+1 -> 573 | M12: =816353.218+1250 -> 817603.218
A13: Nov-20 | B13: 45 | C13: 31089 | D13: 71 | E13: 15746.2 | F13: =422+1 -> 423 | G13: =598478.888+545 -> 599023.888 | H13: =38+1 -> 39 | I13: =9537.2+482.32 -> 10019.52 | J13: 77 | K13: 20668.45 | L13: =644+2 -> 646 | M13: =673015.778+1027.32 -> 674043.098
A14: Dec-20 | B14: 36 | C14: 3281.22 | D14: 54 | E14: 10030.7 | F14: 694 | G14: 1641815.46 | H14: 8 | I14: 4892.45 | J14: 99 | K14: 15328.71 | L14: 887 | M14: 1674793.69
A15: Notes -
A16: Data for 2019-20 and 2020-21 include data of INFOMERICS Valuation abd Rating Private Limited
A17: $ indicates as on December 31, 2020
A18: Source: Credit Rating Agencies.

Sheet 16
A1: Table 16: Distribution of Turnover on Cash Segments of Stock Exchanges (₹crore)
A2: Stock Exchanges | B2: Dec-20 | C2: 2019-20 | D2: 2020-21$
A3: BSE | B3: 99414.8 | C3: 660896.02 | D3: 690843
A4: MSEI | B4: 0.251525 | C4: 27.98824717 | D4: 5.08704725
A5: NSE | B5: 1374551.531 | C5: 8998811.071 | D5: =8210229.441+1337271.92+1374551.53 -> 10922052.89
A6: Notes -
A7: $ indicates as on December 31, 2020
A8: Source: BSE, NSE and MSEI.

Sheet 17
A1: Table 17: Trends in Cash Segment of BSE
A2: Year / Month | B2: No. of Companies Listed | C2: No. of Companies Permitted | D2: No. of companies traded | E2: No. of Trading Days | F2: No. of Trades (Lakh) | G2: Traded Quantity (Lakh) | H2: Turnover (₹ crore) | I2: Average Daily Turnover (₹ crore) | J2: Average Trade Size (₹ ) | K2: Demat Securities Traded (Lakh) | L2: Demat Turnover (₹crore) | M2: Market Capitalisation (₹ crore) | N2: S&P BSE Sensex
N3: High | O3: Low | P3: Close
A4: 2019-20 | B4: 5377 | C4: 36 | D4: 4089 | E4: 247 | F4: 3247.6 | G4: 573547.84 | H4: 660896.02 | I4: 2675.692389 | J4: 20350.29006 | K4: 573547.84 | L4: 660895.9 | M4: 11348756.59 | N4: 42273.87 | O4: 25638.9 | P4: 29468.49
A5: 2020-21$ | B5: 5442 | C5: 28 | D5: 3880 | E5: 188 | F5: 3935.07 | G5: 728079.38 | H5: 690843 | I5: 3674.696809 | J5: 17556.05364 | K5: 728079.38 | L5: 690842.96 | M5: 18803518.6 | N5: 47896.97 | O5: 27500.79 | P5: 47751.33
A6: Apr-20 | B6: 5380 | C6: 36 | D6: 3352 | E6: 18 | F6: 349.14 | G6: 38886.06 | H6: 44476.34 | I6: 2470.907778 | J6: 12738.82683 | K6: 38886.06 | L6: 44476.34 | M6: 12941620.82 | N6: 33887.25 | O6: 27500.79 | P6: 33717.62
A7: May-20 | B7: 5369 | C7: 36 | D7: 3303 | E7: 19 | F7: 314.3 | G7: 50830.89 | H7: 65018.99 | I7: 3422.052105 | J7: 20686.92014 | K7: 50830.89 | L7: 65018.97 | M7: 12706528.94 | N7: 32845.48 | O7: 29968.45 | P7: 32424.1
A8: Jun-20 | B8: 5377 | C8: 28 | D8: 3481 | E8: 22 | F8: 555.78 | G8: 108236.37 | H8: 110192.7 | I8: 5008.759091 | J8: 19826.67602 | K8: 108236.37 | L8: 110192.67 | M8: 13915689.83 | N8: 35706.55 | O8: 32348.1 | P8: 34915.8
A9: Jul-20 | B9: 5399 | C9: 27 | D9: 3624 | E9: 23 | F9: 513.7 | G9: 98513.1 | H9: 80092.74 | I9: 3482.293043 | J9: 15591.34514 | K9: 98513.1 | L9: 80092.73 | M9: 14739115.83 | N9: 38617.03 | O9: 34927.2 | P9: 37606.89 | Q9: 0
A10: Aug-20 | B10: 5413 | C10: 27 | D10: 3605 | E10: 21 | F10: 484.21 | G10: 99670 | H10: 93079.96 | I10: 4432.379048 | J10: 19223.05611 | K10: 99670 | L10: 93079.99 | M10: 15376302.71 | N10: 40010.17 | O10: 36911.23 | P10: 38628.29
A11: 2020-09-01 | B11: 5428 | C11: 28 | D11: 3587 | E11: 22 | F11: 402.69 | G11: 78826.51 | H11: 70025.27 | I11: 3182.966818 | J11: 17389.37396 | K11: 78826.51 | L11: 70025.27 | M11: 15524267.37 | N11: 39359.51 | O11: 36495.98 | P11: 38067.93
A12: Oct-20 | B12: 5437 | C12: 28 | D12: 3543 | E12: 21 | F12: 364.27 | G12: 54524.33 | H12: 57866.31 | I12: 2755.538571 | J12: 15885.55467 | K12: 54524.33 | L12: 57866.31 | M12: 15792249.91 | N12: 41048.05 | O12: 38410.2 | P12: 39614.07
A13: Nov-20 | B13: 5442 | C13: 28 | D13: 3551 | E13: 20 | F13: 412.17 | G13: 68336.34 | H13: 70675.89 | I13: 3533.7945 | J13: 17147.2669 | K13: 68336.34 | L13: 70675.88 | M13: 17414859.59 | N13: 44825.37 | O13: 39334.92 | P13: 44149.72
A14: Dec- 20 | B14: 5454 | C14: 28 | D14: 3662 | E14: 22 | F14: 538.81 | G14: 130255.78 | H14: 99414.8 | I14: 4518.854545 | J14: 18450.80826 | K14: 130255.78 | L14: 99414.8 | M14: 18803518.6 | N14: 47896.97 | O14: 44118.1 | P14: 47751.33
A15: Notes -
A16: $ indicates as on December 31, 2020
A17: Source: BSE .
E20: =SUM(E6:E13) -> 166 | F20: =SUM(F6:F13) -> 3396.26 | G20: 597823.6 | H20: 591428.2 | I20: 28288.69095 | J20: =SUM(J6:J13) -> 138489.0198 | K20: 597823.6 | L20: 591428.16
E21: =E5-E20 -> 22 | F21: =F5-F20 -> 538.81 | G21: 130255.78 | H21: 99414.8 | I21: =I20/8 -> 3536.086369 | J21: =J20/8 -> 17311.12747 | K21: 130255.78 | L21: 99414.8
I23: =H6/E6 -> 2470.907778 | J23: =I23-I6 -> -2.222222975e-07 | K23: =H6/F6*100 -> 12738.82683 | L23: =K23-J6 -> 1.643466021e-06
I24: 3422.052105 | J24: 1.577973308e-10 | K24: 20686.92014 | L24: -3.637978807e-10
I25: 5008.759091 | J25: 9.003997548e-11 | K25: 19826.67602 | L25: -2.437445801e-10
I26: 3482.293043 | J26: 2.610249794e-10 | K26: 15591.34514 | L26: -3.801687853e-10
I27: 4432.379048 | J27: 4.820321919e-11 | K27: 19223.05611 | L27: -4.838511813e-10
I28: 3182.966818 | J28: -1.818989404e-10 | K28: 17389.37396 | L28: 2.07364792e-10
I29: 2755.538571 | J29: -4.288267519e-10 | K29: 15885.55467 | L29: -1.928128768e-10
I30: 3533.7945 | J30: 0 | K30: 17147.2669 | L30: 0

Sheet 18
A1: Table 18: Trends in Cash Segment of NSE
A2: Year / Month | B2: No. of Companies Listed | C2: No. of Companies Permitted | D2: No. of companies traded | E2: No. of Trading Days | F2: No. of Trades (Lakh) | G2: Traded Quantity (Lakh) | H2: Turnover (₹ crore) | I2: Average Daily Turnover (₹crore) | J2: Average Trade Size (₹) | K2: Demat Securities Traded (Lakh) | L2: Demat Turnover (` crore) | M2: Market Capitalisation (` crore) | N2: Nifty 50 Index
N3: High | O3: Low | P3: Close
A4: 2019-20 | B4: 1949 | C4: 18 | D4: 1989 | E4: 247 | F4: 31459.71247 | G4: 4674056.682 | H4: 8998811.071 | I4: 36432.43348 | J4: 28604.23813 | K4: 4674056.682 | L4: 8998811.071 | M4: 11243111.77 | N4: 12430.5 | O4: 7511.1 | P4: 8597.75
A5: 2020-21$ | B5: 1962 | C5: 22 | D5: 1994 | E5: 188 | F5: 33366.536 | G5: 5356910.014 | H5: 10922052.89 | I5: 58096.026 | J5: 32733.55342 | K5: 5356910.014 | L5: 10922052.89 | M5: 18646768.6 | N5: 14024.85 | O5: 8055.8 | P5: 13981.75
A6: Apr-20 | B6: 1949 | C6: 18 | D6: 1855 | E6: 18 | F6: 3606.19038 | G6: 427307.91 | H6: 905802.22 | I6: 50322.34556 | J6: 25117.98115 | K6: 427307.91 | L6: 905802.22 | M6: 12738625.88 | N6: 9889.05 | O6: 8055.8 | P6: 9859.9
A7: May-20 | B7: 1947 | C7: 18 | D7: 1854 | E7: 19 | F7: 3417.96702 | G7: 493359.2655 | H7: 1000456.48 | I7: 52655.60421 | J7: 29270.51297 | K7: 493359.2655 | L7: 1000456.48 | M7: 12516959.59 | N7: 9598.85 | O7: 8806.75 | P7: 9580.3
A8: Jun-20 | B8: 1944 | C8: 18 | D8: 1872 | E8: 22 | F8: 4304.02717 | G8: 845760.3684 | H8: 1350680.724 | I8: 61394.57836 | J8: 31381.78897 | K8: 845760.3684 | L8: 1350680.724 | M8: 13804601.48 | N8: 10553.15 | O8: 9544.35 | P8: 10302.1
A9: Jul-20 | B9: 1941 | C9: 18 | D9: 1886 | E9: 23 | F9: 3950.46271 | G9: 667758.1397 | H9: 1348520.985 | I9: 58631.34716 | J9: 34135.77304 | K9: 667758.1397 | L9: 1348520.985 | M9: 14629658.61 | N9: 11341.4 | O9: 10299.6 | P9: 11073.45
A10: Aug-20 | B10: 1943 | C10: 18 | D10: 1886 | E10: 21 | F10: 3783.65128 | G10: 659450.225 | H10: 1282556.535 | I10: 61074.1207 | J10: 33897.32403 | K10: 659450.225 | L10: 1282556.535 | M10: 15234206.7 | N10: 11794.25 | O10: 10882.25 | P10: 11387.5
A11: Sep-20 | B11: 1946 | C11: 18 | D11: 1892 | E11: 22 | F11: 3596.49061 | G11: 574785.8484 | H11: 1223328.734 | I11: 55605.85152 | J11: 34014.5121 | K11: 574785.8484 | L11: 1223328.734 | M11: 15304722.35 | N11: 11618.1 | O11: 10790.2 | P11: 11247.55
A12: Oct-20 | B12: 1959 | C12: 22 | D12: 1908 | E12: 21 | F12: 3181.93019 | G12: 418797.6797 | H12: 1098883.765 | I12: 52327.79831 | J12: 34535.13116 | K12: 418797.6797 | L12: 1098883.765 | M12: 15587902.94 | N12: 12025.45 | O12: 11347.05 | P12: 11642.4
A13: Nov-20 | B13: 1959 | C13: 22 | D13: 1899 | E13: 20 | F13: 3438.15945 | G13: 530520.0785 | H13: 1337271.915 | I13: 66863.6 | J13: 38894.9941 | K13: 530520.0785 | L13: 1337271.915 | M13: 17271314.45 | N13: 13145.85 | O13: 11557.4 | P13: 12968.95
A14: Dec-20 | B14: 1962 | C14: 22 | D14: 1908 | E14: 22 | F14: 4087.65719 | G14: 739170.4983 | H14: 1374551.531 | I14: 62479.61504 | J14: 33626.87885 | K14: 739170.4983 | L14: 1374551.531 | M14: 18646768.6 | N14: 14024.85 | O14: 12962.8 | P14: 13981.75
A15: Notes -
A16: Turnover Data compiled for all markets except auction market
A17: $ indicates as on December 31, 2020
A18: Source: NSE

Sheet 19
A1: Table 19: Trends in Cash Segment of MSEI
A2: Year/Month | B2: No. of Companies Listed | C2: No. of Companies Permitted | D2: No. of Companies Traded | E2: No. of Trading Days | F2: No. of Trades (Lakh) | G2: Traded Quantity (Lakh) | H2: Turnover (₹ crore) | I2: Average Daily Turnover (₹ crore) | J2: Average Trade Size (₹) | K2: Demat Securities Traded (Lakh) | L2: Demat Turnover (₹ crore) | M2: Market Capitalisation (₹ crore) * | N2: SX 50 Index
N3: High | O3: Low | P3: Close
A4: 2019-20 | B4: 295 | C4: 1256 | D4: 15 | E4: 247 | F4: 0.0075 | G4: 12.98218 | H4: 27.98824717 | I4: 0.113312742 | J4: 373176.6289 | K4: 15.34975823 | L4: 20.30463782 | M4: 11034810.51 | N4: 24440.1 | O4: 15102.84 | P4: 17120.96
A5: 2020-21$ | B5: 297 | C5: 1240 | D5: 6 | E5: 188 | F5: 0.00281 | G5: 1.43022 | H5: 5.08704725 | I5: 0.02705876197 | J5: 181033.71 | K5: 0 | L5: 0 | M5: 18054395.31 | N5: 27763.61 | O5: 16065.53 | P5: 27763.61
A6: Apr-20 | B6: 296 | C6: 1257 | D6: 3 | E6: 18 | F6: 0.00013 | G6: 0.19211 | H6: 0.692056 | I6: 0.038447556 | J6: 532350.7692 | K6: 0 | L6: 0 | M6: 12577219.92 | N6: 19582.8 | O6: 16065.53 | P6: 19582.82
A7: May-20 | B7: 295 | C7: 1257 | D7: 0 | E7: 19 | F7: 0 | G7: 0 | H7: 0 | I7: 0 | J7: 0 | K7: 0 | L7: 0 | M7: 12348176.5 | N7: 18975.6 | O7: 17527.78 | P7: 18975.6
A8: Jun-20 | B8: 295 | C8: 1256 | D8: 3 | E8: 22 | F8: 0.00018 | G8: 0.19714 | H8: 0.7096088 | I8: 0.032254945 | J8: 394227.1111 | K8: 0 | L8: 0 | M8: 13487770.94 | N8: 20692.27 | O8: 19439.25 | P8: 20394.99
A9: Jul-20 | B9: 296 | C9: 1257 | D9: 1 | E9: 23 | F9: 7e-05 | G9: 0.0591 | H9: 0.21276 | I9: 0.009250435 | J9: 303942.8571 | K9: 0 | L9: 0 | M9: 14394821.94 | N9: 22504.43 | O9: 20643.12 | P9: 22015.44
A10: Aug-20 | B10: 297 | C10: 1258 | D10: 2 | E10: 21 | F10: 0.00029 | G10: 0.32501 | H10: 1.153661 | I10: 0.054936238 | J10: 397814.1379 | K10: 0 | L10: 0 | M10: 14933471.63 | N10: 23093.36 | O10: 21661.75 | P10: 22609.56
A11: 2020-09-01 | B11: 297 | C11: 1260 | D11: 4 | E11: 22 | F11: 0.00111 | G11: 0.32167 | H11: 1.14371145 | I11: 0.051986884 | J11: 103037.0676 | K11: 0 | L11: 0 | M11: 14948126.76 | N11: 23068.57 | O11: 21505 | P11: 22386.29
A12: Oct-20 | B12: 297 | C12: 1255 | D12: 1 | E12: 21 | F12: 0.0006 | G12: 0.18305 | H12: 0.640675 | I12: 0.030508333 | J12: 106779.1667 | K12: 0 | L12: 0 | M12: 15176584.51 | N12: 23871.67 | O12: 22720.35 | P12: 23186.74
A13: Nov-20 | B13: 298 | C13: 1254 | D13: 2 | E13: 20 | F13: 0.00019 | G13: 0.0786 | H13: 0.28305 | I13: =H13/E13 -> 0.0141525 | J13: =H13/(F13/100) -> 148973.6842 | K13: 0 | L13: 0 | M13: 16730075.9 | N13: 25893.97 | O13: 23186.74 | P13: 25707.37
A14: 2020-12-01 | B14: 297 | C14: 1240 | D14: 3 | E14: 22 | F14: 0.00024 | G14: 0.07354 | H14: 0.251525 | I14: 0.01143295455 | J14: 104802.0833 | K14: 0 | L14: 0 | M14: 18054395.31 | N14: 27763.61 | O14: 25707.37 | P14: 27763.61
A15: Notes -
A16: * The data of the Market Capitalization provided in the Bulletin includes listed as well as permitted to trade companies
A17: $ indicates as on December 31, 2020
A18: Source: MSEI

Sheet 20
A1: Table 20: City-wise Distribution of Turnover on Cash Segments
A2: (Percentage share in Turnover)
A3: S.No | B3: City | C3: BSE | E3: NSE | G3: MSEI
C4: 2019-20 | D4: 2020-12-01 | E4: 2019-20 | F4: 2020-12-01 | G4: 2019-20 | H4: 2020-12-01
A5: 1 | B5: Ahmedabad | C5: 2.205511324 | D5: 13.1795017 | E5: 1.65 | F5: 5.49 | G5: 1.04 | H5: 0
A6: 2 | B6: Bengaluru | C6: 1.1804078 | D6: 0.3622275617 | E6: 3.22 | F6: 1.3 | G6: 0 | H6: 0
A7: 3 | B7: Vadodra | C7: 0.730764059 | D7: 0.4382653079 | E7: 0.24 | F7: 0.17 | G7: 0 | H7: 0
A8: 4 | B8: Bhubneshwar | C8: 0.016662055 | D8: 0.01060821307 | E8: 0 | F8: 0 | G8: 0 | H8: 0
A9: 5 | B9: Chennai | C9: 0.733786792 | D9: 0.1888510478 | E9: 0.87 | F9: 4.07 | G9: 0 | H9: 0
A10: 6 | B10: Cochin/Ernakulum | C10: 0.080620224 | D10: 0.04999527603 | E10: 0.7 | F10: 0.61 | G10: 0 | H10: 0
A11: 7 | B11: Coimbatore | C11: 0.025038392 | D11: 0.01632548691 | E11: 0.05 | F11: 0.69 | G11: 0 | H11: 0
A12: 8 | B12: New Delhi | C12: 1.080805639 | D12: 1.444089447 | E12: 5.92 | F12: 0.05 | G12: 48.72 | H12: 50.03975748
A13: 9 | B13: Guwahati | C13: 0.027876812 | D13: 0.0209858942 | E13: 0 | F13: 4.92 | G13: 0 | H13: 0
A14: 10 | B14: Hyderabad | C14: 0.280567373 | D14: 0.08227835601 | E14: 3.13 | F14: 0 | G14: 0 | H14: 0
A15: 11 | B15: Indore | C15: 0.246330406 | D15: 0.3530431076 | E15: 0.3 | F15: 3.08 | G15: 0 | H15: 1.645959646
A16: 12 | B16: Jaipur | C16: 0.4909551 | D16: 0.3313155074 | E16: 0.3 | F16: 0.44 | G16: 0 | H16: 43.26905874
A17: 13 | B17: Kanpur | C17: 0.252796584 | D17: 0.2123339926 | E17: 0.08 | F17: 0.27 | G17: 1.93 | H17: 0
A18: 14 | B18: Kolkata | C18: 3.411444209 | D18: 3.531788431 | E18: 5.24 | F18: 0.14 | G18: 0 | H18: 0
A19: 15 | B19: Ludhiana | C19: 0.073506303 | D19: 0.1032417989 | E19: 0.11 | F19: 0.07 | G19: 0 | H19: 0
A20: 16 | B20: Mangalore | C20: 0.013216734 | D20: 0.01306161043 | E20: 0 | F20: 0 | G20: 0 | H20: 0
A21: 17 | B21: Mumbai | C21: 51.07366618 | D21: 41.03437191 | E21: 64.04 | F21: 69.03 | G21: 21.1 | H21: 0
A22: 18 | B22: Patna | C22: 0.033395599 | D22: 0.01919756175 | E22: 0 | F22: 0 | G22: 0 | H22: 0
A23: 19 | B23: Pune | C23: 0.263635306 | D23: 0.1727691204 | E23: 0.08 | F23: 0.19 | G23: 0 | H23: 0
A24: 20 | B24: Rajkot | C24: 1.609832749 | D24: 1.487230437 | E24: 1.07 | F24: 0.8 | G24: 0 | H24: 0
A25: 21 | B25: Others | C25: 36.16918036 | D25: 36.94851824 | E25: 13 | F25: 8.69 | G25: 27.21 | H25: 5.045224133
B26: Total | C26: 100 | D26: 100 | E26: 100 | F26: 100 | G26: 100 | H26: 100
A27: Notes -
A28: The city-wise distribution of turnover is based on the cities uploaded in the UCC database of the Exchange for clientele trades and members registered office city for proprietary trades.
A29: Source: BSE, NSE and MSEI.

Sheet 21
A1: Table 21: Category-wise Share of Turnover in Cash Segment of BSE
A2: Year / Month | B2: Percentage Share in Turnover
B3: Proprietary | C3: FPIs | D3: Mutual Funds | E3: Banks | F3: Others
A4: 2019-20 | B4: 27.63833065 | C4: 9.976644983 | D4: 7.335572939 | E4: 0.116972822 | F4: 54.93247861
A5: 2020-21$ | B5: 32.07458046 | C5: 12.58251517 | D5: 2.911902048 | E5: 0.07993218265 | F5: 52.35107014
A6: Apr-20 | B6: 38.65 | C6: 9.98 | D6: 2.74 | E6: 0.01 | F6: 48.61
A7: May-20 | B7: 28.1 | C7: 22 | D7: 5.33 | E7: 0.02 | F7: 44.54
A8: Jun-20 | B8: 27.04 | C8: 24 | D8: 2.89 | E8: 0.01 | F8: 46.06
A9: Jul-20 | B9: 36.62 | C9: 3.13 | D9: 2.26 | E9: 0.01 | F9: 57.98
A10: Aug-20 | B10: 30.41 | C10: 8.97 | D10: 1.91 | E10: 0.1 | F10: 58.61
A11: Sept-20 | B11: 33.79 | C11: 7.81 | D11: 2.99 | E11: 0.05 | F11: 55.36
A12: Oct-20 | B12: 33.32 | C12: 10.69 | D12: 2.51 | E12: 0.14 | F12: 53.34
A13: Nov-20 | B13: 32.47 | C13: 10.6 | D13: 1.97 | E13: 0.41 | F13: 54.55
A14: Dec-20 | B14: 33.02977737 | C14: 9.785646885 | D14: 3.735736565 | E14: 0.01820131574 | F14: 53.43063787
A15: Notes -
A16: $ indicates as on December 31, 2020
A17: Source: BSE.

Sheet 22
A1: Table 22: Category-wise Share of Turnover in Cash Segment of NSE
A2: Year /Month | B2: Percentage Share in Turnover
B3: Proprietary | C3: FPIs | D3: Mutual Funds | E3: Banks | F3: Others
A4: 2019-20 | B4: 22.74 | C4: 15.18 | D4: 7.47 | E4: 0.17 | F4: 54.45
A5: 2020-21$ | B5: 24.21 | C5: 11.26 | D5: 5.04 | E5: 0.09 | F5: 59.4
A6: Apr-20 | B6: 22.68 | C6: 13.45 | D6: 6.19 | E6: 0.06 | F6: 57.62
A7: May-20 | B7: 21.62 | C7: 13.44 | D7: 6.17 | E7: 0.05 | F7: 58.72
A8: Jun-20 | B8: 23.22 | C8: 9.32 | D8: 5 | E8: 0.17 | F8: 62.29
A9: Jul-20 | B9: 21.67 | C9: 8.16 | D9: 4.69 | E9: 0.08 | F9: 65.4
A10: Aug-20 | B10: 23.12 | C10: 9.05 | D10: 4.31 | E10: 0.12 | F10: 63.39
A11: 2020-09-01 | B11: 26.6 | C11: 10.38 | D11: 4.84 | E11: 0.09 | F11: 58.1
A12: Oct-20 | B12: 26.32 | C12: 11.29 | D12: 4.92 | E12: 0.07 | F12: 57.4
A13: 2020-11-01 | B13: 25.55 | C13: 16.49 | D13: 4.77 | E13: 0.06 | F13: 53.14
A14: Dec-20 | B14: 26.46 | C14: 10.95 | D14: 5.05 | E14: 0.09 | F14: 57.45
A15: Notes -
A16: $ indicates as on December 31, 2020
A17: Source: NSE.

Sheet 23
A1: Table 23: Category-wise Share of Turnover in Cash Segment of MSEI
A2: Year / Month | B2: Percentage Share in Turnover
B3: Proprietary | C3: FPIs | D3: Mutual Funds | E3: Banks | F3: Others
A4: 2019-20 | B4: 0 | C4: 0 | D4: 0 | E4: 0 | F4: 100
A5: 2020-21$ | B5: 0 | C5: 0 | D5: 0 | E5: 0 | F5: 100
A6: Apr-20 | B6: 0 | C6: 0 | D6: 0 | E6: 0 | F6: 100
A7: May-20 | B7: 0 | C7: 0 | D7: 0 | E7: 0 | F7: 0
A8: Jun-20 | B8: 0 | C8: 0 | D8: 0 | E8: 0 | F8: 100
A9: Jul-20 | B9: 0 | C9: 0 | D9: 0 | E9: 0 | F9: 100
A10: Aug-20 | B10: 0 | C10: 0 | D10: 0 | E10: 0 | F10: 100
A11: 2020-09-01 | B11: 0 | C11: 0 | D11: 0 | E11: 0 | F11: 100
A12: Oct-20 | B12: 0 | C12: 0 | D12: 0 | E12: 0 | F12: 100
A13: 2020-11-01 | B13: 0 | C13: 0 | D13: 0 | E13: 0 | F13: 100
A14: 2020-12-02 | B14: 0 | C14: 0 | D14: 0 | E14: 0 | F14: 100
A15: Notes -
A16: $ indicates as on December 31, 2020
A17: Source: MSEI.

Sheet 24
A1: Table 24: Component Stocks: S&P BSE Sensex during December 2020
A2: Sl.No | B2: Name of Security | C2: Issued Capital (₹ crore) | D2: Free Float Market Capitalisation ( ₹ crore) | E2: Weightage (per cent) | F2: Beta | G2: R2 | H2: Daily Volatility (per cent) | I2: Monthly Return (per cent) | J2: Impact Cost (per cent)
A3: 1 | B3: RELIANCE INDUSTRIES LTD. | C3: 6339.44 | D3: 641657.1141 | E3: 12.29482413 | F3: 1.07 | G3: 0.556882 | H3: 2.95 | I3: 2.839598 | J3: 0.03
A4: 2 | B4: HDFC BANK LTD. | C4: 550.77 | D4: 584675.1713 | E4: 11.20299027 | F4: 1.08 | G4: 0.714129 | H4: 2.62 | I4: -0.274172 | J4: 0.02
A5: 3 | B5: HOUSING DEVELOPMENT FINANCE CO | C5: 360.04 | D5: 460417.7673 | E5: 8.822087921 | F5: 1.22 | G5: 0.671081 | H5: 3.06 | I5: 13.335252 | J5: 0.03
A6: 4 | B6: INFOSYS LTD. | C6: 2129.79 | D6: 460029.7002 | E6: 8.814652148 | F6: 0.85 | G6: 0.476673 | H6: 2.52 | I6: 14.111126 | J6: 0.03
A7: 5 | B7: ICICI BANK LTD. | C7: 1380.72 | D7: 369016.8132 | E7: 7.070749658 | F7: 1.42 | G7: 0.727393 | H7: 3.42 | I7: 13.113367 | J7: 0.02
A8: 6 | B8: TATA CONSULTANCY SERVICES LTD. | C8: 375.24 | D8: 301562.672 | E8: 5.778257476 | F8: 0.71 | G8: 0.429678 | H8: 2.24 | I8: 7.130993 | J8: 0.02
A9: 7 | B9: KOTAK MAHINDRA BANK LTD. | C9: 990.11 | D9: 260730.5573 | E9: 4.995871279 | F9: 1.08 | G9: 0.57682 | H9: 2.92 | I9: 4.929929 | J9: 0.03
A10: 8 | B10: HINDUSTAN UNILEVER LTD. | C10: 234.96 | D10: 213703.631 | E10: 4.094785988 | F10: 0.59 | G10: 0.32293 | H10: 2.14 | I10: 11.994665 | J10: 0.03
A11: 9 | B11: ITC LTD. | C11: 1230.51 | D11: 182589.8885 | E11: 3.498614007 | F11: 0.66 | G11: 0.297997 | H11: 2.47 | I11: 7.898812 | J11: 0.03
A12: 10 | B12: AXIS BANK LTD. | C12: 612.28 | D12: 163289.398 | E12: 3.128796341 | F12: 1.59 | G12: 0.633607 | H12: 4.09 | I12: 3.031057 | J12: 0.04
A13: 11 | B13: LARSEN & TOUBRO LTD. | C13: 280.85 | D13: 155492.3946 | E13: 2.979397569 | F13: 0.95 | G13: 0.55497 | H13: 2.62 | I13: 15.392543 | J13: 0.09
A14: 12 | B14: BAJAJ FINANCE LIMITED | C14: 120.52 | D14: 140417.2331 | E14: 2.690541643 | F14: 1.5 | G14: 0.583903 | H14: 4.03 | I14: 8.008891 | J14: 0.02
A15: 13 | B15: ASIAN PAINTS LTD. | C15: 95.92 | D15: 124627.7808 | E15: 2.387999156 | F15: 0.69 | G15: 0.39584 | H15: 2.26 | I15: 24.673596 | J15: 0.04
A16: 14 | B16: BHARTI AIRTEL LTD. | C16: 2727.78 | D16: 122254.6679 | E16: 2.342527821 | F16: 0.77 | G16: 0.329778 | H16: 2.76 | I16: 9.928771 | J16: 0.06
A17: 15 | B17: STATE BANK OF INDIA | C17: 892.46 | D17: 105437.3138 | E17: 2.020289655 | F17: 1.15 | G17: 0.595125 | H17: 3.05 | I17: 12.464183 | J17: 0.04
A18: 16 | B18: HCL TECHNOLOGIES LTD. | C18: 542.73 | D18: 102679.6563 | E18: 1.967450042 | F18: 0.74 | G18: 0.371071 | H18: 2.5 | I18: 15.051082 | J18: 0.03
A19: 17 | B19: MARUTI SUZUKI INDIA LTD. | C19: 151.04 | D19: 101676.1405 | E19: 1.948221626 | F19: 1.08 | G19: 0.548623 | H19: 2.99 | I19: 8.866181 | J19: 0.04
A20: 18 | B20: MAHINDRA & MAHINDRA LTD. | C20: 621.6 | D20: 68980.05544 | E20: 1.3217303 | F20: 0.98 | G20: 0.411301 | H20: 3.12 | I20: 0.076383 | J20: 0.04
A21: 19 | B21: NESTLE INDIA LTD. | C21: 96.42 | D21: 65612.72225 | E21: 1.25720866 | F21: 0.54 | G21: 0.276949 | H21: 2.1 | I21: 4.161097 | J21: 0.05
A22: 20 | B22: TITAN COMPANY LIMITED | C22: 88.78 | D22: 65405.41408 | E22: 1.253236418 | F22: 0.88 | G22: 0.475681 | H22: 2.61 | I22: 15.439849 | J22: 0.05
A23: 21 | B23: SUN PHARMACEUTICAL INDUSTRIES | C23: 239.93 | D23: 63953.70157 | E23: 1.225420082 | F23: 0.61 | G23: 0.268462 | H23: 2.42 | I23: 15.795132 | J23: 0.04
A24: 22 | B24: DR.REDDYS LABORATORIES LTD. | C24: 83.14 | D24: 63167.75611 | E24: 1.210360542 | F24: 0.43 | G24: 0.158172 | H24: 2.2 | I24: 7.754265 | J24: 0.03
A25: 23 | B25: ULTRATECH CEMENT LTD. | C25: 288.64 | D25: 61012.55257 | E25: 1.169064579 | F25: 0.9 | G25: 0.547672 | H25: 2.49 | I25: 10.033834 | J25: 0.05
A26: 24 | B26: TECH MAHINDRA LTD. | C26: 483.71 | D26: 60221.42618 | E26: 1.153905766 | F26: 0.83 | G26: 0.405059 | H26: 2.67 | I26: 11.05975 | J26: 0.04
A27: 25 | B27: BAJAJ FINSERV LTD. | C27: 79.57 | D27: 53845.01325 | E27: 1.031726998 | F27: 1.37 | G27: 0.60546 | H27: 3.61 | I27: 1.704701 | J27: 0.04
A28: 26 | B28: INDUSIND BANK LTD. | C28: 757.1 | D28: 50775.41335 | E28: 0.9729102408 | F28: 1.7 | G28: 0.404188 | H28: 5.48 | I28: 4.349093 | J28: 0.03
A29: 27 | B29: POWER GRID CORPORATION OF INDI | C29: 5231.59 | D29: 48654.83332 | E29: 0.9322777005 | F29: 0.58 | G29: 0.3 | H29: 2.19 | I29: -1.402597 | J29: 0.06
A30: 28 | B30: NTPC LTD. | C30: 9894.56 | D30: 48143.95086 | E30: 0.9224886561 | F30: 0.67 | G30: 0.324014 | H30: 2.41 | I30: 5.414012 | J30: 0.07
A31: 29 | B31: BAJAJ AUTO LTD. | C31: 289.37 | D31: 44887.92163 | E31: 0.8600997168 | F31: 0.8 | G31: 0.474583 | H31: 2.39 | I31: 8.653649 | J31: 0.05
A32: 30 | B32: OIL AND NATURAL GAS CORPORATIO | C32: 6290.14 | D32: 34001.97808 | E32: 0.6515136067 | F32: 1.03 | G32: 0.373667 | H32: 3.45 | I32: 18.726114 | J32: 0.06
A33: Notes: 1. Beta & R2 are calculated for the trailing 12 months. Beta measures the degree to which any portfolio of stocks is affected as compared to the effect on the market as a whole.
A34: 2. The coefficient of determination (R2) measures the strength of relationship between two variables the return on a security versus that of the market.
A35: 3. Volatility is the standard deviation of the daily returns for the trailing 12 months.
A36: 4. Impact cost is calculated as the difference between actual buy price and ideal buy price, divided by ideal buy price, multiplied by 100. Hence ideal price is calculated as (best buy + best sell)/2. The above is calculated for a month for the portfolio size of ` 5 lakh. It is calculated for the current month.
A37: Source: BSE.

Sheet 25
A1: Table 25: Component Stocks: Nifty 50 Index during December 2020
A2: Sl. No | B2: Name of Security | C2: Issued Capital (₹ crore) | D2: Free Float Market Capitalisation (₹ crore) | E2: Weightage (per cent) | F2: Beta | G2: R2 | H2: Daily Volatility (per cent) | I2: Monthly Return (per cent) | J2: Impact Cost (per cent)
A3: 1 | B3: Reliance Industries Ltd. | C3: 6339.41 | D3: 641867.24 | E3: 10.66 | F3: 1.11 | G3: 0.55 | H3: 1.05 | I3: 2.88 | J3: 0.01
A4: 2 | B4: HDFC Bank Ltd. | C4: 550.31 | D4: 624427.17 | E4: 10.37 | F4: 1.09 | G4: 0.69 | H4: 1.4 | I4: -0.32 | J4: 0.02
A5: 3 | B5: Infosys Ltd. | C5: 2129.7 | D5: 460009.57 | E5: 7.64 | F5: 0.87 | G5: 0.46 | H5: 1.3 | I5: 14.16 | J5: 0.02
A6: 4 | B6: Housing Development Finance Corporation Ltd. | C6: 358.26 | D6: 458332.33 | E6: 7.61 | F6: 1.25 | G6: 0.65 | H6: 1.45 | I6: 13.4 | J6: 0.02
A7: 5 | B7: ICICI Bank Ltd. | C7: 1379.2 | D7: 368970.24 | E7: 6.12 | F7: 1.44 | G7: 0.71 | H7: 1.66 | I7: 13.03 | J7: 0.03
A8: 6 | B8: Tata Consultancy Services Ltd. | C8: 375.24 | D8: 300779.9 | E8: 4.99 | F8: 0.72 | G8: 0.41 | H8: 1.08 | I8: 6.83 | J8: 0.02
A9: 7 | B9: Kotak Mahindra Bank Ltd. | C9: 989.6 | D9: 292278.33 | E9: 4.85 | F9: 1.09 | G9: 0.55 | H9: 1.31 | I9: 4.64 | J9: 0.02
A10: 8 | B10: Hindustan Unilever Ltd. | C10: 234.96 | D10: 213868.83 | E10: 3.55 | F10: 0.63 | G10: 0.33 | H10: 1.36 | I10: 12.03 | J10: 0.02
A11: 9 | B11: ITC Ltd. | C11: 1230.47 | D11: 182589.89 | E11: 3.03 | F11: 0.67 | G11: 0.29 | H11: 1.67 | I11: 7.93 | J11: 0.03
A12: 10 | B12: Larsen & Toubro Ltd. | C12: 280.81 | D12: 157281.67 | E12: 2.61 | F12: 0.96 | G12: 0.54 | H12: 1.5 | I12: 14.72 | J12: 0.03
A13: 11 | B13: Axis Bank Ltd. | C13: 612.02 | D13: 153789.04 | E13: 2.55 | F13: 1.58 | G13: 0.62 | H13: 1.6 | I13: 3.13 | J13: 0.03
A14: 12 | B14: Bajaj Finance Ltd. | C14: 120.52 | D14: 140396.1 | E14: 2.33 | F14: 1.49 | G14: 0.56 | H14: 1.69 | I14: 7.87 | J14: 0.02
A15: 13 | B15: Asian Paints Ltd. | C15: 95.92 | D15: 124630.01 | E15: 2.07 | F15: 0.7 | G15: 0.39 | H15: 1.49 | I15: 24.79 | J15: 0.02
A16: 14 | B16: Bharti Airtel Ltd. | C16: 2727.78 | D16: 122350.69 | E16: 2.03 | F16: 0.77 | G16: 0.31 | H16: 1.56 | I16: 10.03 | J16: 0.03
A17: 15 | B17: State Bank of India | C17: 892.46 | D17: 105514.34 | E17: 1.75 | F17: 1.18 | G17: 0.59 | H17: 1.99 | I17: 12.57 | J17: 0.02
A18: 16 | B18: HCL Technologies Ltd. | C18: 542.73 | D18: 102701.37 | E18: 1.7 | F18: 0.77 | G18: 0.37 | H18: 1.37 | I18: 15.09 | J18: 0.03
A19: 17 | B19: Maruti Suzuki India Ltd. | C19: 151.04 | D19: 101674.83 | E19: 1.69 | F19: 1.12 | G19: 0.55 | H19: 1.83 | I19: 8.72 | J19: 0.02
A20: 18 | B20: Mahindra & Mahindra Ltd. | C20: 621.6 | D20: 68980.03 | E20: 1.15 | F20: 1.03 | G20: 0.42 | H20: 1.89 | I20: -0.19 | J20: 0.02
A21: 19 | B21: Nestle India Ltd. | C21: 96.42 | D21: 65605.04 | E21: 1.09 | F21: 0.58 | G21: 0.29 | H21: 1.41 | I21: 2.8 | J21: 0.03
A22: 20 | B22: Titan Company Ltd. | C22: 88.78 | D22: 65390.82 | E22: 1.09 | F22: 0.89 | G22: 0.46 | H22: 1.43 | I22: 15.13 | J22: 0.03
A23: 21 | B23: Sun Pharmaceutical Industries Ltd. | C23: 239.93 | D23: 63956.07 | E23: 1.06 | F23: 0.64 | G23: 0.28 | H23: 1.71 | I23: 15.77 | J23: 0.03
A24: 22 | B24: Dr. Reddy's Laboratories Ltd. | C24: 83.13 | D24: 63172.29 | E24: 1.05 | F24: 0.48 | G24: 0.18 | H24: 1.21 | I24: 7.79 | J24: 0.02
A25: 23 | B25: UltraTech Cement Ltd. | C25: 288.63 | D25: 61051.92 | E25: 1.01 | F25: 0.93 | G25: 0.55 | H25: 1.86 | I25: 10.12 | J25: 0.03
A26: 24 | B26: Tech Mahindra Ltd. | C26: 483.2 | D26: 60192.2 | E26: 1 | F26: 0.87 | G26: 0.42 | H26: 1.46 | I26: 10.99 | J26: 0.03
A27: 25 | B27: Wipro Ltd. | C27: 1142.9 | D27: 57387.77 | E27: 0.95 | F27: 0.67 | G27: 0.28 | H27: 1.71 | I27: 10.2 | J27: 0.02
A28: 26 | B28: Bajaj Finserv Ltd. | C28: 79.57 | D28: 53858.63 | E28: 0.89 | F28: 1.35 | G28: 0.59 | H28: 1.52 | I28: 1.68 | J28: 0.03
A29: 27 | B29: HDFC Life Insurance Company Ltd. | C29: 2019.34 | D29: 53277.17 | E29: 0.88 | F29: 1.08 | G29: 0.54 | H29: 1.38 | I29: 4.59 | J29: 0.02
A30: 28 | B30: IndusInd Bank Ltd. | C30: 756.31 | D30: 50764.69 | E30: 0.84 | F30: 1.68 | G30: 0.35 | H30: 2.29 | I30: 4.35 | J30: 0.03
A31: 29 | B31: Divi's Laboratories Ltd. | C31: 53.09 | D31: 48955.38 | E31: 0.81 | F31: 0.57 | G31: 0.23 | H31: 1.69 | I31: 6.57 | J31: 0.02
A32: 30 | B32: Power Grid Corporation of India Ltd. | C32: 5231.59 | D32: 48667.65 | E32: 0.81 | F32: 0.6 | G32: 0.3 | H32: 1.28 | I32: -1.33 | J32: 0.03
A33: 31 | B33: Tata Steel Ltd. | C33: 1126.49 | D33: 48579.35 | E33: 0.81 | F33: 1.11 | G33: 0.5 | H33: 1.83 | I33: 11.48 | J33: 0.03
A34: 32 | B34: NTPC Ltd. | C34: 9894.56 | D34: 48168.19 | E34: 0.8 | F34: 0.68 | G34: 0.32 | H34: 2.15 | I34: 4.91 | J34: 0.04
A35: 33 | B35: Bajaj Auto Ltd. | C35: 289.37 | D35: 44846.75 | E35: 0.74 | F35: 0.82 | G35: 0.46 | H35: 1.33 | I35: 8.52 | J35: 0.03
A36: 34 | B36: Britannia Industries Ltd. | C36: 24.07 | D36: 42185.04 | E36: 0.7 | F36: 0.74 | G36: 0.4 | H36: 0.99 | I36: -1.69 | J36: 0.02
A37: 35 | B37: Cipla Ltd. | C37: 161.27 | D37: 41652.65 | E37: 0.69 | F37: 0.46 | G37: 0.13 | H37: 1.46 | I37: 9.97 | J37: 0.02
A38: 36 | B38: Hero MotoCorp Ltd. | C38: 39.95 | D38: 40379.37 | E38: 0.67 | F38: 0.88 | G38: 0.39 | H38: 1.25 | I38: 0.04 | J38: 0.02
A39: 37 | B39: JSW Steel Ltd. | C39: 241.72 | D39: 38373.86 | E39: 0.64 | F39: 1.29 | G39: 0.63 | H39: 1.76 | I39: 10.57 | J39: 0.03
A40: 38 | B40: Grasim Industries Ltd. | C40: 131.59 | D40: 36627.52 | E40: 0.61 | F40: 1.14 | G40: 0.57 | H40: 1.32 | I40: 5.95 | J40: 0.02
A41: 39 | B41: Adani Ports and Special Economic Zone Ltd. | C41: 406.35 | D41: 35382.96 | E41: 0.59 | F41: 0.92 | G41: 0.43 | H41: 2.14 | I41: 17.54 | J41: 0.03
A42: 40 | B42: SBI Life Insurance Company Ltd. | C42: 1000.05 | D42: 35267.38 | E42: 0.59 | F42: 0.91 | G42: 0.49 | H42: 1.26 | I42: 6.88 | J42: 0.03
A43: 41 | B43: Eicher Motors Ltd. | C43: 27.32 | D43: 35266.13 | E43: 0.59 | F43: 0.86 | G43: 0.39 | H43: 1.46 | I43: -0.15 | J43: 0.02
A44: 42 | B44: Hindalco Industries Ltd. | C44: 224.63 | D44: 35122.34 | E44: 0.58 | F44: 1.41 | G44: 0.58 | H44: 2.39 | I44: 6.27 | J44: 0.03
A45: 43 | B45: Oil & Natural Gas Corporation Ltd. | C45: 6290.14 | D45: 33947.25 | E45: 0.56 | F45: 1.04 | G45: 0.35 | H45: 3 | I45: 18.54 | J45: 0.04
A46: 44 | B46: Tata Motors Ltd. | C46: 617.79 | D46: 32938.66 | E46: 0.55 | F46: 1.29 | G46: 0.44 | H46: 2.69 | I46: 1.94 | J46: 0.03
A47: 45 | B47: Shree Cement Ltd. | C47: 36.08 | D47: 32057.33 | E47: 0.53 | F47: 0.85 | G47: 0.49 | H47: 1.47 | I47: -1.21 | J47: 0.03
A48: 46 | B48: Bharat Petroleum Corporation Ltd. | C48: 2169.25 | D48: 30587.98 | E48: 0.51 | F48: 1.07 | G48: 0.42 | H48: 1.8 | I48: 2.17 | J48: 0.03
A49: 47 | B49: Coal India Ltd. | C49: 6162.73 | D49: 28381.21 | E49: 0.47 | F49: 0.67 | G49: 0.26 | H49: 2.1 | I49: 7.89 | J49: 0.04
A50: 48 | B50: UPL Ltd. | C50: 152.81 | D50: 25654.51 | E50: 0.43 | F50: 1.1 | G50: 0.42 | H50: 3.17 | I50: 11.65 | J50: 0.03
A51: 49 | B51: Indian Oil Corporation Ltd. | C51: 9414.16 | D51: 23117.88 | E51: 0.38 | F51: 0.74 | G51: 0.41 | H51: 2.15 | I51: 7.51 | J51: 0.04
A52: 50 | B52: GAIL (India) Ltd. | C52: 4510.14 | D52: 22790.87 | E52: 0.38 | F52: 0.82 | G52: 0.29 | H52: 2.6 | I52: 20.07 | J52: 0.04
A53: Notes: 1. Beta & R2 are calculated for the the trailing 12 months. Beta measures the degree to which any portfolio of stocks is affected as compared to the effect on the market as a whole.
A54: 2. The coefficient of determination (R2) measures the strength of relationship between two variables the return on a security versus that of the market.
A55: 3. Volatility is the standard deviation of the daily returns for the the trailing 12 months.
A56: 4. Impact cost is calculated as the difference between actual buy price and ideal buy price, divided by ideal buy price, multiplied by 100. Hence ideal price is calculated as (best buy + best sell)/2.
A57: 5. Impact Cost for Nifty 50 is for a portfolio of Rs. 50 lakhs and is weightage average impact cost.
A58: Source: NSE.

Sheet 26
A1: Table 26: Component Stocks: SX40 Index during December 2020
A2: S.No. | B2: Name of Security | C2: Issued Capital (₹ crore) | D2: Free Float Market Capitalisation (₹ crore) | E2: Weightage (per cent) | F2: Beta | G2: R2 | H2: Daily Volatility (per cent) | I2: Monthly Return (per cent) | J2: Impact Cost (per cent) *
A3: 1 | B3: HDFC Bank Limited | C3: 550.6545067 | D3: 623283.2981 | E3: 0.1106678071 | F3: 1.09 | G3: 0.69 | H3: NA | I3: NA | J3: Na
A4: 2 | B4: Reliance Industries Limited | C4: 6339.44072 | D4: 598825.1931 | E4: 0.1063251192 | F4: 1.12 | G4: 0.56 | H4: NA | I4: NA | J4: Na
A5: 3 | B5: Infosys Limited | C5: 2183.272549 | D5: 476925.3807 | E5: 0.0846810531 | F5: 0.88 | G5: 0.47 | H5: NA | I5: NA | J5: Na
A6: 4 | B6: Housing Development Finance Corporation Limited | C6: 348.658702 | D6: 445587.2991 | E6: 0.0791167827 | F6: 1.25 | G6: 0.65 | H6: NA | I6: NA | J6: Na
A7: 5 | B7: ICICI Bank Limited | C7: 1380.697555 | D7: 369153.536 | E7: 0.065545495 | F7: 1.44 | G7: 0.71 | H7: NA | I7: NA | J7: Na
A8: 6 | B8: Tata Consultancy Services Limited | C8: 375.2384706 | D8: 300257.4457 | E8: 0.0533125678 | F8: 0.73 | G8: 0.42 | H8: NA | I8: NA | J8: Na
A9: 7 | B9: Kotak Mahindra Bank Limited | C9: 990.1092575 | D9: 285633.7897 | E9: 0.0507160472 | F9: 1.09 | G9: 0.55 | H9: NA | I9: NA | J9: Na
A10: 8 | B10: Hindustan Unilever Limited | C10: 234.9556255 | D10: 214422.6493 | E10: 0.0380720685 | F10: 0.63 | G10: 0.33 | H10: NA | I10: NA | J10: Na
A11: 9 | B11: ITC Limited | C11: 1230.301304 | D11: 181483.0368 | E11: 0.0322234364 | F11: 0.67 | G11: 0.29 | H11: NA | I11: NA | J11: Na
A12: 10 | B12: Axis Bank Limited | C12: 612.185509 | D12: 162378.3029 | E12: 0.0288312726 | F12: 1.58 | G12: 0.61 | H12: NA | I12: NA | J12: Na
A13: 11 | B13: Larsen & Toubro Limited | C13: 280.7985744 | D13: 155984.3338 | E13: 0.0276959839 | F13: 0.96 | G13: 0.53 | H13: NA | I13: NA | J13: Na
A14: 12 | B14: Bajaj Finance Limited | C14: 120.5099678 | D14: 138981.1658 | E14: 0.0246769661 | F14: 1.47 | G14: 0.55 | H14: NA | I14: NA | J14: Na
A15: 13 | B15: Asian Paints Limited | C15: 95.919779 | D15: 125180.1914 | E15: 0.0222265177 | F15: 0.7 | G15: 0.38 | H15: NA | I15: NA | J15: Na
A16: 14 | B16: Bharti Airtel Limited | C16: 2727.778677 | D16: 121637.1876 | E16: 0.0215974355 | F16: 0.77 | G16: 0.32 | H16: NA | I16: NA | J16: Na
A17: 15 | B17: State Bank of India | C17: 892.4611534 | D17: 105232.2095 | E17: 0.0186846301 | F17: 1.17 | G17: 0.58 | H17: NA | I17: NA | J17: Na
A18: 16 | B18: HCL Technologies Limited | C18: 542.7330192 | D18: 101850.6653 | E18: 0.018084216 | F18: 0.78 | G18: 0.38 | H18: NA | I18: NA | J18: Na
A19: 17 | B19: Maruti Suzuki India Limited | C19: 151.04003 | D19: 100818.8961 | E19: 0.017901019 | F19: 1.12 | G19: 0.55 | H19: NA | I19: NA | J19: Na
A20: 18 | B20: Mahindra & Mahindra Limited | C20: 621.596272 | D20: 69012.47437 | E20: 0.0122535919 | F20: 1.02 | G20: 0.41 | H20: NA | I20: NA | J20: Na
A21: 19 | B21: Nestle India Ltd | C21: 96.415716 | D21: 66022.16896 | E21: 0.0117226447 | F21: 0.58 | G21: 0.29 | H21: NA | I21: NA | J21: Na
A22: 20 | B22: Dr. Reddy's Laboratories Limited | C22: 85.68308 | D22: 65850.47952 | E22: 0.0116921602 | F22: 0.48 | G22: 0.17 | H22: NA | I22: NA | J22: Na
A23: 21 | B23: Titan Company Limited | C23: 88.778616 | D23: 65535.74317 | E23: 0.0116362768 | F23: 0.89 | G23: 0.46 | H23: NA | I23: NA | J23: Na
A24: 22 | B24: Sun Pharmaceuticals Industries Limited | C24: 239.927533 | D24: 64396.78499 | E24: 0.0114340477 | F24: 0.64 | G24: 0.27 | H24: NA | I24: NA | J24: Na
A25: 23 | B25: Tech Mahindra Limited | C25: 494.004095 | D25: 62412.70982 | E25: 0.0110817629 | F25: 0.87 | G25: 0.42 | H25: NA | I25: NA | J25: Na
A26: 24 | B26: UltraTech Cement Limited | C26: 288.636906 | D26: 61084.94469 | E26: 0.01084601 | F26: 0.93 | G26: 0.55 | H26: NA | I26: NA | J26: Na
A27: 25 | B27: Wipro Limited | C27: 1143.067618 | D27: 56527.27039 | E27: 0.0100367667 | F27: 0.68 | G27: 0.28 | H27: NA | I27: NA | J27: Na
A28: 26 | B28: HDFC Life Insurance Company Limited | C28: 2019.930651 | D28: 54090.60262 | E28: 0.0096041213 | F28: 0.86 | G28: 0.21 | H28: NA | I28: NA | J28: Na
A29: 27 | B29: IndusInd Bank Limited | C29: 757.104998 | D29: 50769.53371 | E29: 0.0090144449 | F29: 1.67 | G29: 0.35 | H29: NA | I29: NA | J29: Na
A30: 28 | B30: Power Grid Corporation of India Limited | C30: 5231.589648 | D30: 48330.4418 | E30: 0.0085813691 | F30: 0.6 | G30: 0.29 | H30: NA | I30: NA | J30: Na
A31: 29 | B31: NTPC Limited | C31: 9894.55728 | D31: 48149.57783 | E31: 0.0085492555 | F31: 0.67 | G31: 0.31 | H31: NA | I31: NA | J31: Na
A32: 30 | B32: Tata Steel Limited | C32: 1126.492374 | D32: 45836.48669 | E32: 0.0081385519 | F32: 1.11 | G32: 0.5 | H32: NA | I32: NA | J32: Na
A33: 31 | B33: Britannia Industries Limited | C33: 24.0868296 | D33: 42599.83751 | E33: 0.0075638648 | F33: 0.74 | G33: 0.4 | H33: NA | I33: NA | J33: Na
A34: 32 | B34: Cipla Limited | C34: 161.2892202 | D34: 41896.20661 | E34: 0.0074389308 | F34: 0.41 | G34: 0.04 | H34: NA | I34: NA | J34: Na
A35: 33 | B35: Bajaj Auto Limited | C35: 289.36702 | D35: 41546.89767 | E35: 0.0073769088 | F35: 0.81 | G35: 0.46 | H35: NA | I35: NA | J35: Na
A36: 34 | B36: Hero MotoCorp Limited | C36: 39.953522 | D36: 40531.23952 | E36: 0.0071965724 | F36: 0.87 | G36: 0.39 | H36: NA | I36: NA | J36: Na
A37: 35 | B37: Grasim Industries Limited | C37: 131.5878458 | D37: 35943.8995 | E37: 0.0063820618 | F37: 1.13 | G37: 0.56 | H37: NA | I37: NA | J37: Na
A38: 36 | B38: Adani Ports And Special Economic Zone Limited | C38: 406.3503522 | D38: 35722.31282 | E38: 0.0063427177 | F38: 0.92 | G38: 0.43 | H38: NA | I38: NA | J38: Na
A39: 37 | B39: Hindalco Industries Limited | C39: 224.6582938 | D39: 35174.50116 | E39: 0.0062454504 | F39: 1.4 | G39: 0.58 | H39: NA | I39: NA | J39: Na
A40: 38 | B40: Oil & Natural Gas Corporation Limited | C40: 6290.139603 | D40: 34292.49816 | E40: 0.0060888453 | F40: 1.04 | G40: 0.34 | H40: NA | I40: NA | J40: Na
A41: 39 | B41: Bharat Petroleum Corporation Limited | C41: 2169.214044 | D41: 30449.56088 | E41: 0.005406508 | F41: 1.07 | G41: 0.41 | H41: NA | I41: NA | J41: Na
A42: 40 | B42: Coal India Limited | C42: 6162.728327 | D42: 28209.20198 | E42: 0.0050087184 | F42: 0.66 | G42: 0.26 | H42: NA | I42: NA | J42: Na
A43: Notes:
A44: 1. Market Cap, Beta & R2 as on the last day of the month
A45: 2. Beta & R2 are calculated for the trailing 12 months
A46: 3. Volatility for the current month
A47: 4. *Since there is no trading in the SX40 constituents, the Impact Cost for the given stocks is NiL.
A48: Source: MSEI.

Sheet 27
A1: Table 27: Advances/Declines in Cash Segment
A2: Year/ Month | B2: BSE | E2: NSE | H2: MSEI
B3: Advances | C3: Declines | D3: Advance/Decline Ratio | E3: Advances | F3: Declines | G3: Advance/Decline Ratio | H3: Advances | I3: Declines | J3: Advance/Decline Ratio
A4: 2019-20 | B4: 793 | C4: 3134 | D4: 0.25303127 | E4: 440 | F4: 1530 | G4: 0.29 | H4: 6 | I4: 3 | J4: 2
A5: 2020-21$ | B5: 1346 | C5: 2436 | D5: 0.552545156 | E5: 684 | F5: 1280 | G5: 0.53 | H5: 0 | I5: 2 | J5: 0
A6: Apr-20 | B6: 1291 | C6: 1932 | D6: 0.668219462 | E6: 825 | F6: 1094 | G6: 0.75 | H6: 0 | I6: 0 | J6: 0
A7: May-20 | B7: 1410 | C7: 1780 | D7: 0.792134831 | E7: 914 | F7: 977 | G7: 0.94 | H7: 0 | I7: 0 | J7: 0
A8: Jun-20 | B8: 2699 | C8: 585 | D8: 4.613675214 | E8: 1753 | F8: 147 | G8: 11.93 | H8: 0 | I8: 0 | J8: 0
A9: Jul-20 | B9: 2243 | C9: 1240 | D9: 1.808870968 | E9: 1387 | F9: 530 | G9: 2.62 | H9: 0 | I9: 0 | J9: 0
A10: Aug-20 | B10: 2322 | C10: 1232 | D10: 1.88474026 | E10: 1457 | F10: 496 | G10: 2.94 | H10: 0 | I10: 0 | J10: 0
A11: 2020-09-01 | B11: 1727 | C11: 1821 | D11: 0.948380011 | E11: 899 | F11: 1056 | G11: 0.85 | H11: 0 | I11: 0 | J11: 0
A12: Oct-20 | B12: 1419 | C12: 2095 | D12: 0.677326969 | E12: 777 | F12: 1189 | G12: 0.65 | H12: 0 | I12: 0 | J12: 0
A13: 2020-11-01 | B13: 2055 | C13: 1437 | D13: =B13/C13 -> 1.43006263 | E13: 1294 | F13: 674 | G13: 1.92 | H13: 0 | I13: 0 | J13: 0
A14: Dec -20 | B14: 2899 | C14: 684 | D14: =B14/C14 -> 4.238304094 | E14: 1752 | F14: 218 | G14: 8.04 | H14: 0 | I14: 0 | J14: 0
A15: Notes: Advance/Decline is calculated based on the average price methodology.
A16: $ indicates as on December 31, 2020
A17: Source: BSE, NSE and MSEI.

Sheet 28
A1: Table 28: Trading Frequency in Cash Segment of Exchanges
A2: Month | B2: BSE | E2: NSE | H2: MSEI
B3: No. of Companies Listed | C3: No. of Companies Traded | D3: Traded to Listed (per cent) | E3: No. of Companies Listed | F3: No. of Companies Traded | G3: Traded to Listed (per cent) | H3: No. of Companies Listed | I3: No. of Companies Traded | J3: Traded to Listed (per cent)
A4: 2019-20 | B4: 5377 | C4: 4089 | D4: 76.04612237 | E4: 1949 | F4: 1989 | G4: 102.0523345 | H4: 296 | I4: 15 | J4: 5.067567568
A5: 2020-21$ | B5: 5454 | C5: 3880 | D5: =(C5/B5)*100 -> 71.14044738 | E5: 1962 | F5: 1994 | G5: =(F5/E5)*100 -> 101.6309888 | H5: 297 | I5: 6 | J5: =(I5/H5)*100 -> 2.02020202
A6: Apr-20 | B6: 5380 | C6: 3352 | D6: 62.30483271 | E6: 1949 | F6: 1855 | G6: =(F6/E6)*100 -> 95.17701385 | H6: 296 | I6: 3 | J6: =(I6/H6)*100 -> 1.013513514
A7: May-20 | B7: 5369 | C7: 3303 | D7: 61.5198361 | E7: 1947 | F7: 1854 | G7: 95.22342065 | H7: 295 | I7: 0 | J7: 0
A8: Jun-20 | B8: 5377 | C8: 3481 | D8: 64.73870188 | E8: 1944 | F8: 1872 | G8: 96.2962963 | H8: 295 | I8: 3 | J8: 1.016949153
A9: Jul-20 | B9: 5399 | C9: 3624 | D9: 67.1235414 | E9: 1941 | F9: 1886 | G9: 97.16640907 | H9: 296 | I9: 1 | J9: 0.3378378378
A10: Aug-20 | B10: 5413 | C10: 3605 | D10: 66.59892851 | E10: 1943 | F10: 1886 | G10: 97.06639218 | H10: 297 | I10: 2 | J10: 0.6734006734
A11: 2020-09-01 | B11: 5428 | C11: 3587 | D11: 66.08327192 | E11: 1946 | F11: 1892 | G11: 97.22507708 | H11: 297 | I11: 4 | J11: 1.346801347
A12: Oct-20 | B12: 5437 | C12: 3543 | D12: 65.16461284 | E12: 1959 | F12: 1908 | G12: 97.39663093 | H12: 297 | I12: 1 | J12: 0.3367003367
A13: 2020-11-01 | B13: 5442 | C13: 3551 | D13: 65.25174568 | E13: 1959 | F13: 1899 | G13: 96.93721286 | H13: 298 | I13: 2 | J13: 0.6711409396
A14: 2020-12-01 | B14: 5454 | C14: 3662 | D14: =(C14/B14)*100 -> 67.143381 | E14: 1962 | F14: 1908 | G14: 97.24770642 | H14: 297 | I14: 3 | J14: 1.01010101
A15: Notes -
A16: $ indicates as on December 31, 2020
A17: Source: BSE, NSE and MSEI.

Sheet 29
A1: Table 29: Daily Volatility of Major Indices
H2: (per cent)
A3: Year / Month | B3: BSE Sensex | C3: BSE 100 | D3: BSE 500 | E3: Nifty 50 | F3: Nifty Next 50 | G3: Nifty 500 | H3: SX40
A4: 2019-20 | B4: 1.77 | C4: 1.74 | D4: 1.7 | E4: 1.745669786 | F4: 1.619683409 | G4: 1.684795809 | H4: 1.71
A5: 2020-21$ | B5: 1.476259096 | C5: 1.396367536 | D5: 1.32959902 | E5: 1.43601021 | F5: 1.201562273 | G5: 1.321207832 | H5: 1.439855818
A6: Apr-20 | B6: 3.03 | C6: 2.81 | D6: 2.6 | E6: 2.843773037 | F6: 1.971064465 | G6: 2.508181996 | H6: 3.01
A7: May-20 | B7: 2.15 | C7: 2.04 | D7: 1.91 | E7: 2.048551588 | F7: 1.647650314 | G7: 1.852370831 | H7: 2.05
A8: Jun-20 | B8: 1.25 | C8: 1.18 | D8: 1.15 | E8: 1.217189201 | F8: 0.945600102 | G8: 1.131000379 | H8: 1.21
A9: Jul-20 | B9: 0.97 | C9: 0.88 | D9: 0.82 | E9: 0.925963895 | F9: 0.672553594 | G9: 0.805308517 | H9: 0.93
A10: Aug-20 | B10: 0.99 | C10: 0.94 | D10: 0.93 | E10: 0.925694462 | F10: 1.101700468 | G10: 0.919586861 | H10: 0.93
A11: 2020-09-01 | B11: 1.196369723 | C11: 1.229509802 | D11: 1.254328354 | E11: 1.169640237 | F11: 1.353955553 | G11: 1.223016451 | H11: 1.19
A12: Oct-20 | B12: 1.028212848 | C12: 0.933408 | D12: 0.858267417 | E12: 0.941724708 | F12: 0.737360953 | G12: 0.835326122 | H12: 0.98
A13: 2020-11-01 | B13: 0.9033380901 | C13: 0.8267834614 | D13: 0.748369683 | E13: 0.839959398 | F13: 0.73352754 | G13: 0.728872546 | H13: 0.87
A14: 2020-12-01 | B14: 0.8771243681 | C14: 0.9289436907 | D14: 0.9717614421 | E14: 0.876168538 | F14: 0.989226862 | G14: 0.932809776 | H14: 0.8732153718
A15: Notes: Volatility is calculated as the standard deviation of the natural log of daily returns in indices for the respective period.
A16: $ indicates as on December 31, 2020
A17: Source: BSE, MSEI and NSE.

Sheet 30
A1: Table 30: Percentage Share of Top ‘N’ Securities/Members in Turnover of Cash Segment of Exchanges (per cent)
A2: Year/ Month | B2: BSE | G2: NSE | L2: MSEI
A3: Top | B3: 5 | C3: 10 | D3: 25 | E3: 50 | F3: 100 | G3: 5 | H3: 10 | I3: 25 | J3: 50 | K3: 100 | L3: 5 | M3: 10 | N3: 25 | O3: 50 | P3: 100
A4: Securities
A5: 2019-20 | B5: 15.9616 | C5: 24.4329 | D5: 39.5174 | E5: 52.5185 | F5: 68.0829 | G5: 15.55 | H5: 26.32 | I5: 45.68 | J5: 60.58 | K5: 77.92 | L5: 97.15 | M5: 99.99 | N5: 100 | O5: 100 | P5: 100
A6: 2020-21$ | B6: 15.7936 | C6: 25.4389 | D6: 41.7164 | E6: 54.1283 | F6: 68.9689 | G6: 18.16 | H6: 28.07 | I6: 45.95 | J6: 61.63 | K6: 78.3 | L6: 100 | M6: 100 | N6: 100 | O6: 100 | P6: 100
A7: Apr-20 | B7: 18.8057 | C7: 29.1358 | D7: 45.2231 | E7: 60.2047 | F7: 76.2812 | G7: 21.74 | H7: 34.01 | I7: 53.29 | J7: 68.6 | K7: 84.6 | L7: 100 | M7: 100 | N7: 100 | O7: 100 | P7: 100
A8: May-20 | B8: 41.5822 | C8: 51.1386 | D8: 63.9668 | E8: 74.1095 | F8: 84.8373 | G8: 24.02 | H8: 36.8 | I8: 53.22 | J8: 69.14 | K8: 85.35 | L8: 0 | M8: 0 | N8: 0 | O8: 0 | P8: 0
A9: Jun-20 | B9: 33.7851 | C9: 44.3575 | D9: 58.0009 | E9: 68.318 | F9: 79.6923 | G9: 20.48 | H9: 31.24 | I9: 49.55 | J9: 64.86 | K9: 81.07 | L9: 100 | M9: 100 | N9: 100 | O9: 100 | P9: 100
A10: Jul-20 | B10: 18.9403 | C10: 27.9867 | D10: 43.0643 | E10: 56.3726 | F10: 70.9021 | G10: 24.22 | H10: 34.54 | I10: 50.06 | J10: 65.4 | K10: 80.58 | L10: 100 | M10: 100 | N10: 100 | O10: 100 | P10: 100
A11: Aug-20 | B11: 23.1592 | C11: 30.7546 | D11: 42.8767 | E11: 54.6288 | F11: 68.4645 | G11: 16.95 | H11: 26.42 | I11: 42.83 | J11: 58.74 | K11: 75.29 | L11: 100 | M11: 100 | N11: 100 | O11: 100 | P11: 100
A12: 2020-09-01 | B12: 15.7741 | C12: 23.5068 | D12: 38.4159 | E12: 52.5471 | F12: 69.1548 | G12: 18.53 | H12: 27.89 | I12: 46.55 | J12: 62.92 | K12: 78.82 | L12: 100 | M12: 100 | N12: 100 | O12: 100 | P12: 100
A13: Oct-20 | B13: 15.1569 | C13: 24.3018 | D13: 42.3229 | E13: 56.2869 | F13: 72.0041 | G13: 17.1 | H13: 27.87 | I13: 48.87 | J13: 64.83 | K13: 81.76 | L13: 100 | M13: 100 | N13: 100 | O13: 100 | P13: 100
A14: Nov-20 | B14: 16.3218 | C14: 25.5445 | D14: 42.4855 | E14: 55.7817 | F14: 70.8734 | G14: 19.34 | H14: 30.94 | I14: 47.95 | J14: 63.57 | K14: 80.61 | L14: 100 | M14: 100 | N14: 100 | O14: 100 | P14: 100
A15: 2020-12-02 | B15: 12.8603 | C15: 21.317 | D15: 36.9218 | E15: 50.8894 | F15: 66.0559 | G15: 12.13 | H15: 20.49 | I15: 37.39 | J15: 53.7 | K15: 73.05 | L15: 100 | M15: 100 | N15: 100 | O15: 100 | P15: 100
A16: Members
A17: 2019-20 | B17: 26.49 | C17: 40.16 | D17: 64.55 | E17: 76.04 | F17: 85.83 | G17: 25.48 | H17: 39.02 | I17: 59.55 | J17: 75.87 | K17: 87.66 | L17: 80.36 | M17: 100 | N17: 100 | O17: 100 | P17: 100
A18: 2020-21$ | B18: 33.7 | C18: 49.93 | D18: 69.27 | E18: 80.36 | F18: 89.12 | G18: 30.48 | H18: 43.21 | I18: 63.49 | J18: 78.6 | K18: 89.48 | L18: 100 | M18: 100 | N18: 100 | O18: 100 | P18: 0
A19: Apr-20 | B19: 32.94 | C19: 49.91 | D19: 71.44 | E19: 82.7 | F19: 91.2 | G19: 30.67 | H19: 44.88 | I19: 65.51 | J19: 80.71 | K19: 90.92 | L19: 100 | M19: 100 | N19: 100 | O19: 100 | P19: 0
A20: May-20 | B20: 42.92 | C20: 56.43 | D20: 76.25 | E20: 85.01 | F20: 91.92 | G20: 30.67 | H20: 44.2 | I20: 64.59 | J20: 80.21 | K20: 90.67 | L20: 0 | M20: 0 | N20: 0 | O20: 0 | P20: 0
A21: Jun-20 | B21: 45.78 | C21: 60.7 | D21: 77.42 | E21: 85.46 | F21: 92.1 | G21: 30.73 | H21: 45.25 | I21: 64.84 | J21: 78.89 | K21: 89.48 | L21: 100 | M21: 100 | N21: 100 | O21: 100 | P21: 0
A22: Jul-20 | B22: 40.35 | C22: 55.93 | D22: 71.57 | E22: 80.84 | F22: 88.93 | G22: 32.21 | H22: 45.3 | I22: 64.28 | J22: 77.55 | K22: 88.45 | L22: 100 | M22: 100 | N22: 100 | O22: 100 | P22: 0
A23: Aug-20 | B23: 32.85 | C23: 46.38 | D23: 68.19 | E23: 79.76 | F23: 88.9 | G23: 31.57 | H23: 44.29 | I23: 63.23 | J23: 77.44 | K23: 88.4 | L23: 100 | M23: 100 | N23: 100 | O23: 100 | P23: 0
A24: 2020-09-01 | B24: 35.65 | C24: 50.01 | D24: 70.85 | E24: 81.85 | F24: 90.23 | G24: 31.67 | H24: 45.84 | I24: 65.91 | J24: 79.74 | K24: 89.92 | L24: 100 | M24: 100 | N24: 100 | O24: 100 | P24: 0
A25: Oct-20 | B25: 39.7 | C25: 53.61 | D25: 71.06 | E25: 80.39 | F25: 88.93 | G25: 31.18 | H25: 45.15 | I25: 64.98 | J25: 79.85 | K25: 90.41 | L25: 100 | M25: 100 | N25: 100 | O25: 100 | P25: 0
A26: 2020-11-01 | B26: 39.72 | C26: 55.55 | D26: 72.06 | E26: 82.1 | F26: 89.91 | G26: 29.09 | H26: 41.81 | I26: 64.64 | J26: 80.41 | K26: 90.7 | L26: 100 | M26: 100 | N26: 100 | O26: 100 | P26: 0
A27: 2020-12-02 | B27: 34.65 | C27: 50.26 | D27: 71.29 | E27: 82.75 | F27: 90.35 | G27: 30.52 | H27: 43.76 | I27: 63.49 | J27: 78.3 | K27: 89.35 | L27: 100 | M27: 100 | N27: 100 | O27: 100 | P27: 0
A28: Notes: 1. Data for Top N scrips has been compiled for all markets except auction market & retail debt market and includes series EQ, BE,BT, BL and IL.
A29: $ indicates as on December 31, 2020
A30: Source: BSE, NSE and MSEI.

Sheet 31
A1: Table 31: Settlement Statistics for Cash Segment of ICCL
A2: Year / Month | B2: No. of Trades (lakh) | C2: Traded Quantity (lakh) | D2: Delivered Quantity (lakh) | E2: Delivered Quantity to Traded Quantity (per cent) | F2: Turnover (₹ crore) | G2: Delivered Value (₹ crore) | H2: Delivered Value to Total Turnover (per cent) | I2: Delivered Quantity in Demat Mode (lakh) | J2: Demat Delivered Quantity to Total Delivered Quantity (per cent) | K2: Delivered Value in Demat Mode (₹ crore) | L2: Demat Delivered Value to Total Delivered Value (per cent) | M2: Short Delivery (Auctioned quantity) (lakh) | N2: Short Delivery to Delivered Quantity (per cent) | O2: Funds Pay-in (₹ crore) | P2: Securities Pay-in (₹ crore) | Q2: Settlement Guarantee Fund (₹ crore)
A3: 2019-20 | B3: 3210.16076 | C3: 555304 | D3: 204312.5084 | E3: =D3/C3*100 -> 36.79291135 | F3: 672464.22 | G3: 193663.123 | H3: =G3/F3*100 -> 28.79902264 | I3: 171221.4999 | J3: =I3/D3*100 -> 83.80372853 | K3: 193243.4334 | L3: =K3/G3*100 -> 99.78328884 | M3: 369.1519 | N3: =M3/D3*100 -> 0.1806800293 | O3: 61952.69806 | P3: 193935.1729 | Q3: 223.1
A4: 2020-21$ | B4: =SUM(B5:B17) -> 3921.7 | C4: =SUM(C5:C17) -> 720422.6 | D4: =SUM(D5:D17) -> 204105.7137 | E4: =D4/C4*100 -> 28.33138684 | F4: =SUM(F5:F17) -> 686990 | G4: =SUM(G5:G17) -> 188564.7006 | H4: =G4/F4*100 -> 27.44795421 | I4: =SUM(I5:I17) -> 204105.7202 | J4: =I4/D4*100 -> 100.0000032 | K4: =SUM(K5:K17) -> 188564.7006 | L4: =K4/G4*100 -> 100 | M4: =SUM(M5:M17) -> 450.7154 | N4: =M4/D4*100 -> 0.2208244894 | O4: =SUM(O5:O17) -> 41618 | P4: =SUM(P5:P17) -> 188789 | Q4: =Q12 -> 233.9
A5: Apr-20 | B5: 339 | C5: 37309 | D5: 11926.5 | E5: 31.96681766 | F5: 44040 | G5: 13145 | H5: 29.84786558 | I5: 11926.5 | J5: 100 | K5: 13145 | L5: 100 | M5: 30.3 | N5: 0.2540560936 | O5: 3609 | P5: 13162 | Q5: 224.38
A6: May-20 | B6: 316.2 | C6: 46869 | D6: 14976.3 | E6: 31.95353005 | F6: 63127 | G6: 14218 | H6: 22.52285076 | I6: 14976.3 | J6: 100 | K6: 14218 | L6: 100 | M6: 30.3 | N6: 0.2023196651 | O6: 4598 | P6: 14230 | Q6: 225.71
A7: Jun-20 | B7: 543.2 | C7: 108007.6 | D7: 28084.9 | E7: 26.00270722 | F7: 109738 | G7: 22839 | H7: 20.81229838 | I7: 28084.9 | J7: 100 | K7: 22839 | L7: 100 | M7: 59.4 | N7: 0.2115015542 | O7: 5227 | P7: 22864 | Q7: 227.04
A8: Jul-20 | B8: 518.3 | C8: 100445 | D8: 30648.58 | E8: 30.51279805 | F8: 80053 | G8: 23567 | H8: 29.4392465 | I8: 30648.6 | J8: 100.0000653 | K8: 23567 | L8: 100 | M8: 134.4 | N8: 0.4385195007 | O8: 4656 | P8: 23596 | Q8: 228.38
A9: Aug-20 | B9: 471.9 | C9: 93649 | D9: 27994.7 | E9: 29.89321829 | F9: 90938 | G9: 25780 | H9: 28.34898502 | I9: 27994.7 | J9: 100 | K9: 25780 | L9: 100 | M9: 45.8 | N9: 0.1636023962 | O9: 4505 | P9: 25812 | Q9: 229.69
A10: 2020-09-01 | B10: 427.4 | C10: 87230 | D10: 20728.81138 | E10: 23.7633972 | F10: 73748 | G10: 21778.31442 | H10: 29.53071869 | I10: 20728.81138 | J10: 100 | K10: 21778.31442 | L10: 100 | M10: 31.47033 | N10: 0.1518192694 | O10: 4968 | P10: 21819 | Q10: 231.16
A11: Oct-20 | B11: 343.2 | C11: 52086 | D11: 14433.4 | E11: 27.71070921 | F11: 54904 | G11: 16803 | H11: 30.60432755 | I11: 14433.4 | J11: 100 | K11: 16803 | L11: 100 | M11: 43.9 | N11: 0.304155639 | O11: 3490 | P11: 16828 | Q11: 232.51
A12: Nov-20 | B12: 420.5 | C12: 68345 | D12: 22014.51348 | E12: 32.21086177 | F12: 72270 | G12: 21942 | H12: 30.3611457 | I12: 22014.5 | J12: 99.99993877 | K12: 21942 | L12: 100 | M12: 28.5 | N12: 0.1294600493 | O12: 5118 | P12: 21961 | Q12: 233.9
A13: 2020-12-01 | B13: 542 | C13: 126482 | D13: 33298.00882 | E13: 26.32628265 | F13: 98172 | G13: 28492.38622 | H13: 29.02292529 | I13: 33298.00882 | J13: 100 | K13: 28492.38622 | L13: 100 | M13: 46.64507 | N13: 0.1400836616 | O13: 5447 | P13: 28517 | Q13: 235.32
A14: Note:
A15: 1. The figure of Settlement Guarantee Fund has been computed in accordance with the Scheme of Arrangement approved by Honorable High Court, Bombay for transferring the clearing and settlement division of BSE Limited to its wholly owned subsidiary, namely, Indian Clearing Corporation Limited and thus does not include the Trade Guarantee Fund (TGF) of BSE Limited as on 01/04/2011 along with accretion thereon.
A16: $ indicates as on December 31, 2020
A17: Source: ICCL

Sheet 32
A1: Table 32: Settlement Statistics for Cash Segment of NCL
A2: Year / Month | B2: No. of Trades (lakh) | C2: Traded Quantity (lakh) | D2: Delivered Quantity (lakh) | E2: Delivered Quantity to Traded Quantity (per cent) | F2: Turnover (₹ crore) | G2: Delivered Value (₹ crore) | H2: Delivered Value to Total Turnover (per cent) | I2: Delivered Quantity in Demat Mode (lakh) | J2: Demat Delivered Quantity to Total Delivered Quantity (per cent) | K2: Delivered Value in Demat Mode (₹ crore) | L2: Demat Delivered Value to Total Delivered Value (per cent) | M2: Short Delivery (Auctioned quantity) (lakh) | N2: Short Delivery to Delivery Quantity (per cent) | O2: Funds Pay-in (₹ crore) | P2: Securities Pay-in (₹ crore) | Q2: Settlement Guarantee Fund (₹ crore)
A3: 2019-20 | B3: 35768.93571 | C3: 5361647.539 | D3: 1067585.125 | E3: 19.91151259 | F3: 9643316.767 | G3: 2077333.032 | H3: 21.54168615 | I3: 1065619.011 | J3: =I3/D3*100 -> 99.81583539 | K3: 2075912.925 | L3: =K3/G3*100 -> 99.93163797 | M3: 1966.104961 | N3: 0.184503555 | O3: 600587.1226 | P3: 2077333.032 | Q3: 302.11
A4: 2020-21$ | B4: =SUM(B5:B17) -> 40200.11705 | C4: =SUM(C5:C17) -> 6442033.644 | D4: =SUM(D5:D17) -> 1112288.838 | E4: =D4/C4*100 -> 17.26611346 | F4: =SUM(F5:F17) -> 11712139.52 | G4: 2073189.268 | H4: =G4/F4*100 -> 17.70120023 | I4: 1110048.459 | J4: =I4/D4*100 -> 99.79857939 | K4: 2071914.872 | L4: =K4/G4*100 -> 99.93852968 | M4: 2240.38904 | N4: =M4/D4*100 -> 0.201421516 | O4: 616373.61 | P4: 2073189.268 | Q4: =INDEX(Q5:Q17,COUNT(Q5:Q17)) -> 333.89
A5: Apr-20 | B5: 4150.23343 | C5: 468098.4582 | D5: 86142.43144 | E5: 18.40263088 | F5: 926064.656 | G5: 169258.2064 | H5: 18.27714785 | I5: 85960.24117 | J5: 99.78850113 | K5: 169154.0744 | L5: 99.93847743 | M5: 182.19027 | N5: 0.211947137 | O5: 53768.75 | P5: 169258.2064 | Q5: 305.51
A6: May-20 | B6: 3967.31019 | C6: 519841.9523 | D6: 90797.83962 | E6: 17.46643171 | F6: 1049727.142 | G6: 201623.1638 | H6: 19.20719736 | I6: 90650.95584 | J6: 99.83822987 | K6: 201524.1333 | L6: 99.95088337 | M6: 146.88378 | N6: 0.161770126 | O6: 80224.74 | P6: 201623.1638 | Q6: 311.04
A7: Jun-20 | B7: 5341.76629 | C7: 1030660.011 | D7: 155158.8969 | E7: 15.05432395 | F7: 1520003.977 | G7: 249841.2941 | H7: 16.43688423 | I7: 154762.5999 | J7: 99.74458635 | K7: 249657.1294 | L7: 99.92628733 | M7: 396.29711 | N7: 0.256067752 | O7: 75290.96 | P7: 249841.2941 | Q7: 314.78
A8: Jul-20 | B8: 4814.26847 | C8: 805230.8079 | D8: 131916.6938 | E8: 16.38246978 | F8: 1414639.284 | G8: 229927.2805 | H8: 16.25342114 | I8: 131411.9875 | J8: 99.61740528 | K8: 229766.3759 | L8: 99.93001935 | M8: 504.70628 | N8: 0.382594739 | O8: 56586.18 | P8: 229927.2805 | Q8: 316.97
A9: Aug-20 | B9: 4483.88429 | C9: 756614.8117 | D9: 138718.4995 | E9: 18.3340978 | F9: 1339265.102 | G9: 229893.0102 | H9: 17.16560895 | I9: 138575.8913 | J9: 99.89719598 | K9: 229745.5386 | L9: 99.93585207 | M9: 142.60824 | N9: 0.102804053 | O9: 55195.16 | P9: 229893.0102 | Q9: 320.88
A10: Sep-20 | B10: 4506.40921 | C10: 781188.5871 | D10: 123886.2569 | E10: 15.85868751 | F10: 1386253.895 | G10: 235653.7203 | H10: 16.99931889 | I10: 123617.9508 | J10: 99.78342545 | K10: 235469.0494 | L10: 99.92163463 | M10: 268.30609 | N10: 0.217044603 | O10: 64749.96 | P10: 235653.7203 | Q10: 326.93
A11: Oct-20 | B11: 3602.69517 | C11: 487624.5057 | D11: 84937.62982 | E11: 17.41865489 | F11: 1110638.714 | G11: 188341.8331 | H11: 16.95797479 | I11: 84770.60255 | J11: 99.80335304 | K11: 188226.2214 | L11: 99.93861603 | M11: 167.02727 | N11: 0.196646964 | O11: 47858.76 | P11: 188341.8331 | Q11: 329.18
A12: Nov-20 | B12: 4227.39 | C12: 633355.61 | D12: 124285.11 | E12: 19.62 | F12: 1372308.566 | G12: 250631.17 | H12: 18.26347049 | I12: 124149.11 | J12: 99.89057418 | K12: 250509.84 | L12: 99.95159022 | M12: 136.01 | N12: 0.11 | O12: 76844.9 | P12: 250631.17 | Q12: 332.28
A13: 2020-12-01 | B13: 5106.16 | C13: 959418.9 | D13: 176445.48 | E13: 18.39086972 | F13: 1593238.185 | G13: 318019.59 | H13: 19.96058047 | I13: 176149.12 | J13: 100 | K13: 317862.51 | L13: 100 | M13: 296.36 | N13: 0.17 | O13: 105854.2 | P13: 318019.59 | Q13: 333.89
A14: Notes:
A15: 1. Settlement Statistics for settlement type N, excluding CM Series IL & BL
A16: $ indicates as on December 31, 2020
A17: Source: NCL

Sheet 33
A1: Table 33: Settlement Statistics for Cash Segment of MCCIL
A2: Month Sorting | B2: No. of Trades (Lakh) | C2: Traded Quantity (Lakh) | D2: Delivered Quantity (Lakh) | E2: Delivered Quantity to Traded Quantity (per cent) | F2: Turnover (₹ crore) | G2: Delivered Value (₹ crore) | H2: Delivered Value to Total Turnover (per cent) | I2: Delivered Quantity in Demat Mode (Lakh) | J2: Demat Delivered Quantity to Total Delivered Quantity (per cent) | K2: Delivered Value in Demat Mode (₹ crore) | L2: Demat Delivered Value to Total Delivered Value (per cent) | M2: Funds Pay-in (₹ crore) | N2: Securities Pay-in (₹ crore) | O2: Settlement Guarantee Fund(₹ crore)
A3: 2019-20 | B3: 0.00564 | C3: 10.29321 | D3: 10.29117 | E3: 99.98 | F3: 20.30278834 | G3: 20.30197045 | H3: 100 | I3: 10.29117 | J3: 100 | K3: 20.30197045 | L3: 100 | M3: 20.30197045 | N3: 20.30197045 | O3: 0.35
A4: 2020-21$ | B4: 0 | C4: 0 | D4: 0 | E4: 0 | F4: 0 | G4: 0 | H4: 0 | I4: 0 | J4: 0 | K4: 0 | L4: 0 | M4: 0 | N4: 0 | O4: 0
A5: Apr-20 | B5: 0 | C5: 0 | D5: 0 | E5: 0 | F5: 0 | G5: 0 | H5: 0 | I5: 0 | J5: 0 | K5: 0 | L5: 0 | M5: 0 | N5: 0 | O5: 0
A6: May-20 | B6: 0 | C6: 0 | D6: 0 | E6: 0 | F6: 0 | G6: 0 | H6: 0 | I6: 0 | J6: 0 | K6: 0 | L6: 0 | M6: 0 | N6: 0 | O6: 0
A7: Jun-20 | B7: 0 | C7: 0 | D7: 0 | E7: 0 | F7: 0 | G7: 0 | H7: 0 | I7: 0 | J7: 0 | K7: 0 | L7: 0 | M7: 0 | N7: 0 | O7: 0
A8: Jul-20 | B8: 0 | C8: 0 | D8: 0 | E8: 0 | F8: 0 | G8: 0 | H8: 0 | I8: 0 | J8: 0 | K8: 0 | L8: 0 | M8: 0 | N8: 0 | O8: 0
A9: Aug-20 | B9: 0 | C9: 0 | D9: 0 | E9: 0 | F9: 0 | G9: 0 | H9: 0 | I9: 0 | J9: 0 | K9: 0 | L9: 0 | M9: 0 | N9: 0 | O9: 0
A10: Sep-20 | B10: 0 | C10: 0 | D10: 0 | E10: 0 | F10: 0 | G10: 0 | H10: 0 | I10: 0 | J10: 0 | K10: 0 | L10: 0 | M10: 0 | N10: 0 | O10: 0
A11: Oct-20 | B11: 0 | C11: 0 | D11: 0 | E11: 0 | F11: 0 | G11: 0 | H11: 0 | I11: 0 | J11: 0 | K11: 0 | L11: 0 | M11: 0 | N11: 0 | O11: 0
A12: Nov-20 | B12: 0 | C12: 0 | D12: 0 | E12: 0 | F12: 0 | G12: 0 | H12: 0 | I12: 0 | J12: 0 | K12: 0 | L12: 0 | M12: 0 | N12: 0 | O12: 0
A13: 2020-12-01 | B13: 0 | C13: 0 | D13: 0 | E13: 0 | F13: 0 | G13: 0 | H13: 0 | I13: 0 | J13: 0 | K13: 0 | L13: 0 | M13: 0 | N13: 0 | O13: 0
A14: Note:
A15: $ indicates as on December 31, 2020
A16: Source: MCCIL

Sheet 34
A1: Table 34: Trends in Equity Derivatives Segment at BSE (Turnover in Notional Value)
A2: Year/ Month | B2: No. of Trading Days | C2: Index Futures | E2: Stock Futures | G2: Index Options | K2: Stock Options | O2: Total | Q2: Open Interest at the end of Month
G3: Call | I3: Put | K3: Call | M3: Put
C4: No. of Contracts | D4: Turnover (₹ crore) | E4: No. of Contracts | F4: Turnover (₹ crore) | G4: No. of Contracts | H4: Turnover (₹ crore) | I4: No. of Contracts | J4: Turnover (₹ crore) | K4: No. of Contracts | L4: Turnover (₹ crore) | M4: No. of Contracts | N4: Turnover (₹ crore) | O4: No. of Contracts | P4: Turnover (₹ crore) | Q4: No. of contracts | R4: Turnover (₹ crore)
A5: 2019-20 | B5: 247 | C5: 150212 | D5: 14933.63793 | E5: 2983 | F5: 162.9625575 | G5: 2032161 | H5: 200440.0551 | I5: 480178 | J5: 45522.52057 | K5: 8473 | L5: 626.1080054 | M5: 7876 | N5: 583.2430748 | O5: 2681883 | P5: 262268.5172 | Q5: 515 | R5: 37.94
A6: 2020-21$ | B6: =SUM(B7:B19) -> 188 | C6: 47311 | D6: 4285.747954 | E6: 0 | F6: 0 | G6: 98463305 | H6: 10028161.51 | I6: 94917467 | J6: 8045014.724 | K6: 0 | L6: 0 | M6: 0 | N6: 0 | O6: 193428083 | P6: 18077461.97 | Q6: =INDEX(Q7:Q18,COUNT(Q7:Q18)) -> 1599 | R6: =INDEX(R7:R18,COUNT(R7:R18)) -> 175.5775154
A7: Apr-20 | B7: 18 | C7: 962 | D7: 77.77 | E7: 0 | F7: 0 | G7: 995903 | H7: 87578.38 | I7: 309028 | J7: 21493.72 | K7: 0 | L7: 0 | M7: 0 | N7: 0 | O7: 1305893 | P7: 109149.87 | Q7: 2407 | R7: 202.9
A8: May-20 | B8: 19 | C8: 4144 | D8: 326.38 | E8: 0 | F8: 0 | G8: 1218595 | H8: 107799.6 | I8: 142492 | J8: 9623.57 | K8: 0 | L8: 0 | M8: 0 | N8: 0 | O8: 1365231 | P8: 117749.55 | Q8: 971 | R8: 78.71
A9: Jun-20 | B9: 22 | C9: 1747 | D9: 145.84 | E9: 0 | F9: 0 | G9: 106 | H9: 8.98 | I9: 0 | J9: 0 | K9: 0 | L9: 0 | M9: 0 | N9: 0 | O9: 1853 | P9: 154.82 | Q9: 81 | R9: 6.54
A10: Jul-20 | B10: 23 | C10: 7735 | D10: 663.89 | E10: 0 | F10: 0 | G10: 3256827 | H10: 297616.75 | I10: 3893948 | J10: 304232.15 | K10: 0 | L10: 0 | M10: 0 | N10: 0 | O10: 7158510 | P10: 602512.78 | Q10: 4045 | R10: 352.49
A11: Aug-20 | B11: 21 | C11: 6025 | D11: 536.5 | E11: 0 | F11: 0 | G11: 11023986 | H11: 1047508 | I11: 10361093 | J11: 800072.42 | K11: 0 | L11: 0 | M11: 0 | N11: 0 | O11: 21391104 | P11: 1848116.92 | Q11: 8217 | R11: 735.07
A12: 2020-09-01 | B12: 22 | C12: 8832 | D12: 786.6443497 | E12: 0 | F12: 0 | G12: 20820481 | H12: 1992957.129 | I12: 8975662 | J12: 732822.8756 | K12: 0 | L12: 0 | M12: 0 | N12: 0 | O12: 29804975 | P12: 2726566.649 | Q12: 3589 | R12: 318.1858456
A13: Oct-20 | B13: 21 | C13: 7543 | D13: 699.6108199 | E13: 0 | F13: 0 | G13: 17657324 | H13: 1740130.117 | I13: 20007431 | J13: 1651682.527 | K13: 0 | L13: 0 | M13: 0 | N13: 0 | O13: 37672298 | P13: 3392512.256 | Q13: 3842 | R13: 351.4300452
A14: Nov-20 | B14: 20 | C14: 5748 | D14: 565.2577147 | E14: 0 | F14: 0 | G14: 18012565 | H14: 1882107.564 | I14: 28781217 | J14: 2495821.643 | K14: 0 | L14: 0 | M14: 0 | N14: 0 | O14: 46799530 | P14: 4378494.464 | Q14: 4575 | R14: 1393.761054
A15: 2020-12-04 | B15: 22 | C15: 4575 | D15: 483.8550694 | E15: 0 | F15: 0 | G15: 25477518 | H15: 2872454.989 | I15: 22446596 | J15: 2029265.818 | K15: 0 | L15: 0 | M15: 0 | N15: 0 | O15: 47928689 | P15: 4902204.662 | Q15: 1599 | R15: 175.5775154
A16: Notes:
A17: 1. Notional Turnover = (Strike Price + Premium) * Quantity.
A18: $ indicates as on December 31, 2020
A19: Source: BSE.

Sheet 35
A1: Table 35: Trends in Equity Derivatives Segment at NSE (Turnover in Notional Value)
A2: Year/ Month | B2: No. of Trading Days | C2: Index Futures | E2: Stock Futures | G2: Index Options | K2: Stock Options | O2: Total | Q2: Open Interest at the end of Month
G3: Call | I3: Put | K3: Call | M3: Put
C4: No. of Contracts | D4: Turnover (₹ crore) | E4: No. of Contracts | F4: Turnover (₹ crore) | G4: No. of Contracts | H4: Turnover (₹ crore) | I4: No. of Contracts | J4: Turnover (₹ crore) | K4: No. of Contracts | L4: Turnover (₹ crore) | M4: No. of Contracts | N4: Turnover (₹ crore) | O4: No. of Contracts | P4: Turnover (₹ crore) | Q4: No. of Contracts | R4: Turnover (₹ crore)
A5: 2019-20 | B5: 247 | C5: 94472538 | D5: 6677312.049 | E5: 256643910 | F5: 14874729.23 | G5: 2480471005 | H5: 169696653.7 | I5: 2095899292 | J5: 140995315.6 | K5: 125587962 | L5: 8003236.696 | M5: 72247170 | N5: 4285644.518 | O5: 5125321877 | P5: 344532891.8 | Q5: 3162958 | R5: 163121.89
A6: 2020-21$ | B6: =SUM(B7:B20) -> 188 | C6: =SUM(C7:C20) -> 100944165 | D6: 6491027.155 | E6: 192219079 | F6: 12694418.29 | G6: 2812742661 | H6: 189135795.3 | I6: 2546901586 | J6: 167628813.2 | K6: 150484927 | L6: 11505459.28 | M6: 72950447 | N6: 5022610.545 | O6: 5876242865 | P6: 392478123.8 | Q6: =INDEX(Q7:Q18,COUNT(Q7:Q18)) -> 3727777 | R6: =INDEX(R7:R18,COUNT(R7:R18)) -> 326308.87
A7: Apr-20 | B7: 18 | C7: 11339332 | D7: 594715.5188 | E7: 19476580 | F7: 954968.9956 | G7: 194547845 | H7: 10077297.86 | I7: 170934639 | J7: 8385702.654 | K7: 8039630 | L7: 446624.8999 | M7: 4593986 | N7: 224068.5075 | O7: 408932012 | P7: 20683378.43 | Q7: 2874264 | R7: 170257.67
A8: May-20 | B8: 19 | C8: 12843909 | D8: 640625.0185 | E8: 22573353 | F8: 1118023.583 | G8: 247931778 | H8: 12205317.18 | I8: 211059297 | J8: 9947263.235 | K8: 10850597 | L8: 613231.5285 | M8: 6115405 | N8: 307470.4877 | O8: 511374339 | P8: 24831931.03 | Q8: 3707494 | R8: 207782.64
A9: Jun-20 | B9: 22 | C9: 15478384 | D9: 859740.7973 | E9: 26276560 | F9: 1455365.732 | G9: 315751153 | H9: 17914117.94 | I9: 274665301 | J9: 14986695.93 | K9: 16288049 | L9: 1004821.518 | M9: 8934064 | N9: 489038.4222 | O9: 657393511 | P9: 36709780.34 | Q9: 4366903 | R9: 287861.11
A10: Jul-20 | B10: 23 | C10: 11772248 | D10: 777191.3336 | E10: 22710216 | F10: 1574937.356 | G10: 352353120 | H10: 21236714.83 | I10: 306566670 | J10: 18239374.29 | K10: 18843923 | L10: 1466518.213 | M10: 8956614 | N10: 640972.4566 | O10: 721202791 | P10: 43935708.49 | Q10: 4086465 | R10: 295273.53
A11: Aug-20 | B11: 21 | C11: 9211071 | D11: 621182.5908 | E11: 20582172 | F11: 1478175.953 | G11: 272955256 | H11: 18650461.92 | I11: 248776124 | J11: 16724302.85 | K11: 17535138 | L11: 1370741.004 | M11: 8110037 | N11: 584505.1762 | O11: 577169798 | P11: 39429369.49 | Q11: 4589201 | R11: 340564.43
A12: Sep-20 | B12: 22 | C12: 11161701 | D12: 740669.2842 | E12: 20622408 | F12: 1535447.634 | G12: 335641868 | H12: 22765319.58 | I12: 306427676 | J12: 20183965.61 | K12: 18581654 | L12: 1577042.183 | M12: 8457379 | N12: 652074.085 | O12: 700892686 | P12: 47454518.38 | Q12: 5135777 | R12: 370433.46
A13: Oct-20 | B13: 21 | C13: 10631893 | D13: 739099.3359 | E13: 19384435 | F13: 1446063.754 | G13: 382280696 | H13: 27046687.93 | I13: 346958115 | J13: 23856847.19 | K13: 18552773 | L13: 1545489.776 | M13: 8585986 | N13: 647436.2852 | O13: 786393898 | P13: 55281624.27 | Q13: 4190150 | R13: 306997.98
A14: Nov-20 | B14: 20 | C14: 10516563 | D14: 826340.6053 | E14: 20751860 | F14: 1543447.097 | G14: 344923632 | H14: 27619539.7 | I14: 316563228 | J14: 24575846.58 | K14: 19887191 | L14: 1609765.877 | M14: 9562043 | N14: 714625.4854 | O14: 722204517 | P14: 56889565.34 | Q14: 4595869 | R14: 384434.03
A15: 2020-12-01 | B15: 22 | C15: 7989064 | D15: 691462.6701 | E15: 19841495 | F15: 1587988.19 | G15: 366357313 | H15: 31620338.4 | I15: 364950536 | J15: 30728814.83 | K15: 21905972 | L15: 1871224.278 | M15: 9634933 | N15: 762419.6393 | O15: 790679313 | P15: 67262248 | Q15: 3727777 | R15: 326308.87
A16: Notes:
A17: 1. Notional Turnover = (Strike Price + Premium) * Quantity.
A18: $ indicates as on December 31, 2020
A19: Source: NSE.

Sheet 36
A1: Table 36: Settlement Statistics in Equity Derivatives Segment
M2: (₹ crore)
A3: Year/ Month | B3: BSE | H3: NSE
B4: Index/Stock Futures | D4: Index/Stock Options | F4: Total | G4: Settlement Gurantee Fund | H4: Index/Stock Futures | J4: Index/Stock Options | L4: Total | M4: Settlement Gurantee Fund
B5: MTM Settlement | C5: Final Settlement | D5: Premium Settlement | E5: Exercise Settlement | H5: MTM Settlement | I5: Final Settlement | J5: Premium Settlement | K5: Exercise Settlement
A6: 2019-20 | B6: 1778.49 | C6: 95.27 | D6: 1165.6 | E6: 10.91 | F6: =SUM(B6:E6) -> 3050.27 | G6: 21.81 | H6: 13384.32667 | I6: 188.74 | J6: 2131.820833 | K6: 532.0716667 | L6: =SUM(H6:K6) -> 16236.95917 | M6: 2211.84
A7: 2020-21$ | B7: =SUM(B8:B19) -> 4303.42 | C7: =SUM(C8:C19) -> 163.53 | D7: =SUM(D8:D19) -> 17721.76 | E7: =SUM(E8:E19) -> 49.85 | F7: =SUM(B7:E7) -> 22238.56 | G7: =G16 -> 23.84 | H7: =SUM(H8:H19) -> 104775.1014 | I7: =SUM(I8:I19) -> 1400.471412 | J7: =SUM(J8:J19) -> 21100.13287 | K7: =SUM(K8:K19) -> 4575.406609 | L7: =SUM(H7:K7) -> 131851.1123 | M7: =INDEX(M8:M19,COUNT(M8:M19)) -> 2425.09
A8: Apr-20 | B8: 135.52 | C8: 5.79 | D8: 173.72 | E8: 1.8 | F8: =SUM(B8:E8) -> 316.83 | G8: 21.93 | H8: 15832.02 | I8: 370.66 | J8: 1809.08 | K8: 431.1 | L8: 18442.86 | M8: 2231.74
A9: May-20 | B9: 123.84 | C9: 4.07 | D9: 197.23 | E9: 0.84 | F9: 325.98 | G9: 22.07 | H9: 12028.16 | I9: 187.57 | J9: 1889.56 | K9: 261.09 | L9: 14366.38 | M9: 2244.09
A10: Jun-20 | B10: 179.15 | C10: 2.75 | D10: 299.07 | E10: 2.62 | F10: 483.59 | G10: 22.3 | H10: 12911.59 | I10: 74.19 | J10: 2510.98 | K10: 494.02 | L10: 15990.78 | M10: 2268.39
A11: Jul-20 | B11: 399.43 | C11: 13.89 | D11: 2411.55 | E11: 7.16 | F11: 2832.03 | G11: 22.56 | H11: 12046.91 | I11: 117.66 | J11: 2450.49 | K11: 478.65 | L11: 15093.71 | M11: 2283.26
A12: Aug-20 | B12: 538.19 | C12: 9.34 | D12: 2814.84 | E12: 3.41 | F12: 3365.78 | G12: 22.84 | H12: 8945.99 | I12: 71.53 | J12: 2028.28 | K12: 367.69 | L12: 11413.49 | M12: 2309.02
A13: Sep-20 | B13: 730.73 | C13: 25.69 | D13: 3422.68 | E13: 3.88 | F13: 4182.98 | G13: 23.05 | H13: 11829.12 | I13: 368.53 | J13: 2499.11 | K13: 373.22 | L13: 15069.98 | M13: 2341.41
A14: Oct-20 | B14: 472.78 | C14: 5.3 | D14: 3723.07 | E14: 6.92 | F14: 4208.07 | G14: 23.27 | H14: 8658.34 | I14: 76.18 | J14: 2445.66 | K14: 531.69 | L14: 11711.87 | M14: 2374.6
A15: Nov-20 | B15: 707.14 | C15: 21.56 | D15: 4140.24 | E15: 8.49 | F15: 4877.43 | G15: 23.52 | H15: 10920.01 | I15: 82.5 | J15: 2527.52 | K15: 745.24 | L15: 14275.27 | M15: 2405.56
A16: 2020-12-01 | B16: 1016.64 | C16: 75.14 | D16: 539.36 | E16: 14.73 | F16: 1645.87 | G16: 23.84 | H16: 11602.96138 | I16: 51.65141242 | J16: 2939.452873 | K16: 892.7066091 | L16: 15486.77227 | M16: 2425.09
A17: Note:
A18: $ indicates as on December 31, 2020
A19: Source: ICCL and NCL

Sheet 37
A1: Table 37: Category-wise Share of Turnover & Open Interest in Equity Derivative Segment of BSE
A2: Year/Month | B2: Percentage Share in Turnover | G2: Percentage Share in Open Interest
B3: Pro | C3: FPI | D3: Mutual Funds | E3: Banks | F3: Others | G3: Pro | H3: FPI | I3: Mutual Funds | J3: Banks | K3: Others
A4: 2019-20 | B4: 85.56766144 | C4: 0.05581012085 | D4: 0 | E4: 0 | F4: 14.37652843 | G4: 52.91 | H4: 0 | I4: 0 | J4: 0 | K4: 47.09
A5: 2020-21$ | B5: 91.93515162 | C5: 0 | D5: 0 | E5: 0 | F5: 8.064831441 | G5: =INDEX(G6:G17,COUNT(G6:G17)) -> 97.43589744 | H5: =INDEX(H6:H17,COUNT(H6:H17)) -> 0 | I5: 0 | J5: 0 | K5: 2.564102564
A6: Apr-20 | B6: 99.97996137 | C6: 0 | D6: 0 | E6: 0 | F6: 0.02003863431 | G6: 49.89 | H6: 0 | I6: 0 | J6: 0 | K6: 50.11
A7: May-20 | B7: 99.91851531 | C7: 0 | D7: 0 | E7: 0 | F7: 0.08148469162 | G7: 74.46 | H7: 0 | I7: 0 | J7: 0 | K7: 25.54
A8: Jun-20 | B8: 68.20506565 | C8: 0.1045633988 | D8: 0 | E8: 0 | F8: 31.69037095 | G8: 50 | H8: 0 | I8: 0 | J8: 0 | K8: 50
A9: Jul-20 | B9: 93.08709533 | C9: 0 | D9: 0 | E9: 0 | F9: 6.912904673 | G9: 84.4 | H9: 0 | I9: 0 | J9: 0 | K9: 15.6
A10: Aug-20 | B10: 92.33086116 | C10: 3.168263434e-05 | D10: 0 | E10: 0 | F10: 7.669107161 | G10: 72.78 | H10: 0.01 | I10: 0 | J10: 0 | K10: 27.21
A11: Sep-20 | B11: 86.75312298 | C11: 4.155011213e-05 | D11: 0 | E11: 0 | F11: 13.24683547 | G11: 97.54806353 | H11: 0 | I11: 0 | J11: 0 | K11: 2.451936473
A12: Oct-20 | B12: 94.54867332 | C12: 2.748919693e-06 | D12: 0 | E12: 0 | F12: 5.451323934 | G12: 94.23477356 | H12: 0 | I12: 0 | J12: 0 | K12: 5.765226445
A13: Nov-20 | B13: 95.38013398 | C13: 2.484842984e-05 | D13: 0 | E13: 0 | F13: 4.619841167 | G13: 94.99453552 | H13: 0 | I13: 0 | J13: 0 | K13: 5.005464481
A14: 2020-12-01 | B14: 89.27085529 | C14: 0 | D14: 0 | E14: 0 | F14: 10.72914471 | G14: 97.43589744 | H14: 0 | I14: 0 | J14: 0 | K14: 2.564102564
A15: Note:
A16: $ indicates as on December 31, 2020
A17: Source: BSE.

Sheet 38
A1: Table 38: Category-wise Share of Turnover & Open Interest in Equity Derivative Segment of NSE
A2: Year/Month | B2: Percentage Share in Turnover | G2: Percentage Share in Open Interest
B3: Pro | C3: FPIs | D3: Mutual Funds | E3: Banks | F3: Others | G3: Pro | H3: FPIs | I3: Mutual Funds | J3: Banks | K3: Others
A4: 2019-20 | B4: 33.19 | C4: 19.25 | D4: 0.29 | E4: 0 | F4: 47.27 | G4: 11.46 | H4: 30.9 | I4: 15.99 | J4: 0 | K4: 41.65
A5: 2020-21$ | B5: 39.89 | C5: 13.68 | D5: 0.17 | E5: 0 | F5: 46.26 | G5: =INDEX(G6:G17,COUNT(G6:G17)) -> 15.72 | H5: =INDEX(H6:H17,COUNT(H6:H17)) -> 23.79 | I5: 11.08 | J5: 0 | K5: 49.41
A6: Apr-20 | B6: 32.37 | C6: 17.2 | D6: 0.29 | E6: 0 | F6: 50.14 | G6: 11.99 | H6: 33.98 | I6: 15.95 | J6: 0 | K6: 38.08
A7: May-20 | B7: 34.69 | C7: 17.84 | D7: 0.29 | E7: 0 | F7: 47.18 | G7: 14.18 | H7: 29.9 | I7: 15.22 | J7: 0 | K7: 40.7
A8: Jun-20 | B8: 35.22 | C8: 18.45 | D8: 0.22 | E8: 0 | F8: 46.11 | G8: 17.14 | H8: 24.27 | I8: 10.68 | J8: 0 | K8: 47.91
A9: Jul-20 | B9: 36.39 | C9: 15.77 | D9: 0.17 | E9: 0 | F9: 47.67 | G9: 16.76 | H9: 24.26 | I9: 10.94 | J9: 0 | K9: 48.04
A10: Aug-20 | B10: 40.1 | C10: 12.72 | D10: 0.18 | E10: 0 | F10: 46.99 | G10: 18.71 | H10: 23.37 | I10: 9.22 | J10: 0 | K10: 48.7
A11: Sep-20 | B11: 41.45 | C11: 12.18 | D11: 0.15 | E11: 0 | F11: 46.22 | G11: 17.78 | H11: 20.68 | I11: 8.31 | J11: 0 | K11: 53.23
A12: Oct-20 | B12: 41.52 | C12: 11.74 | D12: 0.12 | E12: 0 | F12: 46.61 | G12: 16.46 | H12: 24.24 | I12: 10.47 | J12: 0 | K12: 48.83
A13: Nov-20 | B13: 41.76 | C13: 12.5 | D13: 0.14 | E13: 0 | F13: 45.6 | G13: 17.06 | H13: 24.26 | I13: 9.35 | J13: 0 | K13: 49.33
A14: 2020-12-01 | B14: 44.82 | C14: 11.31 | D14: 0.12 | E14: 0 | F14: 43.74 | G14: 15.72 | H14: 23.79 | I14: 11.08 | J14: 0 | K14: 49.41
A15: Note:
A16: $ indicates as on December 31, 2020
A17: Source: NSE.

Sheet 39
A1: Table 39: Instrument-wise Turnover in Index Derivatives at BSE
A2: (per cent)
A3: Year/Month | B3: BSE 30 SENSEX | C3: BSE SENSEX 50 | D3: BSE BANKEX
A4: 2019-20 | B4: 100 | C4: 0 | D4: 0
A5: 2020-21$ | B5: 1.255858916 | C5: 98.74414108 | D5: 0
A6: Apr-20 | B6: 100 | C6: 0 | D6: 0
A7: May-20 | B7: 100 | C7: 0 | D7: 0
A8: Jun-20 | B8: 16.84 | C8: 83.16 | D8: 0
A9: Jul-20 | B9: 0 | C9: 100 | D9: 0
A10: Aug-20 | B10: 0 | C10: 100 | D10: 0
A11: 2020-09-01 | B11: 0 | C11: 100 | D11: 0
A12: Oct-20 | B12: 0 | C12: 100 | D12: 0
A13: Nov-20 | B13: 0 | C13: 100 | D13: 0
A14: 2020-12-01 | B14: 0 | C14: 100 | D14: 0
A15: Note:
A16: $ indicates as on December 31, 2020
A17: Source: BSE.

Sheet 40
A1: Table 40: Instrument-wise Turnover in Index Derivatives at NSE
A2: (per cent)
A3: Year/Month | B3: NIFTY | C3: NIFTYIT | D3: BANKNIFTY
A4: 2019-20 | B4: 39.00682103 | C4: 0.000950863 | D4: 60.99222811
A5: 2020-21$ | B5: 46.49870427 | C5: 0.0001 | D5: 53.50125361
A6: Apr-20 | B6: 49.58862541 | C6: 0.000317859 | D6: 50.41105673
A7: May-20 | B7: 46.98981117 | C7: 0.000217366 | D7: 53.00997146
A8: Jun-20 | B8: 54.36552644 | C8: 0.000127041 | D8: 45.63434652
A9: Jul-20 | B9: 49.9388868 | C9: 0 | D9: 50.0611132
A10: Aug-20 | B10: 49.84197013 | C10: 0 | D10: 50.15802987
A11: Sep-20 | B11: 47.36399509 | C11: 0 | D11: 52.63600491
A12: Oct-20 | B12: 45.15246348 | C12: 0 | D12: 54.84753652
A13: Nov-20 | B13: 40.324 | C13: 0 | D13: 59.676
A14: 44166 | B14: 42.76489843 | C14: 0 | D14: 57.23510157
A15: Note:
A16: $ indicates as on December 31, 2020
A17: Source: NSE.

Sheet 41
A1: Table 41: Trends in Currency Derivatives Segment at BSE
A2: Year/ Month | B2: No. of Trading Days | C2: Currency Futures | E2: Currency Options | I2: Total | K2: Open Interest at the end of the Month**
E3: Call | G3: Put
C4: No. of Contracts | D4: Turnover (₹ crore) | E4: No. of Contracts | F4: Turnover (₹ crore) | G4: No. of Contracts | H4: Turnover (₹ crore) | I4: No. of Contracts | J4: Turnover * (₹ crore) | K4: No. of Contracts | L4: Value (₹ crore)
A5: 2019-20 | B5: 243 | C5: 400927037 | D5: 2852910.86 | E5: 214693422 | F5: 1538428.304 | G5: 328897100 | H5: 2291934.592 | I5: 944517559 | J5: 6683273.756 | K5: 2288248 | L5: 17251.47
A6: 2020-21$ | B6: =SUM(B7:B20) -> 185 | C6: 201459186 | D6: 1506864.278 | E6: 117836644 | F6: 896156.1019 | G6: 172705908 | H6: 1268026.292 | I6: 492001738 | J6: 3671046.681 | K6: =INDEX(K7:K21, COUNT(K7:K21)) -> 1795099 | L6: =INDEX(L7:L21, COUNT(L7:L21)) -> 13196.90522
A7: Apr-20 | B7: 17 | C7: 18156395 | D7: 138820.29 | E7: 6476787 | F7: 50460.69 | G7: 10892155 | H7: 81863.4 | I7: 35525337 | J7: 271144.38 | K7: 1273915 | L7: 9570.37
A8: May-20 | B8: 18 | C8: 17436081 | D8: 132222.55 | E8: 9017175 | F8: 69915.06 | G8: 14011006 | H8: 104007.3 | I8: 40464262 | J8: 306144.9 | K8: 678398 | L8: 5151.87
A9: Jun-20 | B9: 22 | C9: 23756034 | D9: 180393.67 | E9: 15910793 | F9: 123085.45 | G9: 21994582 | H9: 163766.07 | I9: 61661409 | J9: 467245.2 | K9: 712652 | L9: 5394.75
A10: Jul-20 | B10: 23 | C10: 25338836 | D10: 190382.76 | E10: 10697892 | F10: 81976.56 | G10: 22387440 | H10: 164807.01 | I10: 58424168 | J10: 437166.34 | K10: 639219 | L10: 4839.72
A11: Aug-20 | B11: 21 | C11: 22489598 | D11: 168111.03 | E11: 17886515 | F11: 136249.15 | G11: 20029214 | H11: 147430.08 | I11: 60405327 | J11: 451790.26 | K11: 806498 | L11: 5966.81
A12: Sep-20 | B12: 22 | C12: 25789498 | D12: 189948.5215 | E12: 14614903 | F12: 109555.8563 | G12: 17967576 | H12: 129973.0131 | I12: 58371977 | J12: 429477.3909 | K12: 1051011 | L12: 7777.820635
A13: Oct-20 | B13: 20 | C13: 21085186 | D13: 155309.5278 | E13: 11320525 | F13: 84755.8858 | G13: 23298862 | H13: 168825.3352 | I13: 55704573 | J13: 408890.7488 | K13: 789087 | L13: 5854.094708
A14: Nov-20 | B14: 20 | C14: 22908461 | D14: 170555.6681 | E14: 11030906 | F14: 83259.1646 | G14: 20294564 | H14: 148432.0594 | I14: 54233931 | J14: 402246.8921 | K14: 950779 | L14: 7083.378475
A15: 2020-12-01 | B15: 22 | C15: 24499097 | D15: 181120.2605 | E15: 20881148 | F15: 156898.2852 | G15: 21830509 | H15: 158922.0238 | I15: 67210754 | J15: 496940.5695 | K15: 1795099 | L15: 13196.90522
A16: Note:
A17: 1. * Notional Turnover
A18: 2. ** OI data is at BSE level.
A19: $ indicates as on December 31, 2020
A20: Source: BSE

Sheet 42
A1: Table 42: Trends in Currency Derivatives Segment at NSE
A2: Year/ Month | B2: No. of Trading Days | C2: Currency Futures | E2: Currency Options | I2: Total | K2: Open Interest at the end of Month*
C3: No. of Contracts | D3: Turnover (₹ crore) | E3: Call | G3: Put | I3: No. of Contracts | J3: Turnover* (₹ crore) | K3: No. of Contracts | L3: Value (₹ crore)
E4: No. of Contracts | F4: Turnover (₹ crore) | G4: No. of Contracts | H4: Turnover (₹ crore)
A5: 2019-20 | B5: 243 | C5: 660128849 | D5: 4806639.44 | E5: 352374185 | F5: 2520679.83 | G5: 327759150 | H5: 2327074.499 | I5: 1340262184 | J5: 9654393.768 | K5: 6826565 | L5: 51810.07977
A6: 2020-21$ | B6: =SUM(B7:B20) -> 185 | C6: 534912347 | D6: 4163946.08 | E6: 308329802 | F6: 2313751.595 | G6: 281917537 | H6: 2100014.81 | I6: 1125159686 | J6: 8577712.486 | K6: =INDEX(K7:K22, COUNT(K7:K22)) -> 7299856 | L6: =INDEX(L7:L22, COUNT(L7:L22)) -> 54622.34298
A7: Apr-20 | B7: 17 | C7: 48012637 | D7: 372205.4691 | E7: 22067309 | F7: 169628.2971 | G7: 20327816 | H7: 154448.6911 | I7: 90407762 | J7: 696282.4572 | K7: 4263641 | L7: 32203.75428
A8: May-20 | B8: 18 | C8: 47443900 | D8: 367808.5477 | E8: 26027374 | F8: 198497.3371 | G8: 21602048 | H8: 163221.3511 | I8: 95073322 | J8: 729527.2358 | K8: 3650637 | L8: 27865.66065
A9: Jun-20 | B9: 22 | C9: 58286091 | D9: 456224.9641 | E9: 34559311 | F9: 263411.8262 | G9: 30334567 | H9: 229533.2793 | I9: 123179969 | J9: 949170.0696 | K9: 4593310 | L9: 35033.71025
A10: Jul-20 | B10: 23 | C10: 55160793 | D10: 429355.0447 | E10: 35967687 | F10: 271284.1032 | G10: 32389301 | H10: 242756.524 | I10: 123517781 | J10: 943395.6719 | K10: 4149989 | L10: 31789.24291
A11: Aug-20 | B11: 21 | C11: 57090417 | D11: 447196.3822 | E11: 36908748 | F11: 276899.2195 | G11: 33912469 | H11: 252768.7278 | I11: 127911634 | J11: 976864.3295 | K11: 5261518 | L11: 39274.37002
A12: Sep-20 | B12: 22 | C12: 70415755 | D12: 543128.3976 | E12: 40102425 | F12: 296868.9543 | G12: 38109897 | H12: 280076.2378 | I12: 148628077 | J12: 1120073.59 | K12: 5393259 | L12: 40182.18915
A13: Oct-20 | B13: 20 | C13: 60003856 | D13: 463941.2597 | E13: 36269425 | F13: 268329.9646 | G13: 33365914 | H13: 245397.0578 | I13: 129639195 | J13: 977668.2821 | K13: 4976914 | L13: 37495.17169
A14: Nov-20 | B14: 20 | C14: 66199472 | D14: 514324.0483 | E14: 33611641 | F14: 251110.6733 | G14: 34857933 | H14: 258677.29 | I14: 134669046 | J14: 1024112.012 | K14: 5694357 | L14: 43011.45558
A15: 44166 | B15: 22 | C15: 72299426 | D15: 569761.9669 | E15: 42815882 | F15: 317721.2199 | G15: 37017592 | H15: 273135.6508 | I15: 152132900 | J15: 1160618.838 | K15: 7299856 | L15: 54622.34298
A16: Notes:
A17: 1. Trading Value :- For Futures, Value of contract = Traded Qty*Traded Price. 2. For Options, Value of contract = Traded Qty*(Strike Price+Traded Premium)
A18: 2. *Open Interest provided in Table No. 42 is at NSE Clearing Limited level, while in Table 46 it is at NSE Level. Hence, the difference in number/value between the two tables.
A19: $ indicates as on December 31, 2020
A20: Source: NSE.

Sheet 43
A1: Table 43: Trends in Currency Derivatives Segment at MSEI
A2: Year/ Month | B2: No. of Trading Days | C2: Currency Futures | E2: Currency Options | I2: Total | K2: Open Interest at the end of Month
C3: No. of Contracts | D3: Turnover (₹ crore) | E3: Call | G3: Put | I3: No. of Contracts | J3: Turnover (₹ crore) | K3: No. of Contracts | L3: Value (₹ crore)
E4: No. of Contracts | F4: Turnover (₹ crore) | G4: No. of Contracts | H4: Turnover (₹ crore)
A5: 2019-20 | B5: 243 | C5: 5783785 | D5: 41521.07034 | E5: 234838 | F5: 1757.805652 | G5: 273575 | H5: 2045.642963 | I5: 6292198 | J5: 45324.51895 | K5: 6073 | L5: 45.977366
A6: 2020-21$ | B6: =SUM(B7:B18) -> 185 | C6: =SUM(C7:C18) -> 7825720 | D6: 58264.79029 | E6: 2764 | F6: 20.9897265 | G6: 4241 | H6: 30.80371575 | I6: 7832725 | J6: 58316.58374 | K6: =INDEX(K7:K23, COUNT(K7:K23)) -> 70772 | L6: =INDEX(L7:L23, COUNT(L7:L23)) -> 566.234904
A7: Apr-20 | B7: 17 | C7: 233754 | D7: 1785.281421 | E7: 0 | F7: 0 | G7: 0 | H7: 0 | I7: 233754 | J7: 1785.281421 | K7: 22075 | L7: 166.2475233
A8: May-20 | B8: 18 | C8: 224568 | D8: 1702.423434 | E8: 0 | F8: 0 | G8: 0 | H8: 0 | I8: 224568 | J8: 1702.423434 | K8: 9679 | L8: 73.87971375
A9: Jun-20 | B9: 22 | C9: 375979 | D9: 2854.251227 | E9: 0 | F9: 0 | G9: 0 | H9: 0 | I9: 375979 | J9: 2854.251227 | K9: 15683 | L9: 119.1682203
A10: Jul-20 | B10: 23 | C10: 537915 | D10: 4042.220182 | E10: 565 | F10: 4.20091625 | G10: 2500 | H10: 18.001125 | I10: 540980 | J10: 4064.422224 | K10: 13180 | L10: 99.83725175
A11: Aug-20 | B11: 21 | C11: 706873 | D11: 5291.398713 | E11: 0 | F11: 0 | G11: 0 | H11: 0 | I11: 706873 | J11: 5291.398713 | K11: 14445 | L11: 106.699082
A12: Sep-20 | B12: 22 | C12: 934628 | D12: 6884.906372 | E12: 500 | F12: 3.709925 | G12: 0 | H12: 0 | I12: 935128 | J12: 6888.616297 | K12: 18028 | L12: 134.462391
A13: Oct-20 | B13: 20 | C13: 1232325 | D13: 9067.622706 | E13: 530 | F13: 4.40069 | G13: 429 | H13: 3.17786975 | I13: 1233284 | J13: 9075.201266 | K13: 12722 | L13: 95.381642
A14: Nov-20 | B14: 20 | C14: 1655784 | D14: 12331.03858 | E14: 866 | F14: 6.438898 | G14: 989 | H14: 7.2353595 | I14: 1657639 | J14: 12344.71283 | K14: 42379 | L14: 320.4132215
A15: 44166 | B15: 22 | C15: 1923894 | D15: 14305.64766 | E15: 303 | F15: 2.23929725 | G15: 323 | H15: 2.3893615 | I15: 1924520 | J15: 14310.27632 | K15: 70772 | L15: 566.234904
A16: Note:
A17: $ indicates as on December 31, 2020
A18: Source: MSEI

Sheet 44
A1: Table 44: Settlement Statistics of Currency Derivatives Segment
P2: (₹ crore)
A3: Year/ Month | B3: BSE | F3: Total | G3: NSE | K3: Total | L3: MSEI | P3: Total
B4: Currency Futures | D4: Currency Options | G4: Currency Futures | I4: Currency Options | L4: Currency Futures | N4: Currency Options
B5: MTM Settlement | C5: Final Settlement | D5: Premium Settlement | E5: Exercise Settlement | G5: MTM Settlement | H5: Final Settlement | I5: Premium Settlement | J5: Exercise Settlement | L5: MTM Settlement | M5: Final Settlement | N5: Premium Settlement | O5: Exercise Settlement
A6: 2019-20 | B6: 7222.5 | C6: 246.08 | D6: 5002.79 | E6: 76.14 | F6: 12547.51 | G6: 9038.768458 | H6: 266.0063539 | I6: 1351.724861 | J6: 553.3603328 | K6: 11209.86001 | L6: 95.838627 | M6: 6.3884943 | N6: 0.03864 | O6: 0.001099 | P6: 102.2668603
A7: 2020-21$ | B7: =SUM(B8:B19) -> 4896.52 | C7: 146.32 | D7: 3809.01 | E7: 85.12 | F7: 8936.97 | G7: 5611.962744 | H7: 148.5453674 | I7: 919.0986951 | J7: 312.6116366 | K7: 6992.218443 | L7: 80.68019525 | M7: 5.56902 | N7: 0 | O7: 0 | P7: 86.24921525
A8: Apr-20 | B8: 1122.19 | C8: 12.14 | D8: 322.03 | E8: 8.34 | F8: 1464.7 | G8: 1732.109531 | H8: 17.21189787 | I8: 118.462208 | J8: 30.03236269 | K8: 1897.816 | L8: 7.94 | M8: 0.317 | N8: 0 | O8: 0 | P8: 8.257
A9: May-20 | B9: 457.51 | C9: 4 | D9: 312.09 | E9: 3.94 | F9: 777.54 | G9: 555.4863765 | H9: 4.48651009 | I9: 79.32699225 | J9: 16.69789311 | K9: 655.9977719 | L9: 12.65 | M9: 0.08 | N9: 0 | O9: 0 | P9: 12.73
A10: Jun-20 | B10: 288.4 | C10: 4.17 | D10: 334.02 | E10: 4.12 | F10: 630.71 | G10: 360.420067 | H10: 6.89482765 | I10: 89.0823845 | J10: 23.39430685 | K10: 479.791586 | L10: 6.38675425 | M10: 0.759 | N10: 0 | O10: 0 | P10: 7.14575425
A11: Jul-20 | B11: 371.52 | C11: 5.94 | D11: 417.16 | E11: 12.75 | F11: 807.37 | G11: 459.9738062 | H11: 9.04366264 | I11: 95.1821375 | J11: 52.27005394 | K11: 616.4696603 | L11: 4.2533475 | M11: 0.35235 | N11: 0 | O11: 0 | P11: 4.6056975
A12: Aug-20 | B12: 475.56 | C12: 6.14 | D12: 387.25 | E12: 6.53 | F12: 875.48 | G12: 461.1963631 | H12: 6.28521737 | I12: 97.78292362 | J12: 27.03628371 | K12: 592.3007878 | L12: 16.86103975 | M12: 0.43605 | N12: 0 | O12: 0 | P12: 17.29708975
A13: Sep-20 | B13: 394.99 | C13: 6.53 | D13: 520.28 | E13: 9.37 | F13: 931.17 | G13: 359.4922178 | H13: 8.21595396 | I13: 119.6771298 | J13: 34.74313207 | K13: 522.1284336 | L13: 5.99906175 | M13: 0.2984 | N13: 0 | O13: 0 | P13: 6.29746175
A14: Oct-20 | B14: 418.49 | C14: 23.89 | D14: 448.51 | E14: 12.54 | F14: 903.43 | G14: 422.6009371 | H14: 23.10388582 | I14: 100.0689888 | J14: 38.28261217 | K14: 584.0564239 | L14: 2.11479825 | M14: 0.7914 | N14: 0 | O14: 0 | P14: 2.90619825
A15: Nov-20 | B15: 351.22 | C15: 8.37 | D15: 528.31 | E15: 12.8 | F15: 900.7 | G15: 413.8642087 | H15: 7.85301116 | I15: 114.061824 | J15: 41.44197189 | K15: 577.2210157 | L15: 8.310654 | M15: 0.49544 | N15: 0 | O15: 0 | P15: 8.806094
A16: 2020-12-01 | B16: 1016.64 | C16: 75.14 | D16: 539.36 | E16: 14.73 | F16: 1645.87 | G16: 846.8192366 | H16: 65.45040088 | I16: 105.4541067 | J16: 48.71302015 | K16: 1066.436764 | L16: 16.16453975 | M16: 2.03938 | N16: 0 | O16: 0 | P16: 18.20391975
A17: Note:
A18: $ indicates as on December 31, 2020
A19: Source: ICCL, NCL and MCCIL.

Sheet 45
A1: Table 45: Instrument-wise Turnover in Currency Derivatives Segment of BSE
A2: Year/Month | B2: Turnover* (₹ crore) | I2: Open Interest as on last day of the month (in lots)**
B3: USDINR | C3: EURINR | D3: GBPINR | E3: JPYINR | F3: EURUSD | G3: GBPUSD | H3: USDJPY | I3: USDINR | J3: EURINR | K3: GBPINR | L3: JPYINR | M3: EURUSD | N3: GBPUSD | O3: USDJPY
A4: 2019-2020 | B4: 6677486.456 | C4: 1792.544728 | D4: 2170.681467 | E4: 1823.752505 | F4: 0.09385881738 | G4: 0.03707260866 | H4: 0.16362096 | I4: 2270484 | J4: 7992 | K4: 338 | L4: 9434 | M4: 0 | N4: 0 | O4: 0
A5: 2020-21$ | B5: =SUM(B6:B19) -> 3661979.547 | C5: =SUM(C6:C19) -> 3618.155837 | D5: 4719.328478 | E5: 729.6304975 | F5: 0 | G5: 0 | H5: 0 | I5: =INDEX(I6:I19, COUNT(I6:I19)) -> 1752838 | J5: 21631 | K5: 17880 | L5: 2750 | M5: 0 | N5: 0 | O5: 0
A6: 2020-04-13 | B6: 270845.7007 | C6: 96.07372275 | D6: 126.9456955 | E6: 75.655299 | F6: 0 | G6: 0 | H6: 0 | I6: 1271120 | J6: 1045 | K6: 646 | L6: 1104 | M6: 0 | N6: 0 | O6: 0
A7: 2020-05-14 | B7: 305507.9269 | C7: 318.0956475 | D7: 229.198891 | E7: 89.6796575 | F7: 0 | G7: 0 | H7: 0 | I7: 652421 | J7: 20386 | K7: 2921 | L7: 2670 | M7: 0 | N7: 0 | O7: 0
A8: 2020-06-14 | B8: 466201.489 | C8: 434.81994 | D8: 512.0720665 | E8: 96.81211475 | F8: 0 | G8: 0 | H8: 0 | I8: 700596 | J8: 9437 | K8: 2256 | L8: 363 | M8: 0 | N8: 0 | O8: 0
A9: 2020-07-15 | B9: 436223.8181 | C9: 642.5056798 | D9: 266.2187085 | E9: 33.7947355 | F9: 0 | G9: 0 | H9: 0 | I9: 598516 | J9: 34047 | K9: 5358 | L9: 1298 | M9: 0 | N9: 0 | O9: 0
A10: 2020-08-15 | B10: 450746.0694 | C10: 614.1893595 | D10: 384.9251065 | E10: 45.07681275 | F10: 0 | G10: 0 | H10: 0 | I10: 785958 | J10: 16288 | K10: 3611 | L10: 641 | M10: 0 | N10: 0 | O10: 0
A11: 2020-09-15 | B11: 428787.3311 | C11: 157.9545552 | D11: 480.0326615 | E11: 52.0707015 | F11: 0 | G11: 0 | H11: 0 | I11: 1034804 | J11: 14144 | K11: 1744 | L11: 319 | M11: 0 | N11: 0 | O11: 0
A12: 2020-10-16 | B12: 408051.6083 | C12: 363.2663253 | D12: 402.7680375 | E12: 73.10424525 | F12: 0 | G12: 0 | H12: 0 | I12: 774835 | J12: 1847 | K12: 7234 | L12: 5171 | M12: 0 | N12: 0 | O12: 0
A13: 2020-11-16 | B13: 400873.814 | C13: 340.4061433 | D13: 850.8303698 | E13: 181.840671 | F13: 0 | G13: 0 | H13: 0 | I13: 912871 | J13: 14157 | K13: 19243 | L13: 4508 | M13: 0 | N13: 0 | O13: 0
A14: 2020-12-01 | B14: 494741.7892 | C14: 650.844464 | D14: 1466.336941 | E14: 81.59626025 | F14: 0 | G14: 0 | H14: 0 | I14: 1752838 | J14: 21631 | K14: 17880 | L14: 2750 | M14: 0 | N14: 0 | O14: 0
A15: Note:
A16: 1. * Notional Turnover
A17: 2. ** OI data is at BSE level.
A18: $ indicates as on December 31, 2020
A19: Source: BSE

Sheet 46
A1: Table 46: Instrument-wise Turnover in Currency Derivatives Segment of NSE
A2: Year/Month | B2: Turnover* (₹ crore) | I2: Open Interest as on last day of the month (in lots)*
B3: USDINR | C3: EURINR | D3: GBPINR | E3: JPYINR | F3: EURUSD | G3: GBPUSD | H3: USDJPY | I3: USDINR | J3: EURINR | K3: GBPINR | L3: JPYINR | M3: EURUSD | N3: GBPUSD | O3: USDJPY
A4: 2019-20 | B4: 9009927.993 | C4: 170324.3795 | D4: 374339.8015 | E4: 75589.00404 | F4: 11480.41764 | G4: 12513.16936 | H4: 219.0037257 | I4: 6680611 | J4: 81513 | K4: 32141 | L4: 30965 | M4: 650 | N4: 643 | O4: 24
A5: 2020-21$ | B5: =SUM(B6:B22) -> 7610883.802 | C5: =SUM(C6:C22) -> 322820.546 | D5: 553075.0206 | E5: 80080.32916 | F5: 4570.932255 | G5: 6222.651556 | H5: 59.20308027 | I5: =INDEX(I6:I22, COUNT(I6:I22)) -> 7072864 | J5: =INDEX(J6:J22, COUNT(J6:J22)) -> 301687 | K5: 236483 | L5: 30790 | M5: 6286 | N5: 5483 | O5: 124
A6: Apr-20 | B6: 655054.7567 | C6: 11949.74469 | D6: 23656.50869 | E6: 5267.949637 | F6: 129.5959632 | G6: 221.4217347 | H6: 2.479853718 | I6: 4875455 | J6: 67920 | K6: 42712 | L6: 36164 | M6: 1128 | N6: 1805 | O6: 47
A7: May-20 | B7: 663982.926 | C7: 20144.29029 | D7: 37101.38659 | E7: 7695.096937 | F7: 230.8586977 | G7: 367.3858751 | H7: 5.291468558 | I7: 4204478 | J7: 165613 | K7: 42731 | L7: 32939 | M7: 3028 | N7: 2283 | O7: 18
A8: Jun-20 | B8: 853857.839 | C8: 28614.87936 | D8: 55969.38432 | E8: 9383.407927 | F8: 546.5940643 | G8: 790.4800815 | H8: 7.484807812 | I8: 4288347 | J8: 154408 | K8: 72300 | L8: 31324 | M8: 2564 | N8: 2375 | O8: 25
A9: Jul-20 | B9: 844302.7369 | C9: 41198.97358 | D9: 47785.2426 | E9: 8475.847945 | F9: 849.5651702 | G9: 779.0527744 | H9: 4.252958869 | I9: 4778747 | J9: 273940 | K9: 124436 | L9: 32991 | M9: 6381 | N9: 1897 | O9: 77
A10: Aug-20 | B10: 857995.1227 | C10: 50143.45804 | D10: 56740.37298 | E10: 10440.61926 | F10: 745.8270656 | G10: 789.4129775 | H10: 9.516474124 | I10: 4831227 | J10: 210451 | K10: 99422 | L10: 32832 | M10: 7162 | N10: 3024 | O10: 12
A11: Sep-20 | B11: 981988.9951 | C11: 45279.9877 | D11: 79550.14944 | E11: 11919.14837 | F11: 562.6200652 | G11: 761.3442432 | H11: 11.34469526 | I11: 5125997 | J11: 155352 | K11: 59034 | L11: 28800 | M11: 3348 | N11: 1655 | O11: 23
A12: Oct-20 | B12: 857549.2187 | C12: 38069.02283 | D12: 72533.40381 | E12: 8522.383427 | F12: 336.5758078 | G12: 654.9238821 | H12: 2.753618339 | I12: 5607942 | J12: 192303 | K12: 111715 | L12: 62198 | M12: 2767 | N12: 1770 | O12: 114
A13: Nov-20 | B13: 905610.533 | C13: 40958.6613 | D13: 66330.95997 | E13: 10139.42123 | F13: 357.505461 | G13: 704.4554701 | H13: 10.4752304 | I13: 6642033 | J13: 239353 | K13: 194845 | L13: 40530 | M13: 4105 | N13: 1873 | O13: 42
A14: 2020-12-01 | B14: 990541.6743 | C14: 46461.52817 | D14: 113407.6122 | E14: 8236.454427 | F14: 811.7899599 | G14: 1154.174517 | H14: 5.603973192 | I14: 7072864 | J14: 301687 | K14: 236483 | L14: 30790 | M14: 6286 | N14: 5483 | O14: 124
A15: Notes:
A16: 1. * Notional Turnover
A17: 2. *Open Interest provided in Table No. 42 is at NSE Clearing Limited level, while in Table 46 it is at NSE Level. Hence, the difference in number/value between the two tables.
A18: $ indicates as on December 31, 2020
A19: Source: NSE.

Sheet 47
A1: Table 47: Instrument-wise Turnover in Currency Derivatives Segment of MSEI
A2: Year/Month | B2: Turnover* (₹ crore) | F2: Open Interest as on last day of the month (in lots)
B3: USDINR | C3: EURINR | D3: GBPINR | E3: JPYINR | F3: USDINR | G3: EURINR | H3: GBPINR | I3: JPYINR
A4: 2019-20 | B4: 43153.86884 | C4: 941.3291125 | D4: 1223.809899 | E4: 5.51110175 | F4: 6062 | G4: 11 | H4: 0 | I4: 0
A5: 2020-21$ | B5: =SUM(B6:B17) -> 57531.07468 | C5: =SUM(C6:C17) -> 480.0877917 | D5: =SUM(D6:D17) -> 304.3529875 | E5: =SUM(E6:E17) -> 1.0682815 | F5: =INDEX(F6:F22, COUNT(F6:F22)) -> 44699 | G5: =INDEX(G6:G22, COUNT(G6:G22)) -> 22108 | H5: =INDEX(H6:H22, COUNT(H6:H22)) -> 3965 | I5: =INDEX(I6:I22, COUNT(I6:I22)) -> 0
A6: Apr-20 | B6: 1782.77349 | C6: 1.07487325 | D6: 1.43305725 | E6: 0 | F6: 21998 | G6: 52 | H6: 25 | I6: 0
A7: May-20 | B7: 1694.269398 | C7: 5.61881075 | D7: 2.53522525 | E7: 0 | F7: 9148 | G7: 506 | H7: 25 | I7: 0
A8: Jun-20 | B8: 2830.312813 | C8: 18.98632025 | D8: 4.952093 | E8: 0 | F8: 15405 | G8: 201 | H8: 77 | I8: 0
A9: Jul-20 | B9: 4050.153183 | C9: 11.57521225 | D9: 2.693828 | E9: 0 | F9: 12489 | G9: 691 | H9: 0 | I9: 0
A10: Aug-20 | B10: 5267.139139 | C10: 21.45385425 | D10: 2.7702545 | E10: 0.035465 | F10: 14061 | G10: 332 | H10: 52 | I10: 0
A11: Sep-20 | B11: 6855.9463 | C11: 19.5110395 | D11: 13.0047035 | E11: 0.15425475 | F11: 17122 | G11: 818 | H11: 80 | I11: 8
A12: Oct-20 | B12: 9052.796982 | C12: 11.5355455 | D12: 10.84089025 | E12: 0.027848 | F12: 12488 | G12: 9 | H12: 225 | I12: 0
A13: Nov-20 | B13: 12276.60869 | C13: 39.58774975 | D13: 27.6656765 | E13: 0.85071375 | F13: 38915 | G13: 2396 | H13: 1008 | I13: 60
A14: 2020-12-01 | B14: 13721.07467 | C14: 350.7443862 | D14: 238.4572592 | E14: 0 | F14: 44699 | G14: 22108 | H14: 3965 | I14: 0
A15: Notes :
A16: 1. * Notional Turnover
A17: $ indicates as on December 31, 2020
A18: Source: MSEI

Sheet 48
A1: Table 48: Maturitywise Turnover in Currency Derivative Segment of BSE
K2: (₹ crore)
B3: Currency Future | G3: Currency Options
B4: Weekly | C4: 1 Month | D4: 2 Month | E4: 3 Month | F4: > 3 months | G4: Weekly | H4: 1 Month | I4: 2 Month | J4: 3 Month | K4: > 3 months
A5: 2019-20 | B5: 67678.5734 | C5: 2427178.934 | D5: 346918.8152 | E5: 10602.6005 | F5: 531.9735 | G5: 455671.5774 | H5: 3139015.629 | I5: 235548.3352 | J5: 127.5505 | K5: 0
A6: 2020-21 | B6: =SUM(B7:B21) -> 149382.3639 | C6: =SUM(C7:C21) -> 1092091.716 | D6: 257561.9313 | E6: 6331.9683 | F6: 1496.1434 | G6: 598316.9263 | H6: 1288669.88 | I6: 277168.3402 | J6: 27.1622 | K6: 0
A7: 2020-04-04 | B7: 7960.0966 | C7: 99902.3427 | D7: 30270.1973 | E7: 684.3755 | F7: 3.2729 | G7: 60556.6403 | H7: 43953.9199 | I7: 27813.5313 | J7: 0 | K7: 0
A8: 2020-05-04 | B8: 8918.1 | C8: 98146.42 | D8: 24875.23 | E8: 274.55 | F8: 8.24 | G8: 50195.75 | H8: 89806.55 | I8: 33912.23 | J8: 7.81 | K8: 0
A9: 2020-06-04 | B9: 13295.71 | C9: 129794.97 | D9: 36969.9 | E9: 331.2 | F9: 1.74 | G9: 49830.09 | H9: 199656.84 | I9: 37358.5 | J9: 6.09 | K9: 0
A10: 2020-07-04 | B10: 19106.9 | C10: 136887.07 | D10: 33567.66 | E10: 815.07 | F10: 6.06 | G10: 42237.66 | H10: 171323.64 | I10: 33216.53 | J10: 5.74 | K10: 0
A11: 2020-08-04 | B11: 14000.68 | C11: 124186.34 | D11: 29186.13 | E11: 706.36 | F11: 31.53 | G11: 76576.68 | H11: 183546.54 | I11: 23556.01 | J11: 0 | K11: 0
A12: 2020-09-04 | B12: 17283.4128 | C12: 152283.5731 | D12: 20091.9013 | E12: 284.2632 | F12: 5.3711 | G12: 96113.6983 | H12: 103470.1843 | I12: 39944.9868 | J12: 0 | K12: 0
A13: 2020-10-04 | B13: 22833.8593 | C13: 104438.3431 | D13: 26737.3373 | E13: 1103.5839 | F13: 196.4042 | G13: 93290.6047 | H13: 130976.307 | I13: 29314.2425 | J13: 0.0077 | K13: 0
A14: 2020-11-04 | B14: 21442.8356 | C14: 116928.2282 | D14: 30751.4365 | E14: 1111.8636 | F14: 321.3042 | G14: 70017.4143 | H14: 133223.3811 | I14: 28450.421 | J14: 0 | K14: 0
A15: 2020-12-04 | B15: 24540.7696 | C15: 129524.4289 | D15: 25112.1389 | E15: 1020.7021 | F15: 922.221 | G15: 59498.3887 | H15: 232712.5172 | I15: 23601.8886 | J15: 7.5145 | K15: 0
A16: Notes:
A17: 1. Weekly maturity data is added to the table, hence the data may not be strictly comparable with the earlier published data.
A18: $ indicates as on December 31, 2020
A19: Source: BSE

Sheet 49
A1: Table 49: Maturity-wise Turnover in Currency Derivatives Segment of NSE
K2: (₹ crore)
A3: Month/Year | B3: Currency Future | G3: Currency Options
B4: Weekly | C4: 1 Month | D4: 2 Month | E4: 3 Month | F4: > 3 months | G4: Weekly | H4: 1 Month | I4: 2 Month | J4: 3 Month | K4: > 3 months
A5: 2019-20 | B5: 0 | C5: 3697571.657 | D5: 991649.2231 | E5: 77821.75161 | F5: 39596.80802 | G5: 2507876.797 | H5: 2079667.31 | I5: 258721.894 | J5: 1449.375883 | K5: 38.95150468
A6: 2020-21$ | B6: =SUM(B7:B19) -> 2020.97944 | C6: =SUM(C7:C19) -> 3365980.625 | D6: 707935.1438 | E6: 59760.5939 | F6: 28248.73844 | G6: 2451003.765 | H6: 1732478.242 | I6: 229631.6136 | J6: 627.8897772 | K6: 24.893683
A7: 2020-04-16 | B7: 0 | C7: 282105.4049 | D7: 81657.16157 | E7: 6045.598669 | F7: 2397.303889 | G7: 146154.513 | H7: 159705.5234 | I7: 18209.84985 | J7: 5.86590075 | K7: 1.236035
A8: 2020-05-16 | B8: 0 | C8: 289073.9629 | D8: 71291.09703 | E8: 6200.175761 | F8: 1243.311936 | G8: 197766.1678 | H8: 147472.2147 | I8: 16461.79449 | J8: 3.10463175 | K8: 15.406516
A9: 2020-06-16 | B9: 0 | C9: 368055.194 | D9: 79812.84486 | E9: 5741.681591 | F9: 2615.243633 | G9: 253763.432 | H9: 217173.0051 | I9: 21957.78987 | J9: 50.323695 | K9: 0.554788
A10: 2020-07-16 | B10: 0 | C10: 343621.2274 | D10: 75715.7246 | E10: 6821.706721 | F10: 3196.385975 | G10: 298499.0172 | H10: 194065.2679 | I10: 21469.90005 | J10: 6.21144025 | K10: 0.23060825
A11: 2020-08-16 | B11: 0 | C11: 353349.6855 | D11: 82858.69825 | E11: 7197.469908 | F11: 3790.528565 | G11: 270486.1542 | H11: 223262.5332 | I11: 35785.98225 | J11: 132.7696098 | K11: 0.50807125
A12: 2020-09-16 | B12: 0 | C12: 452948.2786 | D12: 80381.21888 | E12: 6470.944182 | F12: 3327.955995 | G12: 351656.583 | H12: 198197.7631 | I12: 27090.6857 | J12: 0 | K12: 0.16022425
A13: 2020-10-16 | B13: 0 | C13: 384692.9418 | D13: 69615.26036 | E13: 7198.727377 | F13: 2434.330163 | G13: 299691.9483 | H13: 187425.2971 | I13: 26416.71157 | J13: 193.0653725 | K13: 0
A14: 2020-11-16 | B14: 0 | C14: 425573.1726 | D14: 78833.05429 | E14: 6725.791658 | F14: 3192.029747 | G14: 281825.5802 | H14: 198781.146 | I14: 29009.47082 | J14: 171.525123 | K14: 0.241172
A15: 2020-12-01 | B15: 2020.97944 | C15: 466560.757 | D15: 87770.08396 | E15: 7358.498031 | F15: 6051.648539 | G15: 351160.3695 | H15: 206395.4919 | I15: 33229.42896 | J15: 65.02400425 | K15: 6.55626825
A16: Note:
A17: 1. Weekly maturity data is added to the table, hence the data may not be strictly comparable with the data published prior to November 2020.
A18: $ indicates as on December 31, 2020
A19: Source: NSE.

Sheet 50
A1: Table 50: Maturity-wise Turnover in Currency Derivatives Segment of MSEI
K2: (₹ Crore)
A3: Month/Year | B3: Currency Future | G3: Currency Options
B4: Weekly | C4: 1 Month | D4: 2 Month | E4: 3 Month | F4: > 3 months | G4: Weekly | H4: 1 Month | I4: 2 Month | J4: 3 Month | K4: > 3 months
A5: 2019-20 | B5: 0.05009575 | C5: 39121.48617 | D5: 2373.318225 | E5: 25.85964625 | F5: 0.3562 | G5: 448.0840887 | H5: 3290.301154 | I5: 65.06337225 | J5: 0 | K5: 0
A6: 2020-21$ | B6: 0.0151485 | C6: 54841.9008 | D6: 3414.149673 | E6: 8.46746225 | F6: 0.25721 | G6: 16.9114105 | H6: 32.09800675 | I6: 2.784025 | J6: 0 | K6: 0
A7: 2020-04-01 | B7: 0 | C7: 1556.707123 | D7: 227.8068992 | E7: 0.76739875 | F7: 0 | G7: 0 | H7: 0 | I7: 0 | J7: 0 | K7: 0
A8: 2020-05-31 | B8: 0 | C8: 1483.997727 | D8: 211.9568248 | E8: 6.46888225 | F8: 0 | G8: 0 | H8: 0 | I8: 0 | J8: 0 | K8: 0
A9: 2020-06-01 | B9: 0.0151485 | C9: 2632.501145 | D9: 220.5927765 | E9: 1.14215625 | F9: 0 | G9: 0 | H9: 0 | I9: 0 | J9: 0 | K9: 0
A10: 2020-07-01 | B10: 0 | C10: 3514.566502 | D10: 527.6536798 | E10: 0 | F10: 0 | G10: 0 | H10: 22.20204125 | I10: 0 | J10: 0 | K10: 0
A11: 2020-08-01 | B11: 0 | C11: 5026.983084 | D11: 264.2871095 | E11: 0 | F11: 0.12852 | G11: 0 | H11: 0 | I11: 0 | J11: 0 | K11: 0
A12: 2020-09-01 | B12: 0 | C12: 6583.395387 | D12: 301.3674055 | E12: 0.01489 | F12: 0.12869 | G12: 0 | H12: 2.965575 | I12: 0.74435 | J12: 0 | K12: 0
A13: 2020-10-01 | B13: 0 | C13: 8861.402594 | D13: 206.145977 | E13: 0.074135 | F13: 0 | G13: 6.83840975 | H13: 0.74015 | I13: 0 | J13: 0 | K13: 0
A14: 2020-11-01 | B14: 0 | C14: 11575.1932 | D14: 755.8453755 | E14: 0 | F14: 0 | G14: 6.26900025 | H14: 5.36558225 | I14: 2.039675 | J14: 0 | K14: 0
A15: 2020-12-01 | B15: 0 | C15: 13607.15404 | D15: 698.4936253 | E15: 0 | F15: 0 | G15: 3.8040005 | H15: 0.82465825 | I15: 0 | J15: 0 | K15: 0
A16: Note:
A17: 1. Weekly maturity data is added to the table, hence the data may not be strictly comparable with the earlier published data.
A18: 2. Includes data across all underlying and data of Cross Currency contracts and Weekly contracts
A19: 3. Cross Currency and weekly Options was introduced wef December 05, 2018
A20: 4. Weekly Futures was introduced wef February 24, 2020
A21: $ indicates as on December 31, 2020
A22: Source: MSEI

Sheet 51
A1: Table 51: Trading Statistics in Interest Rate Derivatives Segment
A2: Year/ Month | B2: No. of Trading Days | C2: BSE* | G2: NSE | O2: MSEI
C3: Interest Rate Futures | E3: Open Interest at the end of | G3: Interest Rate Futures | I3: Interest Rate Options | K3: Total | M3: Open Interest at the end of** | O3: Interest RateFutures | Q3: Open Interest at the end of
C4: No. of Contracts | D4: Traded Value (₹ crore) | E4: No. of Contracts | F4: Value (₹ crore) | G4: No. of Contracts | H4: Traded Value (₹ crore) | I4: No. of Contracts | J4: Traded Value (₹ crore) | K4: No. of Contracts | L4: Traded Value (₹ crore) | M4: No. of Contracts | N4: Value (₹ crore) | O4: No. of Contracts | P4: Traded Value (₹ crore) | Q4: No. of Contracts | R4: Value (₹ crore)
A5: 2019-20 | B5: 243 | C5: 4917740 | D5: 100045.4315 | E5: 32362 | F5: 682.81 | G5: 17217124 | H5: 351817.7583 | I5: 444761 | J5: 8993.38081 | K5: =SUM(G5,I5) -> 17661885 | L5: =SUM(H5,J5) -> 360811.1391 | M5: 77036 | N5: 1592.848595 | O5: 0 | P5: 0 | Q5: 0 | R5: 0
A6: 2020-21$ | B6: =SUM(B7:B18) -> 185 | C6: =SUM(C7:C18) -> 1016264 | D6: =SUM(D7:D18) -> 20962.886 | E6: =INDEX(E7:E18, COUNT(E7:E18)) -> 8836 | F6: =INDEX(F7:F18, COUNT(F7:F18)) -> 190.5351979 | G6: =SUM(G7:G15) -> 3979309 | H6: =SUM(H7:H15) -> 81317.98741 | I6: =SUM(I7:I15) -> 41368 | J6: =SUM(J7:J15) -> 854.3618295 | K6: =SUM(G6,I6) -> 4020677 | L6: 82172.34924 | M6: =INDEX(M7:M18, COUNT(M7:M18)) -> 43744 | N6: =INDEX(N7:N18, COUNT(N7:N18)) -> 907.98 | O6: =SUM(O7:O15) -> 0 | P6: =SUM(P7:P15) -> 0 | Q6: =INDEX(Q7:Q18, COUNT(Q7:Q18)) -> 0 | R6: =INDEX(R7:R18, COUNT(R7:R18)) -> 0
A7: Apr-20 | B7: 17 | C7: 117135 | D7: 2394.6294 | E7: 22389 | F7: 486.62 | G7: 462985 | H7: 9422.582544 | I7: 15183 | J7: 311.164205 | K7: 478168 | L7: 9733.746748 | M7: 51482 | N7: 1075.917142 | O7: 0 | P7: 0 | Q7: 0 | R7: 0
A8: May-20 | B8: 18 | C8: 92350 | D8: 1898.7685 | E8: 32071 | F8: 695.75 | G8: 578495 | H8: 11886.51504 | I8: 15039 | J8: 311.332955 | K8: 593534 | L8: 12197.848 | M8: 66972 | N8: 1409.258315 | O8: 0 | P8: 0 | Q8: 0 | R8: 0
A9: Jun-20 | B9: 22 | C9: 207052 | D9: 4307.7403 | E9: 25260 | F9: 525.02 | G9: 803319 | H9: 16565.86198 | I9: 10776 | J9: 224.1784285 | K9: 814095 | L9: 16790.0404 | M9: 102803 | N9: 2140.647929 | O9: 0 | P9: 0 | Q9: 0 | R9: 0
A10: Jul-20 | B10: 23 | C10: 193802 | D10: 4082.3089 | E10: 19100 | F10: 399.24 | G10: 554091 | H10: 11472.24032 | I10: 266 | J10: 5.539441 | K10: 554357 | L10: 11477.77976 | M10: 59617 | N10: 1260.509381 | O10: 0 | P10: 0 | Q10: 0 | R10: 0
A11: Aug-20 | B11: 21 | C11: 65635 | D11: 1339.4258 | E11: 5447 | F11: 112.12 | G11: 434184 | H11: 8835.961081 | I11: 3 | J11: 0.0612545 | K11: 434187 | L11: 8836.022335 | M11: 65722 | N11: 1365.007214 | O11: 0 | P11: 0 | Q11: 0 | R11: 0
A12: Sep-20 | B12: 22 | C12: 30352 | D12: 618.837 | E12: 1750 | F12: 37.548735 | G12: 389067 | H12: 7966.11501 | I12: 101 | J12: 2.0855455 | K12: 389168 | L12: 7968.200555 | M12: 45801 | N12: 953.331487 | O12: 0 | P12: 0 | Q12: 0 | R12: 0
A13: Oct-20 | B13: 20 | C13: 94839 | D13: 1949.4366 | E13: 1252 | F13: 27.85801132 | G13: 294052 | H13: 5969.361613 | I13: 0 | J13: 0 | K13: 294052 | L13: 5969.361613 | M13: 58345 | N13: 1205.073115 | O13: 0 | P13: 0 | Q13: 0 | R13: 0
A14: Nov-20 | B14: 20 | C14: 161510 | D14: 3284.346 | E14: 3595 | F14: 76.39923182 | G14: 187096 | H14: 3735.217659 | I14: 0 | J14: 0 | K14: 187096 | L14: 3735.217659 | M14: 57654 | N14: 1185.809375 | O14: 0 | P14: 0 | Q14: 0 | R14: 0
A15: 44166 | B15: 22 | C15: 53589 | D15: 1087.3935 | E15: 8836 | F15: 190.5351979 | G15: 276020 | H15: 5464.132164 | I15: 0 | J15: 0 | K15: 276020 | L15: 5464.132164 | M15: 43744 | N15: 907.98 | O15: 0 | P15: 0 | Q15: 0 | R15: 0
A16: Notes:
A17: 1. IR Options were launched at NSE during Dec 2019, the data has been revised accordingly
A18: 2. Open interest is valued at daily settlement prices
A19: 3. The Open interest pertains to NSE Clearing and Includes the data of multiple exchnages)
A20: 4. IR Options were launched at BSE during Aug 2019. However, there is no trading activity since launch.
A21: $ indicates as on December 31, 2020
A22: Source: BSE, NSE and MSEI

Sheet 52
A1: Table 52: Settlement Statistics in Interest Rate Derivatives Segment
I2: (₹ crore)
A3: Year/ Month | B3: BSE | D3: NSE | H3: MSEI
B4: Interest Rate Futures | D4: Interest Rate Futures | F4: Interest Rate Options | H4: Interest Rate Futures
B5: MTM Settlement | C5: Final Settlement | D5: MTM Settlement | E5: Final Settlement | F5: Premium Settlement | G5: Exercise Settlement | H5: MTM Settlement | I5: Final Settlement
A6: 2019-20 | B6: 1417.022224 | C6: 23.05213 | D6: 1400.2491 | E6: 20.05797746 | F6: 16.88 | G6: 2.54653774 | H6: 0 | I6: 0
A7: 2020-21$ | B7: =SUM(B8:B22) -> 307.650895 | C7: 2.973014 | D7: 353.707373 | E7: 3.51765062 | F7: 2.83 | G7: 2.36985976 | H7: 0 | I7: 0
A8: Apr-20 | B8: 100.356579 | C8: 0.313188 | D8: 78.21515 | E8: 0.38330288 | F8: 1.1 | G8: 1.85396948 | H8: 0 | I8: 0
A9: May-20 | B9: 50.891994 | C9: 0.04784 | D9: 51.9933625 | E9: 0.2641428 | F9: 1.14 | G9: 0.50847504 | H9: 0 | I9: 0
A10: Jun-20 | B10: 40.929543 | C10: 0.736421 | D10: 48.6230535 | E10: 0.3382731 | F10: 0.56 | G10: 0 | H10: 0 | I10: 0
A11: Jul-20 | B11: 25.355761 | C11: 0.033484 | D11: 42.119494 | E11: 0.17433314 | F11: 0.02 | G11: 0.0073916 | H11: 0 | I11: 0
A12: Aug-20 | B12: 25.204655 | C12: 1.098963 | D12: 38.96488702 | E12: 0.5995524 | F12: 0 | G12: 0 | H12: 0 | I12: 0
A13: Sep-20 | B13: 23.77108 | C13: 0.08475 | D13: 31.6645335 | E13: 0.0956566 | F13: 0.01 | G13: 2.364e-05 | H13: 0 | I13: 0
A14: Oct-20 | B14: 16.550517 | C14: 0.2172 | D14: 22.6854735 | E14: 0.61006404 | F14: 0 | G14: 0 | H14: 0 | I14: 0
A15: Nov-20 | B15: 12.34383 | C15: 0.09401 | D15: 21.5219815 | E15: 0.57745048 | F15: 0 | G15: 0 | H15: 0 | I15: 0
A16: 2020-12-01 | B16: 12.246936 | C16: 0.347158 | D16: 17.9194375 | E16: 0.47487518 | F16: 0 | G16: 0 | H16: 0 | I16: 0
A17: Note:
A18: 1. NSE - IRF includes 6 Year, 10 Year, 13 Year GSecs and 91 DTB
A19: 2. IR Options were launched at NSE during Dec 2019, the data has been revised accordingly
A20: 3. IR Options were launched at BSE during Aug 2019. However, there is no trading activity since launch.
A21: $ indicates as on December 31, 2020
A22: Source: ICCL, NCL and MCCIL

Sheet 53
A1: Table 53: Trends in Foreign Portfolio Investment
A2: Year/Month | B2: Gross Purchase (₹ crore) | C2: Gross Sales (₹ crore) | D2: Net Investment (₹ crore) | E2: Net Investment (USD million) | F2: Cumulative Net Investment (USD million)
A3: 2019-20 | B3: 1905516.99 | C3: 1933046.16 | D3: -27529.17 | E3: -3041.55 | F3: 245112.63
A4: 2020-21$ | B4: =SUM(B5:B16) -> 1665483.46 | C4: =SUM(C5:C16) -> 1454050.06 | D4: =SUM(D5:D16) -> 211433.4 | E4: =SUM(E5:E16) -> 28542.9 | F4: =INDEX(F5:F16,COUNT(F5:F16)) -> 273655.53
A5: Apr-20 | B5: 144753.65 | C5: 159612.19 | D5: -14858.54 | E5: -1961.18 | F5: =F3+E5 -> 243151.45
A6: May-20 | B6: 150169.19 | C6: 157525.04 | D6: -7355.85 | E6: -972.51 | F6: =F5+E6 -> 242178.94
A7: Jun-20 | B7: 202141.05 | C7: 176131.62 | D7: 26009.43 | E7: 3440.94 | F7: =F6+E7 -> 245619.88
A8: Jul-20 | B8: 151569.69 | C8: 148268.25 | D8: 3301.44 | E8: 450.99 | F8: 246070.87
A9: Aug-20 | B9: 177960.26 | C9: 128081.31 | D9: 49878.95 | E9: 6661.85 | F9: 252732.72
A10: Sep-20 | B10: 168469.44 | C10: 169665.82 | D10: -1196.38 | E10: -156.61 | F10: 252576.11
A11: Oct-20 | B11: 157460.03 | C11: 135633.9 | D11: 21826.13 | E11: 2974.36 | F11: 255550.47
A12: Nov-20 | B12: 223150.05 | C12: 160368.3 | D12: 62781.75 | E12: 8457.83 | F12: 264008.3
A13: 2020-12-01 | B13: 289810.1 | C13: 218763.63 | D13: 71046.47 | E13: 9647.23 | F13: =F12+E13 -> 273655.53
A14: Notes:
A15: $ indicates as on December 31, 2020
A16: Source: NSDL, CDSL

Sheet 54
A1: Table 54: Notional Value of Offshore Derivative Instruments (ODIs) compared to Assets Under Custody (AUC) of FPIs/Deemed FPIs
A2: Year/ Month | B2: Notional value of ODIs on Equity, Debt & Derivatives (₹ crore) | C2: Notional value of ODIs on Equity & Debt excluding Derivatives (₹ crore) | D2: Assets Under Custody of FPIs/Deemed FPIs (₹ crore) # | E2: Notional value of ODIs on Equity, Debt & Derivatives as % of Assets Under Custody of FPIs/Deemed FPIs | F2: Notional value of ODIs on Equity & Debt excluding Derivatives as % of Assets Under Custody of FPIs/Deemed FPIs
A3: 2019-20 | B3: 48006.39827 | C3: 47852 | D3: 2490223 | E3: =(B3/D3)*100 -> 1.927795152 | F3: =(C3/D3)*100 -> 1.921594974
A4: 2012-21$ | B4: =INDEX(B5:B13,COUNT(B5:B13)) -> 87132.41962 | C4: =INDEX(C5:C13,COUNT(C5:C13)) -> 87132.41962 | D4: =INDEX(D5:D13,COUNT(D5:D13)) -> 4182214 | E4: =(B4/D4)*100 -> 2.08340414 | F4: 2.08340414
A5: Apr-20 | B5: 57100 | C5: 56923 | D5: 2819841 | E5: 2.024936867 | F5: 2.018659917
A6: May-20 | B6: 60027 | C6: 59869 | D6: 2743734 | E6: 2.187784967 | F6: 2.182026392
A7: Jun-20 | B7: 62137.93179 | C7: 61974.28209 | D7: 2979826 | E7: 2.085287255 | F7: 2.079795333
A8: Jul-20 | B8: 63228 | C8: 63035 | D8: 3167785 | E8: 1.995968792 | F8: 1.989876207
A9: Aug-20 | B9: 74027.29705 | C9: 73826 | D9: 3317805 | E9: 2.231213017 | F9: 2.225145842
A10: Sep-20 | B10: 69820.57275 | C10: 69820.57275 | D10: 3322393 | E10: 2.101514563 | F10: 2.101514563
A11: Oct-20 | B11: 78686.40327 | C11: 78686.40327 | D11: 3436258 | E11: 2.289886361 | F11: 2.289886361
A12: Nov-20 | B12: 83114 | C12: 83114 | D12: 3850843 | E12: 2.158332604 | F12: 2.158332604
A13: 2020-12-01 | B13: 87132.41962 | C13: 87132.41962 | D13: 4182214 | E13: 2.08340414 | F13: 2.08340414
A14: Notes:
A15: 1. Column B & C Figures are compiled based on reports submitted by FPIs/deemed FPIs issuing ODIs.
A16: 2. Column C is being provided which depicts the Total Value of ODI issued -with underlying as Equity ,Debt & Hybrid Securities but excluding derivatives
A17: 3. Column D Figures are compiled on the basis of reports submitted by custodians & does not includes positions taken by FPIs/deemed FPIs in derivatives.
A18: 4. The total value of ODIs excludes the unhedged positions & portfolio hedging positions taken by the FPIs/deemed FPIs issuing ODIs.
A19: $ indicates as on December 31, 2020
A20: Source: SEBI.

Sheet 55
A1: Table 55: Assets under the Custody of Custodians
A2: Type of Client | B2: FPIs | D2: Foreign Depositories | F2: FDI Investments | H2: Foreign Venture Capital Investments | J2: OCBs | L2: NRIs | N2: Mutual Funds | P2: Corporates | R2: Banks | T2: Insurance Companies | V2: Local Pension Funds | X2: Financial Institutions | Z2: Others | AB2: Total
B3: No. | C3: Amount (₹ crore) | D3: No. | E3: Amount (₹ crore) | F3: No. | G3: Amount (₹ crore) | H3: No. | I3: Amount (₹ crore) | J3: No. | K3: Amount (₹ crore) | L3: No. | M3: Amount (₹ crore) | N3: No. | O3: Amount (₹ crore) | P3: No. | Q3: Amount (₹ crore) | R3: No. | S3: Amount (₹ crore) | T3: No. | U3: Amount (₹ crore) | V3: No. | W3: Amount (₹ crore) | X3: No. | Y3: Amount (₹ crore) | Z3: No. | AA3: Amount (₹ crore) | AB3: No. | AC3: Amount (₹ crore)
A4: 2019-20 | B4: 9825 | C4: 2490223.13 | D4: 66 | E4: 227791.97 | F4: 2079 | G4: 832863.69 | H4: 208 | I4: 38124.84 | J4: 25 | K4: 1582.04 | L4: 693 | M4: 2098.92 | N4: 1624 | O4: 1891137.87 | P4: 598 | Q4: 88517.75 | R4: 121 | S4: 412044.02 | T4: 788 | U4: 1547943.43 | V4: 124 | W4: 477968.29 | X4: 25 | Y4: 40702.49 | Z4: 25595 | AA4: 967716.71 | AB4: 41771 | AC4: 9018715.15
A5: 2020-21$ | B5: =INDEX(B6:B17,COUNT(B6:B17)) -> 10143 | C5: =INDEX(C6:C17,COUNT(C6:C17)) -> 4182213.64 | D5: =INDEX(D6:D17,COUNT(D6:D17)) -> 66 | E5: 462132.3 | F5: 2273 | G5: 1232956.03 | H5: 214 | I5: 40800.55 | J5: 24 | K5: 2263.7 | L5: 800 | M5: 3058.38 | N5: 1633 | O5: 2392396.6 | P5: 665 | Q5: 110177.07 | R5: 123 | S5: 517550.59 | T5: 794 | U5: 2045393.74 | V5: 115 | W5: 567252.16 | X5: 27 | Y5: 41423.73 | Z5: 29203 | AA5: 1186305.46 | AB5: 46080 | AC5: 12783923.95
A6: Apr-20 | B6: 9916 | C6: 2819840.63 | D6: 66 | E6: 264852.96 | F6: 2088 | G6: 891652.54 | H6: 208 | I6: 38313.55 | J6: 25 | K6: 1678.47 | L6: 693 | M6: 2287.03 | N6: 1621 | O6: 2031625.42 | P6: 600 | Q6: 92221.83 | R6: 121 | S6: 484474.78 | T6: 790 | U6: 1656179.49 | V6: 124 | W6: 486918.55 | X6: 26 | Y6: 42889.59 | Z6: 25629 | AA6: 1000395.04 | AB6: 41907 | AC6: 9813329.88
A7: May-20 | B7: 9912 | C7: 2743734.07 | D7: 66 | E7: 251650.89 | F7: 2098 | G7: 869794.25 | H7: 210 | I7: 38512.69 | J7: 25 | K7: 1564.8 | L7: 698 | M7: 2438.62 | N7: 1622 | O7: 2001267.16 | P7: 600 | Q7: 96705.97 | R7: 121 | S7: 496496.67 | T7: 790 | U7: 1650619.6 | V7: 112 | W7: 493260.74 | X7: 26 | Y7: 44232.99 | Z7: 25655 | AA7: 986317.56 | AB7: 41935 | AC7: 9676596.01
A8: Jun-20 | B8: 9911 | C8: 2979825.58 | D8: 66 | E8: 310240.29 | F8: 2106 | G8: 927607.89 | H8: 211 | I8: 38925.86 | J8: 25 | K8: 1721.14 | L8: 703 | M8: 2639.04 | N8: 1625 | O8: 2032087.29 | P8: 598 | Q8: 98195.29 | R8: 124 | S8: 494660.29 | T8: 793 | U8: 1731728.51 | V8: 112 | W8: 503181.73 | X8: 26 | Y8: 44802.16 | Z8: 25829 | AA8: 1016537.42 | AB8: 42129 | AC8: 10182152.49
A9: Jul-20 | B9: 10059 | C9: 3167785.41 | D9: 66 | E9: 342150.79 | F9: 2145 | G9: 981263.97 | H9: 212 | I9: 39105.11 | J9: 25 | K9: 1769.78 | L9: 740 | M9: 2753.77 | N9: 1630 | O9: 2101536.28 | P9: 615 | Q9: 99802.42 | R9: 124 | S9: 509473.4 | T9: 793 | U9: 1790710.93 | V9: 119 | W9: 513076.48 | X9: 26 | Y9: 45490 | Z9: 26655 | AA9: 1040909.16 | AB9: 43209 | AC9: 10635827.5
A10: Aug-20 | B10: 10071 | C10: 3317805.32 | D10: 66 | E10: 361713.46 | F10: 2155 | G10: 1016525.73 | H10: 212 | I10: 39604.96 | J10: 25 | K10: 1760.36 | L10: 746 | M10: 2879.08 | N10: 1636 | O10: 2158248.83 | P10: 624 | Q10: 101890.3 | R10: 123 | S10: 520463.14 | T10: 792 | U10: 1834368.24 | V10: 119 | W10: 524306.98 | X10: 26 | Y10: 46103.4 | Z10: 27256 | AA10: 1065804.43 | AB10: 43851 | AC10: 10991474.23
A11: Sep-20 | B11: 9972 | C11: 3322393 | D11: 66 | E11: 368260.05 | F11: 2177 | G11: 1050353.81 | H11: 212 | I11: 40359.68 | J11: 25 | K11: 1604.49 | L11: 765 | M11: 2742.21 | N11: 1630 | O11: 2098922.56 | P11: 635 | Q11: 102139.5 | R11: 124 | S11: 513385.09 | T11: 794 | U11: 1823503.44 | V11: 115 | W11: 533973.8 | X11: 26 | Y11: 42735.5 | Z11: 27814 | AA11: 1062131.21 | AB11: 44355 | AC11: 10962504.34
A12: Oct-20 | B12: 9984 | C12: 3436257.51 | D12: 66 | E12: 382987.29 | F12: 2229 | G12: 1082379.38 | H12: 211 | I12: 40576.45 | J12: 25 | K12: 1828.28 | L12: 785 | M12: 2732.66 | N12: 1632 | O12: 2166199.39 | P12: 640 | Q12: 103530 | R12: 123 | S12: 527990.7 | T12: 793 | U12: 1854228.43 | V12: 115 | W12: 544212.66 | X12: 26 | Y12: 36541.14 | Z12: 28257 | AA12: 1091199.3 | AB12: 44886 | AC12: 11270663.19
A13: Nov-20 | B13: 10017 | C13: 3850842.89 | D13: 66 | E13: 431561.42 | F13: 2253 | G13: 1194938.61 | H13: 214 | I13: 40479.72 | J13: 24 | K13: 2166.94 | L13: 794 | M13: 2928.46 | N13: 1630 | O13: 2295811.28 | P13: 639 | Q13: 104591.18 | R13: 123 | S13: 532753.11 | T13: 792 | U13: 1959835.58 | V13: 113 | W13: 552864.79 | X13: 26 | Y13: 40181.52 | Z13: 28643 | AA13: 1151076.66 | AB13: 45334 | AC13: 12160032.16
A14: 2020-12-01 | B14: 10143 | C14: 4182213.64 | D14: 66 | E14: 462132.3 | F14: 2273 | G14: 1232956.03 | H14: 214 | I14: 40800.55 | J14: 24 | K14: 2263.7 | L14: 800 | M14: 3058.38 | N14: 1633 | O14: 2392396.6 | P14: 665 | Q14: 110177.07 | R14: 123 | S14: 517550.59 | T14: 794 | U14: 2045393.74 | V14: 115 | W14: 567252.16 | X14: 27 | Y14: 41423.73 | Z14: 29203 | AA14: 1186305.46 | AB14: 46080 | AC14: 12783923.95
A15: Notes:
A16: 1. With the commencement of FPI Regime from June 1, 2014, the erstwhile FIIs, Sub Accounts and QFIs are merged into a new investor class termed as .Foreign Portfolio Investors (FPIs).
A17: 2. "Others" include Portfolio manager, partnership firm, trusts, depository receipts, AIFs, FCCB, HUFs, Brokers etc.
A18: $ indicates as on December 31, 2020
A19: Source: Custodians.

Sheet 56
A1: Table 56: Trends in Resource Mobilization by Mutual Funds
K2: (₹ crore)
A3: Year / Month | B3: Gross Mobilisation | E3: Redemption | H3: Net Inflow/ Outflow | K3: Assets at the End of Period
B4: Pvt. Sector | C4: Public Sector | D4: Total | E4: Pvt. Sector | F4: Public Sector | G4: Total | H4: Pvt. Sector | I4: Public Sector | J4: Total
A5: 2019-20 | B5: 14989990.49 | C5: 3823467.281 | D5: 18813457.77 | E5: 14965931.06 | F5: 3760225.891 | G5: 18726156.95 | H5: 24059.43541 | I5: 63241.39057 | J5: 87300.82598 | K5: 2226202.865
A6: 2020-21$ | B6: =SUM(B7:B18) -> 5332093.815 | C6: =SUM(C7:C18) -> 1215308.862 | D6: =SUM(D7:D18) -> 6547402.677 | E6: =SUM(E7:E18) -> 5119413.62 | F6: =SUM(F7:F18) -> 1152003.713 | G6: 6271417.333 | H6: 212680.196 | I6: 63305.14818 | J6: 275985.3441 | K6: =INDEX(K7:K18,COUNT(K7:K18)) -> 3102475.363
A7: Apr-20 | B7: 614258.1871 | C7: 206442.2309 | D7: 820700.4179 | E7: 593456.6231 | F7: 181244.3076 | G7: 774700.9307 | H7: 20801.56393 | I7: 25197.9233 | J7: 45999.48723 | K7: 2393485.543
A8: May-20 | B8: 619156.4729 | C8: 246977.1491 | D8: 866133.6221 | E8: 562437.9669 | F8: 232882.1424 | G8: 795320.1093 | H8: 56718.50607 | I8: 14095.0067 | J8: 70813.51277 | K8: 2454757.53
A9: Jun-20 | B9: 711244.241 | C9: 249561.2634 | D9: 960805.505 | E9: 701503.31 | F9: 252036.224 | G9: 953539.534 | H9: 9740.93206 | I9: -2474.96056 | J9: 7265.9715 | K9: 2548848.434
A10: Jul-20 | B10: 518550.881 | C10: 192070.1494 | D10: 710621.029 | E10: 462909.77 | F10: 157898.9715 | G10: 620808.741 | H10: 55641.10914 | I10: 34171.1778 | J10: 89812.287 | K10: 2711894.15
A11: Aug-20 | B11: 404939.098 | C11: 151656.2072 | D11: 556595.306 | E11: 414119.41 | F11: 157028.7545 | G11: 571148.165 | H11: -9180.3112 | I11: -5372.53724 | J11: -14552.8485 | K11: 2749388.53
A12: Sep-20 | B12: 496584.971 | C12: 169773.8626 | D12: 666358.833 | E12: 534398.207 | F12: 184051.8357 | G12: 718450.043 | H12: -37813.23503 | I12: -14277.98311 | J12: -52091.2181 | K12: 2685981.915
A13: Oct-20 | B13: 470512.672 | C13: 172724.8222 | D13: 643237.495 | E13: 391937.762 | F13: 152723.7332 | G13: 544661.495 | H13: 78574.90863 | I13: 20001.08903 | J13: 98575.9976 | K13: 2822940.874
A14: Nov-20 | B14: 881629.523 | C14: -315250.5918 | D14: 566378.931 | E14: 843327.444 | F14: -304142.6279 | G14: 539184.816 | H14: 38302.0886 | I14: -11107.96346 | J14: 27194.1251 | K14: 3000904.44
A15: 2020-12-01 | B15: 615217.7693 | C15: 141353.7686 | D15: 756571.5379 | E15: 615323.1265 | F15: 138280.3725 | G15: 753603.499 | H15: -105.3662335 | I15: 3073.395722 | J15: 2968.029548 | K15: 3102475.363
A16: Note:
A17: $ indicates as on December 31, 2020
A18: Source: SEBI.

Sheet 57
A1: Table 57: Status of Mutual Funds Industry in India
A2: Sr. No. | B2: Scheme Category | C2: 2019-20 | I2: 2020-21$
C3: No. of schemes | D3: No. of Folios | E3: Funds mobilized (₹ crore) | F3: Repurchase/ Redemptio (₹ crore) | G3: Net Inflow (+ve)/ Outflow (-ve) (₹ crore) | H3: Net Assets Under Management as on (₹ crore) | I3: No. of schemes | J3: No. of Folios | K3: Funds mobilized (₹ crore) | L3: Repurchase/ Redemptio (₹ crore) | M3: Net Inflow (+ve)/ Outflow (-ve) (₹ crore) | N3: Net Assets Under Management as on (₹ crore)
A4: A | B4: Open ended Schemes
A5: I | B5: Income/Debt Oriented Schemes
A6: 1 | B6: Overnight Fund | C6: 30 | D6: 86255 | E6: 3104154.067 | F6: 3036499.778 | G6: 67654.28882 | H6: 80174.19229 | I6: 30 | J6: 116665 | K6: 2375604.917 | L6: 2392468.396 | M6: -16863.47893 | N6: 65113.27535
A7: 2 | B7: Liquid Fund | C7: 39 | D7: 1815547 | E7: 14430056.33 | F7: 14505186.05 | G7: -75129.72518 | H7: 334725.3213 | I7: 38 | J7: 2175087 | K7: 2834768.803 | L7: 2799716.891 | M7: 35051.91176 | N7: 381646.6903
A8: 3 | B8: Ultra Short Duration Fund | C8: 29 | D8: 650202 | E8: 185685.0949 | F8: 195237.9458 | G8: -9552.850961 | H8: 72226.36457 | I8: 29 | J8: 756880 | K8: 146366.3794 | L8: 123055.9571 | M8: 23310.42227 | N8: 100157.2827
A9: 4 | B9: Low Duration Fund | C9: 26 | D9: 963640 | E9: 127452.3304 | F9: 136233.1755 | G9: -8780.845038 | H9: 81371.18714 | I9: 26 | J9: 1191149 | K9: 214219.7246 | L9: 151622.1315 | M9: 62597.59313 | N9: 150124.3567
A10: 5 | B10: Money Market Fund | C10: 20 | D10: 350429 | E10: 193476.6395 | F10: 193561.7144 | G10: -85.07481983 | H10: 57016.64385 | I10: 20 | J10: 463501 | K10: 196841.6394 | L10: 169696.7009 | M10: 27144.93857 | N10: 87384.13456
A11: 6 | B11: Short Duration Fund | C11: 28 | D11: 359856 | E11: 60309.59378 | F11: 51733.48436 | G11: 8576.109422 | H11: 93444.33944 | I11: 26 | J11: 678980 | K11: 127529.1157 | L11: 71709.76078 | M11: 55819.3549 | N11: 157776.3763
A12: 7 | B12: Medium Duration Fund | C12: 18 | D12: 221149 | E12: 7325.883468 | F12: 17778.47486 | G12: -10452.5914 | H12: 28290.28985 | I12: 19 | J12: 310378 | K12: 11865.34694 | L12: 12144.7851 | M12: -279.4381558 | N12: 29352.97767
A13: 8 | B13: Medium to Long Duration Fund | C13: 14 | D13: 108506 | E13: 2086.645906 | F13: 3147.57475 | G13: -1060.928844 | H13: 9804.790811 | I13: 14 | J13: 124278 | K13: 4632.931562 | L13: 3059.824388 | M13: 1573.107174 | N13: 12219.51386
A14: 9 | B14: Long Duration Fund | C14: 2 | D14: 27215 | E14: 628.5458479 | F14: 278.3205613 | G14: 350.2252866 | H14: 1669.574946 | I14: 2 | J14: 30785 | K14: 1287.318186 | L14: 548.6545371 | M14: 738.6636485 | N14: 2582.737834
A15: 10 | B15: Dynamic Bond Fund | C15: 29 | D15: 215543 | E15: 5571.706001 | F15: 8309.800866 | G15: -2738.094865 | H15: 18115.97412 | I15: 27 | J15: 299163 | K15: 14104.37974 | L15: 6844.443365 | M15: 7259.93638 | N15: 26750.37546
A16: 11 | B16: Corporate Bond Fund | C16: 20 | D16: 391721 | E16: 49845.54274 | F16: 31577.58018 | G16: 18267.96256 | H16: 81729.79882 | I16: 20 | J16: 679070 | K16: 110678.357 | L16: 42603.89514 | M16: 68074.46178 | N16: 158815.3402
A17: 12 | B17: Credit Risk Fund | C17: 23 | D17: 461927 | E17: 9276.414286 | F17: 37303.94986 | G17: -28027.53558 | H17: 55380.52419 | I17: 21 | J17: 356460 | K17: 2396.786132 | L17: 30686.51183 | M17: -28289.7257 | N17: 28482.2029
A18: 13 | B18: Banking and PSU Fund | C18: 19 | D18: 170392 | E18: 59782.85583 | F18: 25271.31264 | G18: 34511.5432 | H18: 72475.85666 | I18: 22 | J18: 385499 | K18: 108157.415 | L18: 62305.0548 | M18: 45852.36023 | N18: 125918.8963
A19: 14 | B19: Gilt Fund | C19: 21 | D19: 116938 | E19: 5879.977593 | F19: 5170.981117 | G19: 708.9964755 | H19: 9284.975983 | I19: 21 | J19: 223490 | K19: 21067.34126 | L19: 12831.58835 | M19: 8235.752917 | N19: 18599.42771
A20: 15 | B20: Gilt Fund with 10 year constant duration | C20: 4 | D20: 34206 | E20: 789.0591681 | F20: 446.7771239 | G20: 342.2820442 | H20: 941.412194 | I20: 4 | J20: 59742 | K20: 1063.235387 | L20: 501.2439521 | M20: 561.991435 | N20: 1600.814371
A21: 16 | B21: Floater Fund | C21: 7 | D21: 162058 | E21: 36316.73779 | F21: 35678.48512 | G21: 638.2526652 | H21: 32490.43113 | I21: 8 | J21: 222771 | K21: 55309.89959 | L21: 31303.75155 | M21: 24006.14804 | N21: 59517.80934
B22: Sub total - I (1+2+3+4+5+6+7+8+9+10+11+12+13+14+15+16) | C22: 329 | D22: 6135584 | E22: 18278637.42 | F22: 18283415.41 | G22: -4777.986203 | H22: 1029141.677 | I22: 327 | J22: 8073898 | K22: 6225893.59 | L22: 5911099.591 | M22: 314793.9994 | N22: 1406042.211
A24: II | B24: Growth/Equity Oriented Schemes
A25: 17 | B25: Multi Cap Fund | C25: 34 | D25: 9264215 | E25: 45594.02575 | F25: 30033.96117 | G25: 15560.06458 | H25: 113908.4853 | I25: 35 | J25: 9492331 | K25: 24032.45636 | L25: 34431.18321 | M25: -10398.72685 | N25: 167815.6814
A26: 18 | B26: Large Cap Fund | C26: 29 | D26: 10028315 | E26: 49942.58972 | F26: 33939.25394 | G26: 16003.33578 | H26: 113541.2534 | I26: 32 | J26: 10299252 | K26: 27830.17347 | L26: 35007.0361 | M26: -7176.862527 | N26: 171834.0285
A27: 19 | B27: Large & Mid Cap Fund | C27: 27 | D27: 4735650 | E27: 17834.19661 | F27: 12541.8788 | G27: 5292.317805 | H27: 42971.99542 | I27: 28 | J27: 4836942 | K27: 12257.02307 | L27: 12778.17666 | M27: -521.1535954 | N27: 69225.67957
A28: 20 | B28: Mid Cap Fund | C28: 27 | D28: 6498964 | E28: 30246.46963 | F28: 16729.01499 | G28: 13517.45464 | H28: 65804.84893 | I28: 26 | J28: 6426333 | K28: 15250.20991 | L28: 19194.82998 | M28: -3944.620068 | N28: 104136.3733
A29: 21 | B29: Small Cap Fund | C29: 23 | D29: 5128434 | E29: 21544.74567 | F29: 11113.77449 | G29: 10430.97118 | H29: 35832.03129 | I29: 24 | J29: 4980371 | K29: 11360.97468 | L29: 12708.45155 | M29: -1347.47677 | N29: 62633.28197
A30: 22 | B30: Dividend Yield Fund | C30: 6 | D30: 470525 | E30: 365.8621987 | F30: 743.5486267 | G30: -377.686428 | H30: 3282.008448 | I30: 7 | J30: 503183 | K30: 1786.471199 | L30: 535.3579662 | M30: 1251.113232 | N30: 6265.616985
A31: 23 | B31: Value Fund/Contra Fund | C31: 17 | D31: 4131763 | E31: 12840.08476 | F31: 14770.54767 | G31: -1930.462912 | H31: 39459.52367 | I31: 18 | J31: 3831028 | K31: 6138.830809 | L31: 12023.95469 | M31: -5885.123886 | N31: 58917.18989
A32: 24 | B32: Focused Fund | C32: 22 | D32: 3570651 | E32: 23485.73362 | F32: 10650.82171 | G32: 12834.91191 | H32: 39071.92244 | I32: 25 | J32: 3757824 | K32: 13333.0992 | L32: 12142.19182 | M32: 1190.907482 | N32: 63814.03038
A33: 25 | B33: Sectoral/Thematic Funds | C33: 96 | D33: 6528979 | E33: 20900.56014 | F33: 16631.59769 | G33: 4268.962444 | H33: 49844.16051 | I33: 103 | J33: 7278899 | K33: 23196.84398 | L33: 17625.81081 | M33: 5571.033174 | N33: 84352.70976
A34: 26 | B34: ELSS | C34: 43 | D34: 12335172 | E34: 17429.36016 | F34: 9242.279732 | G34: 8187.080433 | H34: 74791.49875 | I34: 42 | J34: 12348646 | K34: 9475.109463 | L34: 9507.919078 | M34: -32.80961487 | N34: 117772.3624
B35: Sub total - II (17+18+19+20+21+22+23+24+25+26) | C35: 324 | D35: 62692668 | E35: 240183.6283 | F35: 156396.6788 | G35: 83786.94944 | H35: 578507.7282 | I35: 340 | J35: 63754809 | K35: 144661.1921 | L35: 165954.9119 | M35: -21293.71942 | N35: 906766.9541
A37: III | B37: Hybrid Schemes
A38: 27 | B38: Conservative Hybrid Fund | C38: 22 | D38: 386103 | E38: 1165.589726 | F38: 4894.824068 | G38: -3729.234342 | H38: 11189.68048 | I38: 22 | J38: 377359 | K38: 2133.672084 | L38: 2995.42768 | M38: -861.7555968 | N38: 12153.22208
A39: 28 | B39: Balanced Hybrid Fund/Aggressive Hybrid Fund | C39: 33 | D39: 5272614 | E39: 27229.24323 | F39: 48781.12924 | G39: -21551.88601 | H39: 100990.179 | I39: 34 | J39: 4835105 | K39: 9880.750474 | L39: 30006.85114 | M39: -20126.10067 | N39: 121100.2902
A40: 29 | B40: Dynamic Asset Allocation/Balanced Advantage | C40: 23 | D40: 2657247 | E40: 29572.94699 | F40: 23497.1742 | G40: 6075.772794 | H40: 77091.38953 | I40: 23 | J40: 2676084 | K40: 14493.93052 | L40: 19450.36497 | M40: -4956.434546 | N40: 98152.45137
A41: 30 | B41: Multi Asset Allocation | C41: 8 | D41: 631330 | E41: 4243.5341 | F41: 3490.069057 | G41: 753.4650428 | H41: 9439.405017 | I41: 10 | J41: 714015 | K41: 2846.381692 | L41: 2918.606485 | M41: -72.2247935 | N41: 14079.66639
A42: 31 | B42: Arbitrage Fund | C42: 25 | D42: 296071 | E42: 86320.86078 | F42: 84637.86443 | G42: 1682.99635 | H42: 52210.302 | I42: 27 | J42: 406171 | K42: 54715.9383 | L42: 41163.70523 | M42: 13552.23307 | N42: 62218.5937
A43: 32 | B43: Equity Savings Fund | C43: 23 | D43: 329350 | E43: 2447.915611 | F43: 9445.474456 | G43: -6997.558845 | H43: 11228.91221 | I43: 23 | J43: 291436 | K43: 934.33353 | L43: 4460.473729 | M43: -3526.140199 | N43: 9867.799041
B44: Sub total - III (27+28+29+30+31+32) | C44: 134 | D44: 9572715 | E44: 150980.0904 | F44: 174746.5355 | G44: -23766.44501 | H44: 262149.8683 | I44: 139 | J44: 9300170 | K44: 85005.0066 | L44: 100995.4292 | M44: -15990.42273 | N44: 317572.0228
A46: IV | B46: Solution Oriented Schemes
A47: 33 | B47: Retirement Fund | C47: 24 | D47: 2544753 | E47: 3155.475985 | F47: 1113.092589 | G47: 2042.383395 | H47: 8507.065204 | I47: 21 | J47: 2544172 | K47: 1365.141984 | L47: 1142.833944 | M47: 222.3080399 | N47: 11944.39141
A48: 34 | B48: Childrens' Fund | C48: 9 | D48: 2892087 | E48: 851.9479745 | F48: 440.1860009 | G48: 411.7619736 | H48: 7192.179142 | I48: 10 | J48: 2888616 | K48: 535.5626942 | L48: 282.5000539 | M48: 253.0626402 | N48: 10338.37636
B49: Sub total - IV (33+34) | C49: 33 | D49: 5436840 | E49: 4007.423959 | F49: 1553.27859 | G49: 2454.145369 | H49: 15699.24435 | I49: 31 | J49: 5432788 | K49: 1900.704678 | L49: 1425.333998 | M49: 475.3706802 | N49: 22282.76777
A51: V | B51: Other Schemes
A52: 35 | B52: Index Funds | C52: 32 | D52: 544075 | E52: 8221.72781 | F52: 3205.086812 | G52: 5016.640998 | H52: 8088.996682 | I52: 37 | J52: 810933 | K52: 7394.469011 | L52: 5884.982238 | M52: 1509.486773 | N52: 15259.13223
A53: 36 | B53: GOLD ETFs | C53: 11 | D53: 526671 | E53: 2514.787198 | F53: 901.1952245 | G53: 1613.591974 | H53: 7949.062874 | I53: 11 | J53: 887848 | K53: 6326.481888 | L53: 1186.238077 | M53: 5140.243811 | N53: 14173.8465
A54: 37 | B54: Other ETFs | C54: 76 | D54: 1899781 | E54: 123007.7381 | F54: 63198.32631 | G54: 59809.41176 | H54: 146462.6748 | I54: 89 | J54: 3488623 | K54: 70384.66955 | L54: 42279.32489 | M54: 28105.34466 | N54: 256237.2
A55: 38 | B55: Fund of funds investing overseas | C55: 28 | D55: 189784 | E55: 1392.902934 | F55: 522.3633558 | G55: 870.5395778 | H55: 2734.355115 | I55: 31 | J55: 521882 | K55: 5756.446004 | L55: 1344.88543 | M55: 4411.560574 | N55: 9062.203083
B56: Sub total - V (35+36+37+38) | C56: 147 | D56: 3160311 | E56: 135137.156 | F56: 67826.9717 | G56: 67310.18431 | H56: 165235.0895 | I56: 168 | J56: 5709286 | K56: 89862.06645 | L56: 50695.43064 | M56: 39166.63581 | N56: 294732.3818
B58: Total A-Open ended Schemes | C58: 967 | D58: 86998118 | E58: 18808945.72 | F58: 18683938.87 | G58: 125006.8479 | H58: 2050733.608 | I58: 1005 | J58: 92270951 | K58: 6547322.56 | L58: 6230170.696 | M58: 317151.8638 | N58: 2947396.338
A60: B | B60: Close Ended Schemes
A61: I | B61: Income/Debt Oriented Schemes
A62: i | B62: Fixed Term Plan | C62: 742 | D62: 851658 | E62: 4013.985541 | F62: 32726.7692 | G62: -28712.78365 | H62: 140594.5246 | I62: 582 | J62: 521606 | K62: 76.44179051 | L62: 30126.93469 | M62: -30050.4929 | N62: 118913.0034
A63: ii | B63: Capital Protection Oriented Schemes | C63: 31 | D63: 107535 | E63: 489.0186014 | F63: 2665.472813 | G63: -2176.454212 | H63: 4209.976861 | I63: 22 | J63: 59830 | K63: 0 | L63: 1867.837476 | M63: -1867.837476 | N63: 2662.800257
A64: iii | B64: Infrastructure Debt Fund | C64: 9 | D64: 89 | E64: 0 | F64: 314.7224281 | G64: -314.7224281 | H64: 2391.370602 | I64: 9 | J64: 89 | K64: 0 | L64: 0 | M64: 0 | N64: 2290.007119
A65: iv | B65: Other Debt | C65: 33 | D65: 83390 | E65: 0 | F65: 2605.930937 | G65: -2605.930937 | H65: 3426.887343 | I65: 9 | J65: 18950 | K65: 0 | L65: 2875.945267 | M65: -2875.945267 | N65: 793.9952342
B66: Sub total (i+ii+iii+iv) | C66: 815 | D66: 1042672 | E66: 4503.004143 | F66: 38312.89537 | G66: -33809.89123 | H66: 150622.7594 | I66: 622 | J66: 600475 | K66: 76.44179051 | L66: 34870.71744 | M66: -34794.27564 | N66: 124659.8061
A68: II | B68: Growth/Equity Oriented Schemes
A69: i | B69: ELSS | C69: 25 | D69: 470566 | E69: 0 | F69: 322.0982075 | G69: -322.0982075 | H69: 3044.947024 | I69: 25 | J69: 452182 | K69: 0 | L69: 221.8473768 | M69: -221.8473768 | N69: 4669.9426
A70: ii | B70: Others | C70: 86 | D70: 1230807 | E70: 4e-05 | F70: 1868.324854 | G70: -1868.324814 | H70: 21408.90239 | I70: 68 | J70: 1008277 | K70: -1e-05 | L70: 6104.720993 | M70: -6104.721003 | N70: 25368.75183
B71: Sub total (i+ii) | C71: 111 | D71: 1701373 | E71: 4e-05 | F71: 2190.423062 | G71: -2190.423022 | H71: 24453.84941 | I71: 93 | J71: 1460459 | K71: -1e-05 | L71: 6326.56837 | M71: -6326.56838 | N71: 30038.69443
A73: III | B73: Other Schemes | C73: 0 | D73: 0 | E73: 0 | F73: 0 | G73: 0 | H73: 0 | I73: 0 | J73: 0 | K73: 0 | L73: 0 | M73: 0 | N73: 0
B75: Total B -Close ended Schemes | C75: 926 | D75: 2744045 | E75: 4503.004183 | F75: 40503.31844 | G75: -36000.31425 | H75: 175076.6088 | I75: 715 | J75: 2060934 | K75: 76.4417805 | L75: 41197.2858 | M75: -41120.84402 | N75: 154698.5005
A77: C | B77: Interval Schemes
B78: Income/Debt Oriented Schemes | C78: 23 | D78: 3888 | E78: 9.047738238 | F78: 1714.755415 | G78: -1705.707676 | H78: 392.6487291 | I78: 23 | J78: 3593 | K78: 3.675112508 | L78: 49.3507296 | M78: -45.67561709 | N78: 380.5241697
A80: II | B80: Growth/Equity Oriented Schemes | C80: 0 | D80: 0 | E80: 0 | F80: 0 | G80: 0 | H80: 0 | I80: 0 | J80: 0 | K80: 0 | L80: 0 | M80: 0 | N80: 0
A82: III | B82: Other Schemes | C82: 0 | D82: 0 | E82: 0 | F82: 0 | G82: 0 | H82: 0 | I82: 0 | J82: 0 | K82: 0 | L82: 0 | M82: 0 | N82: 0
B84: Total C -Interval Schemes | C84: 23 | D84: 3888 | E84: 9.047738238 | F84: 1714.755415 | G84: -1705.707676 | H84: 392.6487291 | I84: 23 | J84: 3593 | K84: 3.675112508 | L84: 49.3507296 | M84: -45.67561709 | N84: 380.5241697
A86: Grand Total (A+B+C) | B86: Grand Total (A+B+C) | C86: 1916 | D86: 89746051 | E86: 18813457.77 | F86: 18726156.95 | G86: 87300.82598 | H86: 2226202.865 | I86: 1743 | J86: 94335478 | K86: 6547402.677 | L86: 6271417.333 | M86: 275985.3441 | N86: 3102475.363
B88: Fund of Funds Scheme (Domestic) | C88: 46 | D88: 637072 | E88: 10813.35155 | F88: 1930.132025 | G88: 8883.21952 | H88: 12257.11305 | I88: 50 | J88: 1037288 | K88: 11972.91721 | L88: 4460.940485 | M88: 7511.976726 | N88: 23548.82318
A89: Notes:
A90: 1. No.of schemes also includes serial plans.
A91: 2. Inter scheme investments are excluded from the above data
A92: $ indicates as on December 31, 2020
A93: Source: SEBI.

Sheet 58
A1: Table 58: Trends in Transactions on Stock Exchanges by Mutual Funds
J2: (₹ crore)
A3: Year/ Month | B3: Equity | E3: Debt | H3: Total
B4: Gross Purchases | C4: Gross Sales | D4: Net Purchases /Sales | E4: Gross Purchases | F4: Gross Sales | G4: Net Purchases /Sales | H4: Gross Purchases | I4: Gross Sales | J4: Net purchases /Sale
A5: 2019-20 | B5: 807672.21 | C5: 715713.18 | D5: 91959.03 | E5: 2263634.98 | F5: 1846883.03 | G5: 416751.95 | H5: 3071307.19 | I5: 2562596.21 | J5: 508710.98
A6: 2020-21$ | B6: =SUM(B7:B18) -> 539571.78 | C6: 635738.87 | D6: -96167.09 | E6: 1295765.55 | F6: 1103120.03 | G6: 192645.52 | H6: =SUM(H7:H18) -> 1835337.33 | I6: 1738858.9 | J6: 96478.43
A7: Apr-20 | B7: 54525.1 | C7: 62490.6 | D7: -7965.5 | E7: 121444.56 | F7: 131239.1 | G7: -9794.54 | H7: 175969.66 | I7: 193729.7 | J7: -17760.04
A8: May-20 | B8: 70794.76 | C8: 64272.31 | D8: 6522.45 | E8: 139959.84 | F8: 129260.47 | G8: 10699.37 | H8: 210754.6 | I8: 193532.78 | J8: 17221.82
A9: Jun-20 | B9: 73265.58 | C9: 73767.08 | D9: -501.5 | E9: 179002.03 | F9: 137637.32 | G9: 41364.71 | H9: 252267.61 | I9: 211404.4 | J9: 40863.21
A10: Jul-20 | B10: 61103.69 | C10: 70298.73 | D10: -9195.04 | E10: 171073.17 | F10: 139175.32 | G10: 31897.85 | H10: 232176.86 | I10: 209474.05 | J10: 22702.81
A11: Aug-20 | B11: 56271.3 | C11: 65484.74 | D11: -9213.44 | E11: 142115.71 | F11: 116335.43 | G11: 25780.28 | H11: 198387.01 | I11: 181820.17 | J11: 16566.84
A12: Sep-20 | B12: 63901.29 | C12: 68035.66 | D12: -4134.37 | E12: 151055.36 | F12: 134050.39 | G12: 17004.97 | H12: 214956.65 | I12: 202086.05 | J12: 12870.6
A13: Oct-20 | B13: 48961.53 | C13: 63453.32 | D13: -14491.79 | E13: 144610.72 | F13: 112635.61 | G13: 31975.11 | H13: 193572.25 | I13: 176088.93 | J13: 17483.32
A14: Nov-20 | B14: 49108.23 | C14: 79868.3 | D14: -30760.07 | E14: 109628.89 | F14: 89279.54 | G14: 20349.35 | H14: 158737.12 | I14: 169147.84 | J14: =H14-I14 -> -10410.72
A15: 2020-12-01 | B15: 61640.3 | C15: 88068.13 | D15: -26427.83 | E15: 136875.27 | F15: 113506.85 | G15: 23368.42 | H15: =B15+E15 -> 198515.57 | I15: =C15+F15 -> 201574.98 | J15: =H15-I15 -> -3059.41
A16: Note:
A17: $ indicates as on December 31, 2020
A18: Source: SEBI

Sheet 59
A1: Table 59: Assets Managed by Portfolio Managers
A2: Year / Month | B2: 2019-20 | F2: 2020-21$
A3: Particulars | B3: Discretionary | C3: Non-Discretionary | D3: Advisory | E3: Total | F3: Discretionary# | G3: Non-Discretionary | H3: Advisory** | I3: Total
A4: No. of Clients | B4: 153232 | C4: 9393 | D4: 3923 | E4: 166548 | F4: 145404 | G4: 8409 | H4: 1983 | I4: =SUM(F4:H4) -> 155796
A5: AUM (₹ crore)
A6: Listed Equity | B6: 93097.78548 | C6: 15930.471 | D6: 0 | E6: 109028.2565 | F6: 130527.0191 | G6: 20992.521 | H6: 0 | I6: =SUM(F6:H6) -> 151519.5401
A7: Unlisted Equity | B7: 523.3536578 | C7: 299.458 | D7: 0 | E7: 822.8116578 | F7: 398.436 | G7: 143.484 | H7: 0 | I7: =SUM(F7:H7) -> 541.92
A8: Plain Debt | B8: 1394363.424 | C8: 81144.202 | D8: 0 | E8: 1475507.626 | F8: 1469555.22 | G8: 83816.852 | H8: 0 | I8: 1553372.072
A9: Structured Debt | B9: 1306.478 | C9: 1232.237 | D9: 0 | E9: 2538.715 | F9: 1975.087 | G9: 1404.783 | H9: 0 | I9: 3379.87
A10: Equity Derivatives | B10: 524.591 | C10: 0.43 | D10: 0 | E10: 525.021 | F10: 547.434 | G10: 0.007 | H10: 0 | I10: 547.441
A11: Mutual Funds | B11: 8777.821999 | C11: 13628.041 | D11: 0 | E11: 22405.863 | F11: 14948.274 | G11: 12145.105 | H11: 0 | I11: 27093.379
A12: Others | B12: 9125 | C12: 2967.285 | D12: 0 | E12: 12092.285 | F12: 7527.558 | G12: 2476.41 | H12: 0 | I12: 10003.968
A13: Total* | B13: 1507718.454 | C13: 115202.124 | D13: 191451 | E13: 1814371.578 | F13: =SUM(F6:F12) -> 1625479.028 | G13: =SUM(G6:G12) -> 120979.162 | H13: 175452.641 | I13: =SUM(F13:H13) -> 1921910.831
A14: Notes:
A15: 1. **Value of Assets for which Advisory Services are being given.
A16: 2. Of the 2019-20 AUM, Rs. 13,93,447.414/- Crores are contributed by funds from EPFO/PFs.
A17: 2. Of the 2020-21 (Apr-Oct) AUM, Rs. 14,61,772.645/- Crores are contributed by funds from EPFO/PFs.
A18: 3. The above data is based on the monthly report received from Portfolio Managers.
A19: $ indicates as on October 30, 2020 (data upto Oct-20 is available)
A20: Source: SEBI.

Sheet 60
A1: Table 60: Progress Report of NSDL & CDSL for Listed Companies
A2: Parameter | B2: Unit | C2: NSDL | H2: CDSL
C3: Dec-20 | D3: Nov-20 | E3: Dec-19 | F3: % Change during the year | G3: % Change during the month | H3: Dec-20 | I3: Nov-20 | J3: Dec-19 | K3: % Change during the year | L3: % Change during the month
A4: Number of companies signed up to make their shares available for dematerialization | B4: Number | C4: 5647 | D4: 5656 | E4: 5602 | F4: 0.80328454 | G4: -0.15912306 | H4: 5740 | I4: 5737 | J4: 5638 | K4: 1.809152182 | L4: 0.05229213875
A5: Number of Depository Participants (registered) | B5: Number | C5: 279 | D5: 278 | E5: 279 | F5: 0 | G5: 0.35971223 | H5: 589 | I5: 589 | J5: 600 | K5: -1.833333333 | L5: 0
A6: Number of Clearing Corporations (connected) | B6: Number | C6: 4 | D6: 4 | E6: 3 | F6: 33.33333333 | G6: 0 | H6: 3 | I6: 3 | J6: 3 | K6: 0 | L6: 0
A7: Number of Investors Accounts | B7: Lakh | C7: 208.96 | D7: 207.23 | E7: 196.39 | F7: 6.40052956 | G7: 0.83482121 | H7: 289.33748 | I7: 278.715 | J7: 197.22 | K7: 46.70798093 | L7: 3.811233698
A8: Quantity of Shares dematerialized | B8: Crore | C8: 55883.73085 | D8: 56127.82701 | E8: 53985.54113 | F8: 3.5161076 | G8: -0.4348933 | H8: 23467.10027 | I8: 23339.51517 | J8: 22995.01919 | K8: 2.052971005 | L8: 0.5466484582
A9: Value of Shares dematerialized | B9: Crore | C9: 16500054.72 | D9: 15328401.31 | E9: 13522774.77 | F9: 22.01678282 | G9: 7.64367651 | H9: 2104884.512 | I9: 1926202.147 | J9: 1814880.475 | K9: 15.97923615 | L9: 9.2764077
A10: Quantity of Securities dematerialized # | B10: Crore | C10: 60356.48745 | D10: 60564.87066 | E10: 58113.21354 | F10: 3.86017874 | G10: -0.34406614 | H10: 25959.7707 | I10: 25774.22893 | J10: 24917.55912 | K10: 4.182639145 | L10: 0.7198732312
A11: Value of Securities dematerialized # | B11: Crore | C11: 19990417.72 | D11: 18774769.69 | E11: 16406476.08 | F11: 21.84467657 | G11: 6.47490247 | H11: 2295181.137 | I11: 2111062.451 | J11: 1960684.16 | K11: 17.06021725 | L11: 8.721612481
A12: Quantity of shares settled during the month | B12: Crore | C12: 2240.649556 | D12: 1288.793541 | E12: 1055.927269 | F12: 112.1973379 | G12: 73.85636137 | H12: 2831.184148 | I12: 1748.818574 | J12: 710.1199496 | K12: 298.6909746 | L12: 61.8912442
A13: Average Quantity of shares settled daily (quantity of shares settled during the month) | B13: Crore | C13: 101.8477071 | D13: 67.83 | E13: 50.28225093 | F13: 102.5520044 | G13: 50.15141838 | H13: 128.6901885 | I13: 92.04308282 | J13: 33.8152357 | K13: 280.5686575 | L13: 39.81516545
A14: Value of shares settled during the month in dematerialized form | B14: Crore | C14: 486054.9991 | D14: 348425.8533 | E14: 233889.2308 | F14: 107.8141851 | G14: 39.50026796 | H14: 224001.8607 | I14: 172500.3165 | J14: 58539.13247 | K14: 282.6531949 | L14: 29.85591284
A15: Average Value of shares settled daily (value of shares settled during the month) | B15: Crore | C15: 22093.40905 | D15: 18338.20281 | E15: 11137.58242 | F15: 98.36808582 | G15: 20.47750415 | H15: 10181.90276 | I15: 9078.964028 | J15: 2787.577737 | K15: 265.2598679 | L15: 12.14828836
A16: Training Programmes conducted for representatives of Corporates, DPs and Brokers | B16: Number | C16: 2 | D16: 1 | E16: 6 | F16: -66.66666667 | G16: 100 | H16: 62 | I16: 0 | J16: 59 | K16: 5.084745763 | L16: 0
A17: The ratio of dematerialized equity shares to the total outstanding shares (market value) | B17: Per cent | C17: 87.81 | D17: 87.88 | E17: 86.99171565 | F17: 0.94064629 | G17: -0.07965407 | H17: 11.2683789 | I17: 11.13 | J17: 12.5 | K17: -9.852968831 | L17: 1.243296461
A18: Notes:
A19: 1. Shares includes only equity shares.
A20: 2. Securities includes all securities types including equity shares, preference shares, debenture, MF units, etc., available in the depository system
A21: 3. Quantity and value of shares mentioned are single sided.
A22: 4. #Source for listed securities information: Issuer/ NSE/BSE.
A23: 5. No. of days taken for calculating Daily Average is 22 settlement days for December-20, 19 days for the month November-20 and 21 days for the month December-19.
A24: 6. NSDL - Number of Depository Participants includes Nineteen Participants which are under closure/termination process and/or SEBI registration is not yet cancelled
A25: Data as on December 31, 2020
A26: Source: NSDL and CDSL.

Sheet 61
A1: Table 61: Progress of Dematerialisation at NSDL and CDSL (Listed and Unlisted Companies)
A2: Year/ Month | B2: NSDL | G2: CDSL
B3: Companies Live | C3: DPs Live | D3: DPs Locations | E3: Demat Quantity (million securities) | F3: Demat Value (₹ crore) | G3: Companies Live | H3: DPs Live | I3: DPs Locations | J3: Demat Quantity (million securities) | K3: Demat Value (₹ crore)
A4: 2019-20 | B4: 30335 | C4: 279 | D4: 30874 | E4: 2351602.99 | F4: 16032791.79 | G4: 14762 | H4: 599 | I4: 20352 | J4: 455726.55 | K4: 1671972.37
A5: 2020-21$ | B5: =INDEX(B6:B17,COUNT(B6:B17)) -> 33170 | C5: =INDEX(C6:C17,COUNT(C6:C17)) -> 279 | D5: 31281 | E5: 2344400.94 | F5: 22751315.82 | G5: 15992 | H5: 589 | I5: 20670 | J5: 467476.87 | K5: 2504687.4
A6: Apr-20 | B6: 30366 | C6: 280 | D6: 30948 | E6: 2354838.66 | F6: 18960841.86 | G6: 38546 | H6: 595 | I6: 20519 | J6: 438715.09 | K6: 1844619.85
A7: May-20 | B7: 30425 | C7: 280 | D7: 30971 | E7: 2175115.25 | F7: 17045667.54 | G7: 14818 | H7: 596 | I7: 20548 | J7: 437804.87 | K7: 1844324.8
A8: Jun-20 | B8: 30594 | C8: 278 | D8: 30989 | E8: 2183559.3 | F8: 18075718.44 | G8: 14891 | H8: 597 | I8: 20589 | J8: 439758.12 | K8: 2042069.83
A9: Jul-20 | B9: 30802 | C9: 278 | D9: 31024 | E9: 2283349.31 | F9: 19011716.52 | G9: 15011 | H9: 597 | I9: 20672 | J9: 445417.07 | K9: 2068009.11
A10: Aug-20 | B10: 31125 | C10: 277 | D10: 31065 | E10: 2301443.69 | F10: 19610998.64 | G10: 15144 | H10: 594 | I10: 20689 | J10: 448038.24 | K10: 2147565.27
A11: Sep-20 | B11: 31800 | C11: 277 | D11: 31221 | E11: 2330889.28 | F11: 19770287.74 | G11: 15455 | H11: 593 | I11: 20694 | J11: 454306 | K11: 2077006.853
A12: Oct-20 | B12: 32285 | C12: 278 | D12: 31241 | E12: 2371425.25 | F12: 19989147.9 | G12: 15662 | H12: 591 | I12: 20706 | J12: 457347.94 | K12: 2092306.68
A13: Nov-20 | B13: 32620 | C13: 278 | D13: 31268 | E13: 2376087.14 | F13: 21505640.53 | G13: 15788 | H13: 589 | I13: 20660 | J13: 458572.33 | K13: 2318158.59
A14: Dec-20 | B14: 33170 | C14: 279 | D14: 31281 | E14: 2344400.94 | F14: 22751315.82 | G14: 15992 | H14: 589 | I14: 20670 | J14: 467476.87 | K14: 2504687.4
A15: Notes :
A16: 1. For CDSL, the current and historical data of Companies Live has been revised to exclude MF schemes count.
A17: 2. The Companies Live figure includes only the number of mutual fund companies and not the mutual fund schemes.
A18: 3. DPs Locations represents the total live (main DPs and branch DPs as well as non-live (back office connected collection centres).
A19: $ indicates as on December 31, 2020
A20: Source: NSDL and CDSL.

Sheet 62
A1: Table 62: Depository Statistics
A2: Particulars | B2: Unit | C2: Debt | E2: Equity | G2: Others | I2: Total
C3: Listed | D3: Unlisted | E3: Listed | F3: Unlisted | G3: Listed | H3: Unlisted | I3: Listed | J3: Unlisted
A4: NSDL
A5: No.of issuers debt/Companies(equity) | B5: (numbers) | C5: 848 | D5: 2222 | E5: 5647 | F5: 23949 | G5: 235 | H5: 5091 | I5: 6730 | J5: 31262
A6: No.of Active Instruments | B6: (numbers) | C6: 9039 | D6: 8667 | E6: 11465 | F6: 25666 | G6: 4850 | H6: 26966 | I6: 25354 | J6: 61299
A7: Demat Quantity | B7: (lakhs) | C7: 114432.0273 | D7: 940063.9561 | E7: 5588373.085 | F7: 11422973.77 | G7: 332843.6328 | H7: 5045403.161 | I7: 6035648.745 | J7: 17408440.89
A8: Demat Value | B8: (Rs.crore) | C8: 2917398.89 | D8: 670398.8273 | E8: 16500054.72 | F8: 1081982.661 | G8: 572964.113 | H8: 1008517.988 | I8: 19990417.72 | J8: 2760899.477
A9: Quantity settled during the month* | B9: (Lakh) | C9: 656.83384 | D9: 524.29981 | E9: 224064.9556 | F9: 5.89169 | G9: 3188.817875 | H9: 218.16561 | I9: 227910.6073 | J9: 748.35711
A10: Value Settled during the month* | B10: (Rs.crore) | C10: 103843.6815 | D10: 12927.20715 | E10: 486054.9991 | F10: 19.54259524 | G10: 3538.508271 | H10: 645.590036 | I10: 593437.1889 | J10: 13592.33978
A11: CDSL
A12: No. of Issuers (Debt) / Companies (Equity) | B12: (numbers) | C12: 604 | D12: 472 | E12: 5740 | F12: 8980 | G12: 2485 | H12: 723 | I12: 8829 | J12: 10175
A13: No. of Active Instruments | B13: (numbers) | C13: 7336 | D13: 4094 | E13: 5880 | F13: 9289 | G13: 20528 | H13: 2299 | I13: 33744 | J13: 15682
A14: Demat Quantity | B14: (lakh) | C14: 3502.12 | D14: 170967.88 | E14: 2346710.03 | F14: 1761930.48 | G14: 245764.92 | H14: 145893.31 | I14: 2595977.07 | J14: 2078791.67
A15: Demat Value | B15: (Rs.crore) | C15: 73590.57 | D15: 45052.59 | E15: 2104884.51 | F15: 137014.61 | G15: 116706.06 | H15: 27439.06 | I15: 2295181.14 | J15: 209506.26
A16: Quantity settled during the month | B16: (lakh) | C16: 40.53 | D16: 0 | E16: 283118.41 | F16: 0 | G16: 27602.8 | H16: 0 | I16: 310761.74 | J16: 0
A17: Value Settled during the month | B17: (Rs.crore) | C17: 570.97 | D17: 0 | E17: 224001.86 | F17: 0 | G17: 15817.03 | H17: 0 | I17: 240389.86 | J17: 0
A18: Notes:
A19: 1. The categories included in Others are Preference Shares, Mutual Fund Units, Warrants, PTCs, Treasury Bills, CPs, CDs and Government Securities.
A20: 2. * Does not include settlement details for Warehouse reciepts/Commodities.
A21: $ indicates as on December 31, 2020
A22: Source: NSDL and CDSL.

Sheet 63
A1: Table 63: Number of commodities permitted and traded at exchanges
A2: Exchanges | B2: Particulars | C2: Futures | I2: Options
C3: Agriculture | D3: Metals other than bullion | E3: Bullion | F3: Energy | G3: Gems and Stones | H3: Indices | I3: Agriculture | J3: Metals other than bullion | K3: Bullion | L3: Energy
A4: NCDEX | B4: Permitted for trading | C4: 22 | D4: 1 | E4: 0 | F4: 0 | G4: 0 | H4: 1 | I4: 7 | J4: 0 | K4: 0 | L4: 0
B5: Contracts floated | C5: 22 | D5: 0 | E5: 0 | F5: 0 | G5: 0 | H5: 5 | I5: 7 | J5: 0 | K5: 0 | L5: 0
B6: Traded | C6: 15 | D6: 0 | E6: 0 | F6: 0 | G6: 0 | H6: 2 | I6: 3 | J6: 0 | K6: 0 | L6: 0
A7: MCX | B7: Permitted for trading | C7: 9 | D7: 5 | E7: 2 | F7: 2 | G7: 0 | H7: 2 | I7: 0 | J7: 2 | K7: 2 | L7: 1
B8: Contracts floated | C8: 8 | D8: 5 | E8: 2 | F8: 2 | G8: 0 | H8: 2 | I8: 0 | J8: 2 | K8: 2 | L8: 1
B9: Traded | C9: 5 | D9: 5 | E9: 2 | F9: 2 | G9: 0 | H9: 2 | I9: 0 | J9: 2 | K9: 2 | L9: 1
A10: ICEX | B10: Permitted for trading | C10: 10 | D10: 1 | E10: 0 | F10: 0 | G10: 1 | H10: 0 | I10: 0 | J10: 0 | K10: 0 | L10: 0
B11: Contracts floated | C11: 10 | D11: 1 | E11: 0 | F11: 0 | G11: 1 | H11: 0 | I11: 0 | J11: 0 | K11: 0 | L11: 0
B12: Traded | C12: 1 | D12: 1 | E12: 0 | F12: 0 | G12: 0 | H12: 0 | I12: 0 | J12: 0 | K12: 0 | L12: 0
A13: BSE | B13: Permitted for trading | C13: 8 | D13: 3 | E13: 2 | F13: 2 | G13: 0 | H13: 0 | I13: 0 | J13: 0 | K13: 2 | L13: 0
B14: Contracts floated | C14: 8 | D14: 3 | E14: 2 | F14: 2 | G14: 0 | H14: 0 | I14: 0 | J14: 0 | K14: 2 | L14: 0
B15: Traded | C15: 2 | D15: 0 | E15: 1 | F15: 0 | G15: 0 | H15: 0 | I15: 0 | J15: 0 | K15: 2 | L15: 0
A16: NSE | B16: Permitted for trading | C16: 1 | D16: 1 | E16: 2 | F16: 1 | G16: 0 | H16: 0 | I16: 0 | J16: 1 | K16: 2 | L16: 0
B17: Contracts floated | C17: 1 | D17: 0 | E17: 2 | F17: 1 | G17: 0 | H17: 0 | I17: 0 | J17: 0 | K17: 2 | L17: 0
B18: Traded | C18: 1 | D18: 0 | E18: 1 | F18: 0 | G18: 0 | H18: 0 | I18: 0 | J18: 0 | K18: 1 | L18: 0
A19: Note: Data is for the month of December 2020.
A20: Source: NCDEX, MCX, ICEX, BSE and NSE

Sheet 64
A1: Table 64: Trends in commodity indices
A2: Year/ Month | B2: MCX iCOMDEX | F2: NCDEX Nkrishi
B3: Open | C3: High | D3: Low | E3: Close | F3: Open | G3: High | H3: Low | I3: Close
A4: 2019-20 | B4: 10576 | C4: 10951 | D4: 7662.5 | E4: 8255.52 | F4: 3450.3 | G4: 3674 | H4: 2841.01 | I4: 3179.85
A5: 2020-21$ | B5: =B6 -> 8252.44 | C5: =MAX(C6:C18) -> 10807.87 | D5: =MIN(D6:D18) -> 7866.92 | E5: =INDEX(E6:E18,COUNT(E6:E18)) -> 10503.78 | F5: =F6 -> 3176.19 | G5: =MAX(G6:G18) -> 3879.42 | H5: =MIN(H6:H18) -> 3027.91 | I5: =INDEX(I6:I18,COUNT(I6:I18)) -> 3666.01
A6: 2020-04-01 | B6: 8252.44 | C6: 8848.23 | D6: 7866.92 | E6: 8007.17 | F6: 3176.19 | G6: 3266.84 | H6: 3027.91 | I6: 3173.55
A7: 2020-05-02 | B7: 8008.34 | C7: 8720.91 | D7: 7994.73 | E7: 8705.89 | F7: 3173.55 | G7: 3233.2 | H7: 3121.31 | I7: 3188.11
A8: 2020-06-03 | B8: 8707.21 | C8: 9102.58 | D8: 8664.18 | E8: 9089.06 | F8: 3188.11 | G8: 3343.94 | H8: 3187.68 | I8: 3238.66
A9: 2020-07-04 | B9: 9090.04 | C9: 10047.24 | D9: 8971.64 | E9: 10001.06 | F9: 3238.66 | G9: 3300.47 | H9: 3219.8 | I9: 3265.1
A10: 2020-08-05 | B10: 10001.56 | C10: 10649.58 | D10: 9773.19 | E10: 10227.33 | F10: 3265.1 | G10: 3586.59 | H10: 3262.37 | I10: 3582.76
A11: 2020-09-06 | B11: 10232.2 | C11: 10320.48 | D11: 9540 | E11: 9714.1 | F11: 3582.76 | G11: 3627.98 | H11: 3427.34 | I11: 3614.93
A12: 2020-10-07 | B12: 9716 | C12: 10117.29 | D12: 9545.29 | E12: 9873.66 | F12: 3614.93 | G12: 3775.65 | H12: 3606.34 | I12: 3757.53
A13: 2020-11-08 | B13: 9874.46 | C13: 10348.87 | D13: 9836.45 | E13: 10149.03 | F13: 3757.53 | G13: 3879.42 | H13: 3697.93 | I13: 3771.47
A14: 2020-12-09 | B14: 10150.93 | C14: 10807.87 | D14: 10120.5 | E14: 10503.78 | F14: 3771.47 | G14: 3776.49 | H14: 3557.72 | I14: 3666.01
A15: $ indicates as on December 31, 2020
A16: Source: MCX and NCDEX

Sheet 65
A1: Table 65: Trends in commodity derivatives at MCX
A2: Futures
A3: Year/ Month | B3: No.of Trading days | C3: Agriculture | F3: Metals | I3: Bullion | L3: Energy | O3: BULLDEX Index | R3: METALDEX Index | U3: Total | W3: Open interest at the end of the period
C4: Volume ('000 tonnes) | D4: No. of contracts traded | E4: Turnover (₹ crore) | F4: Volume ('000 tonnes) | G4: No. of contracts traded | H4: Turnover (₹ crore) | I4: Volume ('000 tonnes) | J4: No. of contracts traded | K4: Turnover (₹ crore) | L4: Volume ('000 tonnes)* | M4: No. of contracts traded | N4: Turnover (₹ crore) | O4: Volume ('000 lots)** | P4: No. of contracts traded | Q4: Turnover (₹ crore) | R4: Volume ('000 lots)** | S4: No. of contracts traded | T4: Turnover (₹ crore) | U4: No. of contracts traded | V4: Turnover (₹ crore) | W4: No. of contracts traded | X4: Value (₹ crore)
A5: 2019-20 | B5: 259 | C5: 11353.45303 | D5: 1789350 | E5: 100919.4925 | F5: 54812.69815 | G5: 37596650 | H5: 1568294.471 | I5: 267.940539 | J5: 50829084 | K5: 2915533.563 | L5: 1188816.195 | M5: 205480778 | N5: 3813027.43 | U5: 295695862 | V5: 8397774.957 | W5: 148505 | X5: 11002.5758
A6: 2020-21$ | B6: =SUM(B7:B18) -> 192 | C6: =SUM(C7:C18) -> 7703.826 | D6: 881443 | E6: 62068.45714 | F6: 28018.733 | G6: 10520117 | H6: 1119691.604 | I6: 318.8353298 | J6: 87165438 | K6: 3511255.355 | L6: 270036.9753 | M6: 56357420 | N6: 1299395.063 | O6: 317.847 | P6: 317847 | Q6: 24770.89924 | R6: 45.57 | S6: 45570 | T6: 2968.97046 | U6: 155287835 | V6: 6020150.349 | W6: =W15 -> 185115 | X6: =X15 -> 13818.0297
A7: 2020-04-01 | B7: 18 | C7: 517.98456 | D7: 66294 | E7: 3671.85573 | F7: 1396.8565 | G7: 1107524 | H7: 43536.21015 | I7: 12.25099258 | J7: 3589671 | K7: 143017.3043 | L7: 54865.71703 | M7: 5858278 | N7: 91621.07468 | U7: 10621767 | V7: 281846.4448 | W7: 122686 | X7: 11614.03736
A8: 2020-05-02 | B8: 21 | C8: 617.4138 | D8: 76863 | E8: 4106.318418 | F8: 2275.9255 | G8: 1497418 | H8: 79117.77099 | I8: 27.946811 | J8: 7175006 | K8: 296836.6268 | L8: 37857.34025 | M8: 6228088 | N8: 118996.5638 | U8: 14977375 | V8: 499057.28 | W8: 135281 | X8: 14295.76039
A9: 2020-06-03 | B9: 22 | C9: 877.94938 | D9: 104714 | E9: 6367.65819 | F9: 3261.3175 | G9: 1057395 | H9: 115127.8132 | I9: 37.02126068 | J9: 9153415 | K9: 364906.4095 | L9: 39902.86552 | M9: 6570596 | N9: 143533.8421 | U9: 16886120 | V9: 629935.7229 | W9: 152305 | X9: 14749.86986
A10: 2020-07-04 | B10: 23 | C10: 989.4659 | D10: 114651 | E10: 7277.396251 | F10: 3745.43 | G10: 1253701 | H10: 149118.7076 | I10: 57.35769892 | J10: 13030913 | K10: 559967.5982 | L10: 30250.28693 | M10: 6432779 | N10: 137758.0235 | U10: 20832044 | V10: 854121.7255 | W10: 144727 | X10: 15233.68247
A11: 2020-08-05 | B11: 21 | C11: 742.65033 | D11: 82203 | E11: 5824.450484 | F11: 3733.9475 | G11: 1216867 | H11: 152687.2922 | I11: 53.48041365 | J11: 14921463 | K11: 626980.1061 | L11: 21521.77385 | M11: 4927161 | N11: 123009.1633 | O11: 26.304 | P11: 26304 | Q11: 2119.63451 | U11: 21173998 | V11: 910620.6467 | W11: 164840 | X11: 17478.61964
A12: 2020-09-06 | B12: 22 | C12: 858.71835 | D12: 90864 | E12: 6838.53186 | F12: 3672.4005 | G12: 1176532 | H12: 146911.1652 | I12: 34.4748199 | J12: 10281771 | K12: 422378.6342 | L12: 24137.62654 | M12: 7268301 | N12: 171492.347 | O12: 65.662 | P12: 65662 | Q12: 5182.900995 | U12: 18883130 | V12: 752803.5792 | W12: 158034 | X12: 13881.93136
A13: 2020-10-07 | B13: 21 | C13: 866.81293 | D13: 94222 | E13: 7096.090125 | F13: 3524.6615 | G13: 1144077 | H13: 146202.4981 | I13: 32.13081844 | J13: 9234948 | K13: 352878.6897 | L13: 24606.35779 | M13: 6904446 | N13: 187020.7353 | O13: 63.268 | P13: 63268 | Q13: 4908.71764 | R13: 10.742 | S13: 10742 | T13: 658.51667 | U13: 17451703 | V13: 698765.2476 | W13: 168203 | X13: 14247.26959
A14: 2020-11-08 | B14: 22 | C14: 1111.11595 | D14: 122306 | E14: 10138.21893 | F14: 3169.6715 | G14: 1031355 | H14: 139387.2109 | I14: 31.89384238 | J14: 9403464 | K14: 381020.7188 | L14: 28835.07545 | M14: 6983847 | N14: 195760.2141 | O14: 72.876 | P14: 72876 | Q14: 5643.283815 | R14: 15.832 | S14: 15832 | T14: 1016.403045 | U14: 17629680 | V14: 732966.0496 | W14: 195315 | X14: 13359.13617
A15: 2020-12-09 | B15: 22 | C15: 1121.7148 | D15: 129326 | E15: 10747.93716 | F15: 3238.5225 | G15: 1035248 | H15: 147602.9358 | I15: 32.27867223 | J15: 10374787 | K15: 363269.267 | L15: 8059.931904 | M15: 5183924 | N15: 130203.0995 | O15: 89.737 | P15: 89737 | Q15: 6916.362285 | R15: 18.996 | S15: 18996 | T15: 1294.050745 | U15: 16832018 | V15: 660033.6526 | W15: 185115 | X15: 13818.0297
A19: Options
A20: Year / Month | B20: No.of Trading days | C20: Metals | G20: Bullion | K20: Energy | O20: Total | Q20: Open interest at the end of the period
C21: Call Options | E21: Put Options | G21: Call Options | I21: Put Options | K21: Call Options | M21: Put Options | O21: No. of contracts traded | P21: Turnover (₹ crore) | Q21: No. of contracts traded | R21: Notional Value (₹ crore)
C22: No. of contracts traded | D22: Turnover (₹ crore) | E22: No. of contracts traded | F22: Turnover (₹ crore) | G22: No. of contracts traded | H22: Turnover (₹ crore) | I22: No. of contracts traded | J22: Turnover (₹ crore) | K22: No. of contracts traded | L22: Turnover (₹ crore) | M22: No. of contracts traded | N22: Turnover (₹ crore)
A23: 2019-20 | B23: 259 | C23: 18146 | D23: 1293.233604 | E23: 12977 | F23: 969.928682 | G23: 251533 | H23: 74410.13889 | I23: 278935 | J23: 90244.62965 | K23: 1729784 | L23: 69961.98724 | M23: 1393470 | N23: 54862.74249 | O23: 3684845 | P23: 291742.6706 | Q23: 11844 | R23: 698.0797015
A24: 2020-21$ | B24: =SUM(B25:B36) -> 192 | C24: =SUM(C25:C36) -> 205 | D24: 25.909522 | E24: 381 | F24: 42.3814985 | G24: 184518 | H24: 63803.68585 | I24: 227826 | J24: 78038.84344 | K24: 496041 | L24: 14283.65148 | M24: 418503 | N24: 11319.2462 | O24: 1327474 | P24: 167513.718 | Q24: =Q33 -> 9255 | R24: =R33 -> 2897.08
A25: 2020-04-01 | B25: 18 | C25: 3 | D25: 0.32998 | E25: 9 | F25: 0.8910125 | G25: 6999 | H25: 1968.677466 | I25: 10944 | J25: 3679.823701 | K25: 90838 | L25: 1914.003608 | M25: 55438 | N25: 933.480838 | O25: 164231 | P25: 8497.206606 | Q25: 11690 | R25: 1651.020659
A26: 2020-05-02 | B26: 21 | C26: 31 | D26: 3.22686 | E26: 120 | F26: 11.252795 | G26: 11114 | H26: 4286.829843 | I26: 22893 | J26: 8974.658731 | K26: 62769 | L26: 1473.608562 | M26: 65421 | N26: 1300.13799 | O26: 162348 | P26: 16049.71478 | Q26: 7927 | R26: 816.2200095
A27: 2020-06-03 | B27: 22 | C27: 11 | D27: 1.238222 | E27: 15 | F27: 1.609997 | G27: 14448 | H27: 4216.118058 | I27: 19882 | J27: 6425.076092 | K27: 77698 | L27: 2375.349789 | M27: 74545 | N27: 2119.272538 | O27: 186599 | P27: 15138.6647 | Q27: 7860 | R27: 1559.11
A28: 2020-07-04 | B28: 23 | C28: 52 | D28: 6.482054 | E28: 114 | F28: 13.358576 | G28: 16126 | H28: 5916.559862 | I28: 33590 | J28: 11775.03414 | K28: 54977 | L28: 1749.687927 | M28: 52671 | N28: 1603.409256 | O28: 157530 | P28: 21064.53181 | Q28: 7882 | R28: 1184.07
A29: 2020-08-05 | B29: 21 | C29: 51 | D29: 6.733683 | E29: 43 | F29: 3.76247 | G29: 31320 | H29: 11674.08134 | I29: 45055 | J29: 14320.37471 | K29: 51453 | L29: 1688.743729 | M29: 41167 | N29: 1304.544019 | O29: 169089 | P29: 28998.23995 | Q29: 9062 | R29: 3026.305357
A30: 2020-09-06 | B30: 22 | C30: 22 | D30: 2.912236 | E30: 7 | F30: 0.903681 | G30: 31513 | H30: 12055.35163 | I30: 27693 | J30: 11639.88184 | K30: 46984 | L30: 1450.507405 | M30: 29288 | N30: 877.655851 | O30: 135507 | P30: 26027.21264 | Q30: 7154 | R30: 1279.010783
A31: 2020-10-07 | B31: 21 | C31: 13 | D31: 1.781925 | E31: 5 | F31: 0.663698 | G31: 14957 | H31: 4110.955478 | I31: 13901 | J31: 3827.172771 | K31: 37132 | L31: 1134.695143 | M31: 28066 | N31: 840.256526 | O31: 94074 | P31: 9915.525541 | Q31: 9650 | R31: 2388.153993
A32: 2020-11-08 | B32: 22 | C32: 8 | D32: 1.089492 | E32: 1 | F32: 0.13882 | G32: 38974 | H32: 12459.02338 | I32: 36844 | J32: 11957.12126 | K32: 36690 | L32: 1158.057393 | M32: 32349 | N32: 988.673113 | O32: 144866 | P32: 26564.10346 | Q32: 4646 | R32: 630.1213455
A33: 2020-12-09 | B33: 22 | C33: 14 | D33: 2.11507 | E33: 67 | F33: 9.800449 | G33: 19067 | H33: 7116.088803 | I33: 17024 | J33: 5439.700198 | K33: 37500 | L33: 1338.997928 | M33: 39558 | N33: 1351.81607 | O33: 113230 | P33: 15258.51852 | Q33: 9255 | R33: 2897.08
A37: $ indicates as on December 31, 2020
A38: Note : 1. Natural Gas volume is in Trillion BTU and is not included in volume ("000 tonnes") of energy contracts.
A39: 2. Options includes both options on futures and goods.
A40: Source: MCX

Sheet 66
A1: Table 66: Trends in commodity derivatives at NCDEX
A2: Year/ Month | B2: No.of Trading days | C2: Futures | M2: Options
C3: Agriculture | F3: Agridex Index | I3: Total | K3: Open interest at the end of the period | M3: Call options | O3: Put options | Q3: Total | S3: Open interest at the end of the period
C4: Volume ('000 tonnes) | D4: No. of contracts traded | E4: Turnover (₹ crore) | F4: Volume ('000 lots) | G4: No. of contracts traded | H4: Turnover (₹ crore) | I4: No. of contracts traded | J4: Turnover (₹ crore) | K4: No. of contracts traded | L4: Value (₹ crore) | M4: No. of contracts traded | N4: Turnover (₹ crore) | O4: No. of contracts traded | P4: Turnover (₹ crore) | Q4: No. of contracts traded | R4: Turnover (₹ crore) | S4: No. of contracts traded | T4: Notional Value (₹ crore)
A6: 2019-20 | B6: 247 | C6: 95258.746 | D6: 13080142 | E6: 441966.9694 | F6: Na | G6: Na | H6: Na | I6: 13080142 | J6: 441966.9694 | K6: 93073 | L6: 2262.96 | M6: 1518 | N6: 41.41 | O6: 22 | P6: 0.74 | Q6: =M6+O6 -> 1540 | R6: 42.15 | S6: 0 | T6: 0
A7: 2020-21$ | B7: =SUM(B8:B19) -> 188 | C7: =SUM(C8:C19) -> 43347.386 | D7: 6828646 | E7: 211029.5301 | F7: 5.702 | G7: 5702 | H7: 303.3046375 | I7: 6834348 | J7: 211332.8348 | K7: =K16 -> 125247 | L7: =L16 -> 3656.511992 | M7: 323 | N7: 9.99 | O7: 426 | P7: 19.74 | Q7: 749 | R7: 29.73 | S7: =S16 -> 350 | T7: =T16 -> 16.11
A8: 2020-04-01 | B8: 18 | C8: 3043.897 | D8: 491426 | E8: 12560.80381 | F8: Na | G8: Na | H8: Na | I8: =SUM(D8,G8) -> 491426 | J8: =SUM(E8,H8) -> 12560.80381 | K8: 69860 | L8: 1730.296536 | M8: 20 | N8: 0.68 | O8: 1 | P8: 0.02 | Q8: 21 | R8: 0.7 | S8: 1 | T8: 0.02
A9: 2020-05-02 | B9: 19 | C9: 2738.565 | D9: 417099 | E9: 11098.38433 | F9: 1.357 | G9: 1357 | H9: 69.0740125 | I9: =SUM(D9,G9) -> 418456 | J9: 11167.45834 | K9: 63805 | L9: 1656.4985 | M9: 50 | N9: 1.53 | O9: 0 | P9: 0 | Q9: 50 | R9: 1.53 | S9: 50 | T9: 0.13
A10: 2020-06-03 | B10: 22 | C10: 4488.21 | D10: 664305 | E10: 18815.04236 | F10: 2.021 | G10: 2021 | H10: 105.1227375 | I10: 666326 | J10: 18920.1651 | K10: 65440 | L10: 1778.6 | M10: 80 | N10: 2.65 | O10: 0 | P10: 0 | Q10: 80 | R10: 2.65 | S10: 80 | T10: 0.26
A11: 2020-07-04 | B11: 23 | C11: 4228.303 | D11: 624760 | E11: 18009.33201 | F11: 0.855 | G11: 855 | H11: 44.82105 | I11: 625615 | J11: 18054.15306 | K11: 65264 | L11: 1959.09 | M11: 2 | N11: 0.1 | O11: 0 | P11: 0 | Q11: 2 | R11: 0.1 | S11: 0 | T11: 0
A12: 2020-08-05 | B12: 21 | C12: 4991.033 | D12: 761709 | E12: 23905.79866 | F12: 0.438 | G12: 438 | H12: 23.934025 | I12: 762147 | J12: 23929.73268 | K12: 74187 | L12: 2323.35889 | M12: 0 | N12: 0 | O12: 0 | P12: 0 | Q12: 0 | R12: 0 | S12: 0 | T12: 0
A13: 2020-09-06 | B13: 22 | C13: 5512.668 | D13: 850386 | E13: 28586.37148 | F13: 0.211 | G13: 211 | H13: 11.9328625 | I13: 850597 | J13: 28598.30434 | K13: 75975 | L13: 2328.35805 | M13: 17 | N13: 0.98 | O13: 4 | P13: 0.09 | Q13: 21 | R13: 1.07 | S13: 19 | T13: 0.1
A14: 2020-10-07 | B14: 21 | C14: 6167.46 | D14: 1016400 | E14: 32532.9357 | F14: 0.416 | G14: 416 | H14: 24.444 | I14: 1016816 | J14: 32557.3797 | K14: 98368 | L14: 3032.17 | M14: 134 | N14: 3.62 | O14: 0 | P14: 0 | Q14: 134 | R14: 3.62 | S14: 59 | T14: 0.19
A15: 2020-11-08 | B15: 20 | C15: 5773.62 | D15: 949606 | E15: 31275.75454 | F15: 0.257 | G15: 257 | H15: 15.4926875 | I15: 949863 | J15: 31291.24723 | K15: 121177 | L15: 3517.67 | M15: 20 | N15: 0.43 | O15: 118 | P15: 6.22 | Q15: 138 | R15: 6.65 | S15: 188 | T15: 8.04
A16: 2020-12-09 | B16: 22 | C16: 6403.63 | D16: 1052955 | E16: 34245.10725 | F16: 0.147 | G16: 147 | H16: 8.4832625 | I16: 1053102 | J16: 34253.59051 | K16: 125247 | L16: 3656.511992 | M16: 0 | N16: 0 | O16: 303 | P16: 13.41 | Q16: 303 | R16: 13.41 | S16: 350 | T16: 16.11
A17: $ indicates as on December 31, 2020
A18: Note: Agridex volume data are in "000 lots".
A19: Source: NCDEX

Sheet 67
A1: Table 67: Trends in commodity derivatives at ICEX
A2: Year/ Month | B2: No.of Trading days | C2: Agriculture Futures | F2: Metals Futures | I2: Gems and Stones Futures | L2: Total | N2: Open interest at the end of the period
C3: Volume ('000 tonnes) | D3: No. of contracts traded | E3: Turnover (₹ crore) | F3: Volume ('000 tonnes) | G3: No. of contracts traded | H3: Turnover (₹ crore) | I3: Volume (in cents) | J3: No. of contracts traded | K3: Turnover (₹ crore) | L3: No. of contracts traded | M3: Turnover (₹ crore) | N3: No. of contracts traded | O3: Value (₹ crore)
A4: 2019-20 | B4: 259 | C4: 821.739 | D4: 268376 | E4: 5353.523373 | F4: 2450.71 | G4: 245071 | H4: 7437.7323 | I4: 78395209 | J4: 78395209 | K4: 27720.03751 | L4: 78908656 | M4: 40511.29218 | N4: 8290 | O4: 19.32
A5: 2020-21$ | B5: =SUM(B6:B17) -> 192 | C5: =SUM(C6:C17) -> 64.9187 | D5: 15920 | E5: 308.520813 | F5: 252.14 | G5: 25214 | H5: 749.40573 | I5: 1457479 | J5: 1457479 | K5: 553.9394579 | L5: 1498613 | M5: 1611.867351 | N5: =N14 -> 5 | O5: =O14 -> 0.15
A6: 2020-04-01 | B6: 18 | C6: 50.8377 | D6: 9581 | E6: 213.0219 | F6: 159.34 | G6: 15934 | H6: 472.8693 | I6: 655886 | J6: 655886 | K6: 250.5 | L6: 681401 | M6: 936.39175 | N6: 14307 | O6: 19.65
A7: 2020-05-02 | B7: 21 | C7: 10.79 | D7: 3048 | E7: 53.65 | F7: 83.18 | G7: 8318 | H7: 246.82 | I7: 641368 | J7: 641368 | K7: 242.99 | L7: 652734 | M7: 543.46 | N7: 10497 | O7: 15.64
A8: 2020-06-03 | B8: 22 | C8: 1.321 | D8: 1321 | E8: 16.16 | F8: 8.4 | G8: 840 | H8: 25.6 | I8: 153591 | J8: 153591 | K8: 58.103 | L8: 155752 | M8: 99.863 | N8: 6912 | O8: 7.45
A9: 2020-07-04 | B9: 23 | C9: 1.741 | D9: 1741 | E9: 22.481598 | F9: 0.74 | G9: 74 | H9: 2.23193 | I9: 5821 | J9: 5821 | K9: 2.09509486 | L9: 7636 | M9: 26.80862286 | N9: 3378 | O9: 5.12059014
A10: 2020-08-05 | B10: 21 | C10: 0.17 | D10: 170 | E10: 2.276715 | F10: 0 | G10: 0 | H10: 0 | I10: 5 | J10: 5 | K10: 0.001638 | L10: 175 | M10: 2.278353 | N10: 36 | O10: 0.483696
A11: 2020-09-06 | B11: 22 | C11: 0.003 | D11: 3 | E11: 0.0406 | F11: 0 | G11: 0 | H11: 0 | I11: 382 | J11: 382 | K11: 0.1153 | L11: 385 | M11: 0.156 | N11: 176 | O11: 0.05
A12: 2020-10-07 | B12: 21 | C12: 0 | D12: 0 | E12: 0 | F12: 0 | G12: 0 | H12: 0 | I12: 336 | J12: 336 | K12: 0.1066 | L12: 336 | M12: 0.1066 | N12: 3 | O12: 0.001015695
A13: 2020-11-08 | B13: 22 | C13: 0 | D13: 0 | E13: 0 | F13: 0 | G13: 0 | H13: 0 | I13: 90 | J13: 90 | K13: 0.027825 | L13: 90 | M13: 0.027825 | N13: 20 | O13: 0.005155
A14: 2020-12-09 | B14: 22 | C14: 0.056 | D14: 56 | E14: 0.89 | F14: 0.48 | G14: 48 | H14: 1.8845 | I14: 0 | J14: 0 | K14: 0 | L14: 104 | M14: 2.7752 | N14: 5 | O14: 0.15
A15: $ indicates as on December 31, 2020
A16: Note : Contract size for all diamond futures contract at ICEX is one cent.
A17: Source: ICEX

Sheet 68
A1: Table 68: Trends in commodity derivatives at BSE
A2: Futures
A3: Year/ Month | B3: No.of Trading days | C3: Metal | F3: Bullion | I3: Energy | L3: Agriculture | O3: Total | Q3: Open interest at the end of the period
C4: Volume ( '000 tonnes) | D4: No. of contracts traded | E4: Turnover (₹ crore) | F4: Volume ( '000 tonnes) | G4: No. of contracts traded | H4: Turnover (₹ crore) | I4: Volume ( '000 tonnes) | J4: No. of contracts traded | K4: Turnover (₹ crore) | L4: Volume ( '000 tonnes) | M4: No. of contracts traded | N4: Turnover (₹ crore) | O4: No. of contracts traded | P4: Turnover (₹ crore) | Q4: No. of contracts traded | R4: Value (₹ crore)
A5: 2019-20 | B5: 259 | C5: 0.874 | D5: 874 | E5: 39.2752 | F5: 0.49412 | G5: 41682 | H5: 8836.561185 | I5: 422.8512934 | J5: 30995 | K5: 1246.95 | L5: 6825.5124 | M5: 834466 | N5: 36315.92885 | O5: 908017 | P5: 46438.71523 | Q5: 1 | R5: 0.03
A6: 2020-21$ | B6: =SUM(B7:B18) -> 191 | C6: =SUM(C7:C18) -> 0 | D6: 0 | E6: 0 | F6: 0.0007077 | G6: 863 | H6: 55.75 | I6: 0.354706685 | J6: 26 | K6: 0.57201 | L6: 830.54575 | M6: 114393 | N6: 4585.68313 | O6: 115282 | P6: 4642.00514 | Q6: =Q15 -> 9 | R6: =R15 -> 0.29
A7: 2020-04-01 | B7: 18 | C7: 0 | D7: 0 | E7: 0 | F7: 0 | G7: 0 | H7: 0 | I7: 0 | J7: 0 | K7: 0 | L7: 200.3805 | M7: 25734 | N7: 1001.73313 | O7: 25734 | P7: 1001.73313 | Q7: 0 | R7: 0
A8: 2020-05-02 | B8: 20 | C8: 0 | D8: 0 | E8: 0 | F8: 0 | G8: 0 | H8: 0 | I8: 0.354706685 | J8: 26 | K8: 0.57201 | L8: 165.684 | M8: 21380 | N8: 847.49 | O8: 21406 | P8: 848.06201 | Q8: 50 | R8: 2.64
A9: 2020-06-03 | B9: 22 | C9: 0 | D9: 0 | E9: 0 | F9: 0.0006337 | G9: 123 | H9: 18.64 | I9: 0 | J9: 0 | K9: 0 | L9: 314.88175 | M9: 39937 | N9: 1565.29 | O9: 40060 | P9: 1583.93 | Q9: 86 | R9: 4.52
A10: 2020-07-04 | B10: 23 | C10: 0 | D10: 0 | E10: 0 | F10: 0 | G10: 0 | H10: 0 | I10: 0 | J10: 0 | K10: 0 | L10: 46.9645 | M10: 7891 | N10: 323.74 | O10: 7891 | P10: 323.74 | Q10: 83 | R10: 4.12
A11: 2020-08-01 | B11: 21 | C11: 0 | D11: 0 | E11: 0 | F11: 0 | G11: 0 | H11: 0 | I11: 0 | J11: 0 | K11: 0 | L11: 19.513 | M11: 3574 | N11: 153.78 | O11: 3574 | P11: 153.78 | Q11: 67 | R11: 4.08
A12: 2020-09-01 | B12: 22 | C12: 0 | D12: 0 | E12: 0 | F12: 1e-05 | G12: 80 | H12: 4.01 | I12: 0 | J12: 0 | K12: 0 | L12: 21.349 | M12: 4042 | N12: 181.2 | O12: 4122 | P12: 185.21 | Q12: 67 | R12: 3.86
A13: 2020-10-01 | B13: 21 | C13: 0 | D13: 0 | E13: 0 | F13: 2e-05 | G13: 220 | H13: 11.15 | I13: 0 | J13: 0 | K13: 0 | L13: 30.783 | M13: 5007 | N13: 236.58 | O13: 5227 | P13: 247.73 | Q13: 83 | R13: 4.55
A14: 2020-11-01 | B14: 22 | C14: 0 | D14: 0 | E14: 0 | F14: 2.1e-05 | G14: 210 | H14: 10.53 | I14: 0 | J14: 0 | K14: 0 | L14: 19.67 | M14: 4031 | N14: 165.86 | O14: 4241 | P14: 176.39 | Q14: 91 | R14: 5.03
A15: 2020-12-01 | B15: 22 | C15: 0 | D15: 0 | E15: 0 | F15: 2.3e-05 | G15: 230 | H15: 11.42 | I15: 0 | J15: 0 | K15: 0 | L15: 11.32 | M15: 2797 | N15: 110.01 | O15: 3027 | P15: 121.43 | Q15: 9 | R15: 0.29
A20: Options
A21: Year / Month | B21: No.of Trading days | C21: Bullion | G21: Total | I21: Open interest at the end of the period
C22: Call Options | E22: Put Options | G22: No. of contracts traded | H22: Turnover (₹ crore) | I22: No. of contracts traded | J22: Notional Value (₹ crore)
C23: No. of contracts traded | D23: Turnover (₹ crore) | E23: No. of contracts traded | F23: Turnover (₹ crore)
A24: 2020-21$ | B24: =SUM(B25:B34) -> 153 | C24: =SUM(C25:C34) -> 3197959 | D24: 188015.92 | E24: 4094119 | F24: 217938.75 | G24: 7292078 | H24: 405954.67 | I24: =I31 -> 10 | J24: =J31 -> 0.0069605
A25: 2020-06-01 | B25: 22 | C25: 298958 | D25: 13332.21 | E25: 294684 | F25: 13484.56 | G25: 593642 | H25: 26816.77 | I25: 389 | J25: 0.11
A26: 2020-07-01 | B26: 23 | C26: 267903 | D26: 13424.07 | E26: 1238158 | F26: 58818.92 | G26: 1506061 | H26: 72242.99 | I26: 376 | J26: 0.38
A27: 2020-08-01 | B27: 21 | C27: 344179 | D27: 20187.25 | E27: 1036730 | F27: 51483.6 | G27: 1380909 | H27: 71670.85 | I27: 329 | J27: 0.17
A28: 2020-09-01 | B28: 22 | C28: 377475 | D28: 29792.17 | E28: 354405 | F28: 28539.24 | G28: 731880 | H28: 58331.41 | I28: 38 | J28: 0.09
A29: 2020-10-01 | B29: 21 | C29: 378630 | D29: 26409.6 | E29: 523275 | F29: 29727.8 | G29: 901905 | H29: 56137.4 | I29: 180 | J29: 0.54
A30: 2020-11-01 | B30: 22 | C30: 636338 | D30: 36607.56 | E30: 292615 | F30: 17346.65 | G30: 928953 | H30: 53954.21 | I30: 43 | J30: 0.01
A31: 2020-12-01 | B31: 22 | C31: 894476 | D31: 48263.06 | E31: 354252 | F31: 18537.98 | G31: 1248728 | H31: 66801.04 | I31: 10 | J31: 0.0069605
A35: $ indicates as on December 31, 2020
A36: Note: 1. Conversion factors: Brent Crude Oil (1 Tonne = 7.33 Barrels)
A37: 2. Option contracts were launched at BSE from June 2020.
A38: Source: BSE

Sheet 69
A1: Table 69: Trends in commodity derivatives at NSE
A2: Futures
A3: Year/ Month | B3: No.of Trading days | C3: Agriculture* | F3: Bullion | I3: Energy | L3: Total | N3: Open interest at the end of the period
C4: Volume ('000 tonnes) | D4: No. of contracts traded | E4: Turnover (₹ crore) | F4: Volume ('000 tonnes) | G4: No. of contracts traded | H4: Turnover (₹ crore) | I4: Volume ('000 tonnes) | J4: No. of contracts traded | K4: Turnover (₹ crore) | L4: No. of contracts traded | M4: Turnover (₹ crore) | N4: No. of contracts traded | O4: Value (₹ crore)
A5: 2019-20 | B5: 259 | C5: Na | D5: Na | E5: Na | F5: 0.0218643 | G5: 65928 | H5: 5773.602194 | I5: 0.01 | J5: 79626 | K5: 588.697081 | L5: 145554 | M5: 6362.004456 | N5: 8 | O5: 0.33
A6: 2020-21$ | B6: =SUM(B7:B19) -> 192 | C6: 134.62 | D6: 13462 | E6: 1433.92384 | F6: 0.0012281 | G6: 12236 | H6: 594.025274 | I6: 0 | J6: 0 | K6: 0 | L6: 25698 | M6: 2027.949114 | N6: =N15 -> 38 | O6: =O15 -> 3.62
A7: 2020-04-01 | B7: 18 | C7: Na | D7: Na | E7: Na | F7: 0.0001256 | G7: 1256 | H7: 57.360367 | I7: 0 | J7: 0 | K7: 0 | L7: 1256 | M7: 57.360367 | N7: 17 | O7: 0.76
A8: 2020-05-02 | B8: 21 | C8: Na | D8: Na | E8: Na | F8: 0.0001651 | G8: 1651 | H8: 76.517431 | I8: 0 | J8: 0 | K8: 0 | L8: 1651 | M8: 76.517431 | N8: 3 | O8: 0.14
A9: 2020-06-03 | B9: 22 | C9: Na | D9: Na | E9: Na | F9: 0.0004474 | G9: 4474 | H9: 209.17938 | I9: 0 | J9: 0 | K9: 0 | L9: =SUM(G9,J9) -> 4474 | M9: =SUM(H9,K9) -> 209.17938 | N9: 18 | O9: 0.87
A10: 2020-07-04 | B10: 23 | C10: Na | D10: Na | E10: Na | F10: 9.11e-05 | G10: 911 | H10: 45.49317 | I10: 0 | J10: 0 | K10: 0 | L10: 911 | M10: 45.49317 | N10: 23 | O10: 1.23
A11: 2020-08-05 | B11: 21 | C11: Na | D11: Na | E11: Na | F11: 0.0001748 | G11: 1748 | H11: 92.012485 | I11: 0 | J11: 0 | K11: 0 | L11: 1748 | M11: 92.012485 | N11: 7 | O11: 0.36
A12: 2020-09-06 | B12: 22 | C12: Na | D12: Na | E12: Na | F12: 0.0001285 | G12: 1240 | H12: 65.526607 | I12: 0 | J12: 0 | K12: 0 | L12: 1240 | M12: 65.526607 | N12: 7 | O12: 0.35
A13: 2020-10-07 | B13: 21 | C13: Na | D13: Na | E13: Na | F13: 2.79e-05 | G13: 279 | H13: 14.122891 | I13: 0 | J13: 0 | K13: 0 | L13: 279 | M13: 14.122891 | N13: 5 | O13: 0.25
A14: 2020-11-08 | B14: 22 | C14: Na | D14: Na | E14: Na | F14: 3.71e-05 | G14: 371 | H14: 18.669679 | I14: 0 | J14: 0 | K14: 0 | L14: 371 | M14: 18.669679 | N14: 25 | O14: 1.23
A15: 2020-12-09 | B15: 22 | C15: 134.62 | D15: 13462 | E15: 1433.92384 | F15: 3.06e-05 | G15: 306 | H15: 15.143264 | I15: 0 | J15: 0 | K15: 0 | L15: 13768 | M15: 1449.067104 | N15: 38 | O15: 3.62
A16: Note :
A17: 1. * Futures Trading in Agri segment commenced from December 1, 2020.
H20: =(H15-H14)/H14*100 -> -18.8884608
A21: Options
A22: Year / Month | B22: No.of Trading days | C22: Bullion | G22: Total | I22: Open interest at the end of the period
C23: Call Options | E23: Put Options | G23: No. of contracts traded | H23: Turnover (₹ crore) | I23: No. of contracts traded | J23: Notional Value (₹ crore)
C24: No. of contracts traded | D24: Turnover (₹ crore) | E24: No. of contracts traded | F24: Turnover (₹ crore)
A25: 2020-21$ | B25: =SUM(B26:B32) -> 153 | C25: =SUM(C26:C32) -> 219612 | D25: 11235.29421 | E25: 136931 | F25: 6896.393852 | G25: 356543 | H25: 18131.68806 | I25: =I32 -> 2169 | J25: =J32 -> 109.3
A26: 2020-06-01 | B26: 22 | C26: 21403 | D26: 1028.346146 | E26: 15232 | F26: 723.5290575 | G26: =SUM(C26,E26) -> 36635 | H26: =SUM(D26,F26) -> 1751.875204 | I26: 1181 | J26: 56.33
A27: 2020-07-01 | B27: 23 | C27: 72333 | D27: 3649.582645 | E27: 52135 | F27: 2586.172328 | G27: 124468 | H27: 6235.754974 | I27: 2760 | J27: 140.36
A28: 2020-08-01 | B28: 21 | C28: 23412 | D28: 1275.977891 | E28: 20669 | F28: 1105.942207 | G28: 44081 | H28: 2381.920097 | I28: 547 | J28: 27.41
A29: 2020-09-01 | B29: 22 | C29: 19568 | D29: 1017.146712 | E29: 14137 | F29: 717.2608415 | G29: 33705 | H29: 1734.407553 | I29: 3787 | J29: 191.08
A30: 2020-10-01 | B30: 21 | C30: 25980 | D30: 1340.580544 | E30: 10221 | F30: 516.0190255 | G30: 36201 | H30: 1856.59957 | I30: 4333 | J30: 222.55
A31: 2020-11-01 | B31: 22 | C31: 33194 | D31: 1724.141352 | E31: 17723 | F31: 909.171189 | G31: 50917 | H31: 2633.312541 | I31: 3113 | J31: 157.86
A32: 2020-12-01 | B32: 22 | C32: 23722 | D32: 1199.518916 | E32: 6814 | F32: 338.299204 | G32: 30536 | H32: 1537.81812 | I32: 2169 | J32: 109.3
A33: $ indicates as on December 31, 2020
A34: Note: Option contracts were launched at NSE from June 2020.
A35: Source: NSE

Sheet 70
A1: Table 70: Participant-wise percentage share of turnover at MCX, NCDEX, ICEX, BSE and NSE
A2: Year/ Month | B2: MCX | F2: NCDEX | K2: ICEX | O2: BSE | S2: NSE
B3: Agri Segment | D3: Non-Agri Segment | F3: Agri Segment | I3: Agridex Index | K3: Agri Segment | M3: Non-Agri Segment | O3: Agri Segment | Q3: Non-Agri Segment | S3: Agri Segment | U3: Non-Agri Segment
B4: Proprietary | C4: Client | D4: Proprietary | E4: Client | F4: Proprietary | G4: Client | H4: Hedgers | I4: Proprietary | J4: Client | K4: Proprietary | L4: Client | M4: Proprietary | N4: Client | O4: Proprietary | P4: Client | Q4: Proprietary | R4: Client | S4: Proprietary | T4: Client | U4: Proprietary | V4: Client
A5: 2019-20 | B5: 38.2633752 | C5: 61.7366248 | D5: 36.87670666 | E5: 63.12329334 | F5: 47.19185166 | G5: 52.04284054 | H5: 0.7653077977 | I5: Na | J5: Na | K5: 53.65610373 | L5: 46.34384957 | M5: 73.57980896 | N5: 26.42019104 | O5: 65.50017765 | P5: 34.49982235 | Q5: 82.05174851 | R5: 17.94825149 | S5: Na | T5: Na | U5: 45.26539282 | V5: 54.73460718
A6: 2020-21$ | B6: 34.28512633 | C6: 65.71487367 | D6: 38.1484939 | E6: 61.8515061 | F6: 42.3429356 | G6: 56.4115545 | H6: 1.245509897 | I6: 36.59060233 | J6: 63.40939767 | K6: 63.92 | L6: 36.08 | M6: 68.79 | N6: 31.21 | O6: 64.02665516 | P6: 35.97334484 | Q6: 50.19504111 | R6: 49.80495889 | S6: 97.05636912 | T6: 2.943630883 | U6: 56.95048555 | V6: 43.04951445
A7: 2020-04-01 | B7: 41.228984 | C7: 58.771016 | D7: 36.8383438 | E7: 63.1616562 | F7: 42.83471831 | G7: 55.82364098 | H7: 1.341640711 | I7: Na | J7: Na | K7: 77.48072094 | L7: 22.51927906 | M7: 80.36590679 | N7: 19.63409321 | O7: 50.01482181 | P7: 49.98517819 | Q7: 0 | R7: 0 | S7: Na | T7: Na | U7: 76.10738875 | V7: 23.89261125
A8: 2020-05-02 | B8: 41.82131849 | C8: 58.17868151 | D8: 36.50010864 | E8: 63.49989136 | F8: 44.72332332 | G8: 53.65026611 | H8: 1.626410562 | I8: 42.52468503 | J8: 57.47531497 | K8: 58.5354238 | L8: 41.4645762 | M8: 57.64303036 | N8: 42.35696964 | O8: 59.5197593 | P8: 40.4802407 | Q8: 53.88891803 | R8: 46.11108197 | S8: Na | T8: Na | U8: 66.8194813 | V8: 33.1805187
A9: 2020-06-03 | B9: 34.19076582 | C9: 65.80923418 | D9: 36.83886889 | E9: 63.16113111 | F9: 40.51230272 | G9: 57.69991457 | H9: 1.787782714 | I9: 37.10827189 | J9: 62.89172811 | K9: 2.075695767 | L9: 97.92430423 | M9: 37.15491193 | N9: 62.84508807 | O9: 57.37748383 | P9: 42.62251617 | Q9: 50.46989365 | R9: 49.53010635 | S9: Na | T9: Na | U9: 74.49723535 | V9: 25.50276465
A10: 2020-07-04 | B10: 32.39023161 | C10: 67.60976839 | D10: 39.61896498 | E10: 60.38103502 | F10: 41.66 | G10: 56.87 | H10: 1.48 | I10: 43.08 | J10: 56.92 | K10: 0.451487034 | L10: 99.54851297 | M10: 27.29521156 | N10: 72.70478844 | O10: 93.0979801 | P10: 6.902019896 | Q10: 0 | R10: 0 | S10: Na | T10: Na | U10: 54.19844805 | V10: 45.80155195
A11: 2020-08-05 | B11: 33.03606115 | C11: 66.96393885 | D11: 41.25363052 | E11: 58.74636948 | F11: 43.48908071 | G11: 55.32140406 | H11: 1.189515237 | I11: 23.82925563 | J11: 76.17074437 | K11: 0.8960278296 | L11: 99.10397217 | M11: 100 | N11: 0 | O11: 94.83567872 | P11: 5.164321279 | Q11: 0 | R11: 0 | S11: Na | T11: Na | U11: 58.04069268 | V11: 41.95930732
A12: 2020-09-06 | B12: 33.38559688 | C12: 66.61440312 | D12: 39.14302808 | E12: 60.85697192 | F12: 45.33939712 | G12: 53.9966495 | H12: 0.6639533812 | I12: 17.82310196 | J12: 82.17689804 | K12: 0 | L12: 100 | M12: 1.34 | N12: 98.66 | O12: 98.33421697 | P12: 1.66578303 | Q12: 50 | R12: 50 | S12: Na | T12: Na | U12: 53.40058302 | V12: 46.59941698
A13: 2020-10-07 | B13: 35.29628375 | C13: 64.70371625 | D13: 37.67079406 | E13: 62.32920594 | F13: 43.82394431 | G13: 55.18966754 | H13: 0.9863881496 | I13: 31.8732869 | J13: 68.1267131 | K13: 0 | L13: 0 | M13: 0 | N13: 100 | O13: 93.12488775 | P13: 6.87511225 | Q13: 50 | R13: 50 | S13: Na | T13: Na | U13: 53.12814253 | V13: 46.87185747
A14: 2020-11-08 | B14: 30.75385735 | C14: 69.24614265 | D14: 34.7323378 | E14: 65.2676622 | F14: 41.88961926 | G14: 56.89545705 | H14: 1.214923686 | I14: 26.41100842 | J14: 73.58899158 | K14: 0 | L14: 0 | M14: 1.235401269 | N14: 98.76459873 | O14: 69.38442748 | P14: 30.61557252 | Q14: 50 | R14: 50 | S14: Na | T14: Na | U14: 53.11960853 | V14: 46.88039147
A15: 2020-12-09 | B15: 30.78696703 | C15: 69.21303297 | D15: 32.76609654 | E15: 67.23390346 | F15: 38.46421937 | G15: 60.07057568 | H15: 1.465204945 | I15: 42.16656033 | J15: 57.83343967 | K15: 33.98 | L15: 66.02 | M15: 30.25 | N15: 69.75 | O15: 65.16029987 | P15: 34.83970013 | Q15: 50 | R15: 50 | S15: 97.05636912 | T15: 2.943630883 | U15: 58.25415716 | V15: 41.74584284
A16: Note :
A17: 1. * Futures Trading in Agri segment commenced from December 1, 2020.
A18: ='64'!A15 -> $ indicates as on December 31, 2020
A19: Source: MCX, NCDEX, ICEX, BSE and NSE

Sheet 71
A1: Table 71: Commodity-wise turnover and trading volume at MCX
A2: Sr.No | B2: Name of the Commodity | C2: 2019-20 | E2: 2020-21$ | G2: 2019-12-01 | I2: 2020-11-01 | K2: 2020-12-01
C3: Volume ('000 tonnes) | D3: Value (₹ crore) | E3: Volume ('000 tonnes) | F3: Value (₹ crore) | G3: Volume ('000 tonnes) | H3: Value (₹ crore) | I3: Volume ('000 tonnes) | J3: Value (₹ crore) | K3: Volume ('000 tonnes) | L3: Value (₹ crore)
A4: Futures
A5: A | B5: Bullion
B6: Gold | C6: 4.719223986 | D6: 1776343.717 | E6: 3.298752798 | F6: 1636128.73 | G6: 0.295240314 | H6: 112589.2237 | I6: 0.367704383 | J6: 184689.9533 | K6: 0.306901232 | L6: 152381.8605
B7: Silver | C7: 263.221315 | D7: 1139189.846 | E7: 315.536577 | F7: 1875126.624 | G7: 18.994593 | H7: 85737.65904 | I7: 31.526138 | J7: 196330.7655 | K7: 31.971771 | L7: 210887.4065
B8: Total for A | C8: =SUM(C6:C7) -> 267.940539 | D8: =SUM(D6:D7) -> 2915533.563 | E8: =SUM(E6:E7) -> 318.8353298 | F8: =SUM(F6:F7) -> 3511255.355 | G8: 19.28983331 | H8: 198326.8827 | I8: 31.89384238 | J8: 381020.7188 | K8: 32.27867223 | L8: 363269.267
A9: B | B9: Metals other than Bullion
B10: Aluminium | C10: 5357.254 | D10: 74320.62369 | E10: 1949.214 | F10: 28781.90653 | G10: 267.921 | H10: 3591.573405 | I10: 269.625 | J10: 4303.166975 | K10: 324.09 | L10: 5336.9463
B11: Copper | C11: 10467.644 | D11: 454929.945 | E11: 8276.1875 | F11: 417905.4936 | G11: 634.45 | H11: 27896.39081 | I11: 914.8925 | J11: 49905.67922 | K11: 891.1825 | L11: 53345.64229
B12: Lead | C12: 11670.041 | D12: 171197.9762 | E12: 3478.999 | F12: 51375.66406 | G12: 463.102 | H12: 7076.646695 | I12: 327.905 | J12: 5073.66065 | K12: 396.95 | L12: 6297.170825
B13: Nickel | C13: 4210.50615 | D13: 421940.8026 | E13: 3963.6345 | F13: 428182.5753 | G13: 512.9565 | H13: 52123.071 | I13: 459.519 | J13: 54552.98008 | K13: 448.515 | L13: 56858.16465
B14: Zinc | C14: 23107.258 | D14: 445905.1237 | E14: 10350.698 | F14: 193445.9646 | G14: 1272.425 | H14: 23205.97086 | I14: 1197.73 | J14: 25551.72395 | K14: 1177.785 | L14: 25765.01177
B15: Total for B | C15: =SUM(C10:C14) -> 54812.70315 | D15: =SUM(D10:D14) -> 1568294.471 | E15: =SUM(E10:E14) -> 28018.733 | F15: =SUM(F10:F14) -> 1119691.604 | G15: 3150.8545 | H15: 113893.6528 | I15: 3169.6715 | J15: 139387.2109 | K15: 3238.5225 | L15: 147602.9358
A16: C | B16: Agricultural commodities
B17: Cardamom | C17: 1.1468 | D17: 313.306587 | E17: 0.0253 | F17: 4.233368 | G17: 0.0599 | H17: 18.899805 | I17: 0.0006 | J17: 0.088104 | K17: 0 | L17: 0
B18: Cotton | C18: 3045.12075 | D18: 37145.59668 | E18: 696.5155 | F18: 7156.71285 | G18: 113.4665 | H18: 1286.50635 | I18: 72.39875 | J18: 853.039875 | K18: 113.39 | L18: 1354.82465
B19: CPO | C19: 8158.95 | D19: 52534.08024 | E19: 6956.2 | F19: 53597.83404 | G19: 896.67 | H19: 6654.59744 | I19: 1033.54 | J19: 9173.64569 | K19: 1003.31 | L19: 9244.35887
B20: Mentha Oil | C20: 82.45548 | D20: 10577.78167 | E20: 11.0232 | F20: 1096.68573 | G20: 4.66452 | H20: 606.2720508 | I20: 0.9126 | J20: 86.7188484 | K20: 1.2528 | L20: 123.623442
B21: Kapas | C21: 65.78 | D21: 348.72735 | E21: 40.062 | F21: 212.991153 | G21: 6.804 | H21: 37.47957 | I21: 4.264 | J21: 24.72641 | K21: 3.762 | L21: 25.130193
B22: Total for C | C22: =SUM(C17:C21) -> 11353.45303 | D22: =SUM(D17:D21) -> 100919.4925 | E22: =SUM(E17:E21) -> 7703.826 | F22: =SUM(F17:F21) -> 62068.45714 | G22: 1021.66492 | H22: 8603.755216 | I22: 1111.11595 | J22: 10138.21893 | K22: 1121.7148 | L22: 10747.93716
A23: D | B23: Energy
B24: Crude Oil | C24: 1188816.195 | D24: 3353599.834 | E24: 270036.9753 | F24: 507858.0287 | G24: 89010.49379 | H24: 276000.5844 | I24: 28835.07545 | J24: 64144.71796 | K24: 8059.931904 | L24: 20286.33818
B25: Natural Gas (trln. Btu) | C25: 29170.88375 | D25: 459427.5959 | E25: 45704.6375 | F25: 791537.0346 | G25: 3433.605 | H25: 56201.6717 | I25: 6087.795 | J25: 131615.4961 | K25: 5741.41375 | L25: 109916.7614
B26: Total for D | D26: =SUM(D24:D25) -> 3813027.43 | F26: =SUM(F24:F25) -> 1299395.063 | H26: =SUM(H24:H25) -> 332202.2561 | J26: =SUM(J24:J25) -> 195760.2141 | L26: =SUM(L24:L25) -> 130203.0995
A27: E | B27: Index Futures
B28: iCOMDEX Bullion | C28: Na | D28: Na | E28: 317.847 | F28: 24770.89925 | G28: Na | H28: Na | I28: 72.876 | J28: 5643.283815 | K28: 89.737 | L28: 6916.362285
B29: iCOMDEX Metal | C29: Na | D29: Na | E29: 45.57 | F29: 2968.97046 | G29: Na | H29: Na | I29: 15.832 | J29: 1016.403045 | K29: 18.996 | L29: 1294.050745
B30: Total for E | D30: =SUM(D28:D29) -> 0 | F30: =SUM(F28:F29) -> 27739.86971 | H30: =SUM(H28:H29) -> 0 | J30: =SUM(J28:J29) -> 6659.68686 | L30: =SUM(L28:L29) -> 8210.41303
A31: Grand Total (A+B+C+D+E) | C31: =SUM(C8,C15,C22,C24) -> 1255250.291 | D31: =SUM(D8,D15,D22,D26,D30) -> 8397774.957 | E31: =SUM(E8,E15,E22,E24) -> 306078.3696 | F31: =SUM(F8,F15,F22,F26,F30) -> 6020150.349 | G31: =G30+G24+G22+G15+G8 -> 93202.30304 | H31: =SUM(H8,H15,H22,H26,H30) -> 653026.5468 | I31: =I30+I24+I22+I15+I8 -> 33147.75674 | J31: =SUM(J8,J15,J22,J26,J30) -> 732966.0496 | K31: =K30+K24+K22+K15+K8 -> 12452.44788 | L31: =SUM(L8,L15,L22,L26,L30) -> 660033.6526
A32: Options
A33: F | B33: Bullion
B34: Gold | C34: 0.377159 | D34: 144222.8906 | E34: 0.2318023 | F34: 115432.9354 | G34: 0.012952 | H34: 4982.88202 | I34: 0.0408115 | J34: 20796.04784 | K34: 0.0216825 | L34: 10969.21136
B35: Silver | C35: 4.59927 | D35: 20431.88259 | E35: 4.3548 | F35: 26409.59107 | G35: 0.23991 | H35: 1106.963856 | I35: 0.57081 | J35: 3620.096524 | K35: 0.24204 | L35: 1586.57742
B36: Total of F | C36: =SUM(C34:C35) -> 4.976429 | D36: =SUM(D34:D35) -> 164654.7731 | E36: =SUM(E34:E35) -> 4.5866023 | F36: =SUM(F34:F35) -> 141842.5265 | G36: 0.252862 | H36: 6089.845876 | I36: 0.6116215 | J36: 24416.14437 | K36: 0.2637225 | L36: 12555.78878
A37: G | B37: Metals
B38: Copper | C38: 23.1725 | D38: 1023.373526 | E38: 1.3575 | F38: 64.61224 | G38: 1.005 | H38: 44.453895 | I38: 0.0225 | J38: 1.22831 | K38: 0.2025 | L38: 11.9155175
B39: Zinc | C39: 59.388 | D39: 1239.783842 | E39: 0.215 | F39: 3.678755 | G39: 2.032 | H39: 37.892267 | I39: 0 | J39: 0 | K39: 0 | L39: 0
B40: Total of G | C40: =SUM(C38:C39) -> 82.5605 | D40: =SUM(D38:D39) -> 2263.157368 | E40: =SUM(E38:E39) -> 1.5725 | F40: 68.290995 | G40: 3.037 | H40: 82.346162 | I40: 0.0225 | J40: 1.22831 | K40: 0.2025 | L40: 11.9155175
A41: H | B41: Energy
B42: Crude Oil | C42: 42609.19571 | D42: 124824.7335 | E42: 12476.72597 | F42: 25602.89768 | G42: 2965.266073 | H42: 9210.969297 | I42: 941.869045 | J42: 2146.730506 | K42: 1051.268774 | L42: 2690.813998
A43: Grand Total (F+G+H) | C43: =SUM(C36,C40,C42) -> 42696.73264 | D43: =SUM(D36,D40,D42) -> 291742.664 | E43: =SUM(E36+E40+E42) -> 12482.88507 | F43: =SUM(F36+F40+F42) -> 167513.7151 | G43: =SUM(G36+G40+G42) -> 2968.555935 | H43: =SUM(H36+H40+H42) -> 15383.16134 | I43: 942.5031665 | J43: 26564.10318 | K43: 1051.734996 | L43: 15258.5183
A44: ='[1]64'!A15 -> $ indicates as on Dec. 31, 2020
A45: Note : 1. Natural Gas volume is in trillion BTU and is not included for computing the total volume in "000 tonnes".
A46: 2. iCOMDEX Bullion volumes are in '000 lots and is not included for computing the total volume in "000 tonnes".
A47: 3. Options includes both options on futures and goods
A48: 4.Conversion factors: Cotton (1 Bale=170 kg), Crude Oil (1 Tonne = 7.33Barrels)
A49: 4. Trading in iCOMDEX Bullion Futures and iCOMDEX Metal Futures launched on 24th Aug, 2020 and 19th Oct. 2020 respectively.
A50: Source : MCX

Sheet 72
A1: Table 72: Commodity-wise turnover and trading volume at NCDEX
A2: Sr.No | B2: Name of Agri. Commodity | C2: 2019-20 | E2: 2020-21$ | G2: 2019-12-17 | I2: 2020-11-18 | K2: 2020-12-18
C3: Volume ('000 tonnes) | D3: Value (₹ crore) | E3: Volume ('000 tonnes) | F3: Value (₹ crore) | G3: Volume ('000 tonnes) | H3: Value (₹ crore) | I3: Volume ('000 tonnes) | J3: Value ( crore) | K3: Volume ('000 tonnes) | L3: Value (₹ crore)
A4: A | B4: Futures
B5: AGRIDEX Index | C5: Na | D5: Na | E5: 5.702 | F5: 303.3046375 | G5: Na | H5: Na | I5: 0.257 | J5: 15.4926875 | K5: 0.147 | L5: 8.4832625
B6: Barley | C6: 102.46 | D6: 185.62522 | E6: 31.36 | F6: 46.374325 | G6: 1.77 | H6: 3.0031 | I6: 1.01 | J6: 1.46117 | K6: 0.97 | L6: 1.41046
B7: Bajra | C7: 4.29 | D7: 7.37232 | E7: Na | F7: Na | G7: 0.18 | H7: 0.36728 | I7: 0 | J7: 0 | K7: Na | L7: Na
B8: Castorseed | C8: 11053.96 | D8: 60060.97082 | E8: 1479.885 | F8: 6126.86813 | G8: 264.365 | H8: 1109.41558 | I8: 187.63 | J8: 878.86198 | K8: 179.295 | L8: 808.30258
B9: Chana | C9: 10985.99 | D9: 47542.73399 | E9: 6609.8 | F9: 31567.25256 | G9: 546.77 | H9: 2431.5178 | I9: 712 | J9: 3719.73588 | K9: 616.24 | L9: 2876.00046
B10: Cotton seed oil cake | C10: 16806.92 | D10: 39603.76346 | E10: 7023.53 | F10: 13850.80712 | G10: 1452.29 | H10: 3044.5039 | I10: 757.18 | J10: 1519.05033 | K10: 1082.31 | L10: 2213.46118
B11: Coriander | C11: 2035.75 | D11: 13715.2728 | E11: 269.11 | F11: 1682.64317 | G11: 98.32 | H11: 657.8702 | I11: 23.105 | J11: 151.60452 | K11: 21.225 | L11: 128.51684
B12: Guar seed | C12: 15063.85 | D12: 67368.65559 | E12: 5043.59 | F12: 19816.72527 | G12: 1097.39 | H12: 4507.52642 | I12: 585.97 | J12: 2430.27903 | K12: 574.32 | L12: 2253.57186
B13: Guargum | C13: 5943.43 | D13: 38586.70631 | E13: 2980.76 | F13: 17974.98853 | G13: 421.13 | H13: 3152.378415 | I13: 317.975 | J13: 2003.080415 | K13: 330.5 | L13: 1980.27677
B14: Gur | C14: Na | D14: Na | E14: 3.83 | F14: 10.567925 | G14: Na | H14: Na | I14: Na | J14: Na | K14: 3.83 | L14: 10.567925
B15: Jeera | C15: 607.677 | D15: 10064.35006 | E15: 160.536 | F15: 2231.34759 | G15: 32.829 | H15: 526.214835 | I15: 19.671 | J15: 280.47297 | K15: 22.05 | L15: 296.761395
B16: Kapas | C16: 1096.299 | D16: 6893.07939 | E16: 486.782 | F16: 2706.9776 | G16: 123.772 | H16: 683.65941 | I16: 114.304 | J16: 669.04062 | K16: 131.24 | L16: 780.06877
B17: Maize | C17: 68.64 | D17: 135.77199 | E17: 17.44 | F17: 22.31823 | G17: 0.28 | H17: 0.56849 | I17: 0.01 | J17: 0.01385 | K17: 0.06 | L17: 0.07301
B18: Moong | C18: 15.335 | D18: 95.276885 | E18: 0.02 | F18: 0.1413 | G18: 0.07 | H18: 0.482165 | I18: 0 | J18: 0 | K18: 0 | L18: 0
B19: Paddy Basmati Rice | C19: 0.96 | D19: 3.7552 | E19: Na | F19: Na | G19: Na | H19: Na | I19: Na | J19: Na | K19: Na | L19: Na
B20: RM seed | C20: 6650.54 | D20: 26874.5431 | E20: 5089.88 | F20: 26805.06244 | G20: 418.82 | H20: 1896.35981 | I20: 664.36 | J20: 4065.85748 | K20: 669.32 | L20: 3759.53697
B21: Soy bean | C21: 15880.07 | D21: 61991.5714 | E21: 8117.93 | F21: 33425.23552 | G21: 1916.395 | H21: 8256.19846 | I21: 1500.2 | J21: 6572.18527 | K21: 1687.16 | L21: 7435.55366
B22: Refined Soy Oil | C22: 7463.04 | D22: 60031.72828 | E22: 5578.925 | F22: 52147.20614 | G22: 1067.265 | H22: 9465.79696 | I22: 844.62 | J22: 8721.716785 | K22: 1045.09 | L22: 11471.76502
B23: Turmeric | C23: 1297.855 | D23: 8443.75549 | E23: 408.2 | F23: 2350.87286 | G23: 84.875 | H23: 517.54864 | I23: 45.585 | J23: 262.39424 | K23: 40.02 | L23: 229.24035
B24: Wheat | C24: 181.68 | D24: 362.16702 | E24: 45.595 | F24: 262.41224 | G24: 0 | H24: 0 | I24: 0 | J24: 0 | K24: 0 | L24: 0
B25: Sesameseed | C25: Na | D25: Na | E25: 0.195 | F25: 1.7292 | G25: 0 | H25: 0 | I25: 0 | J25: 0 | K25: 0 | L25: 0
B26: Total for A | C26: =SUM(C6:C25) -> 95258.746 | D26: =SUM(D5:D25) -> 441967.0993 | E26: =SUM(E6:E25) -> 43347.368 | F26: =SUM(F5:F25) -> 211332.8348 | G26: =SUM(G6:G25) -> 7526.521 | H26: =SUM(H5:H25) -> 36253.41146 | I26: =SUM(I6:I25) -> 5773.62 | J26: =SUM(J5:J25) -> 31291.24723 | K26: =SUM(K6:K25) -> 6403.63 | L26: =SUM(L5:L25) -> 34253.59051
A27: B | B27: Options
B28: Chana | C28: 0.29 | D28: 1.27 | E28: 1.34 | F28: 7.18 | G28: 0 | H28: 0 | I28: 0.16 | J28: 0.85 | K28: 1 | L28: 4.9
B29: Guargum | C29: 1.715 | D29: 11.71 | E29: 0.91 | F29: 5.97006 | G29: Na | H29: Na | I29: 0 | J29: 0 | K29: 0 | L29: 0
B30: Guarseed | C30: 6.625 | D30: 29.17 | E30: 0.57 | F30: 2.507325 | G30: 0.35 | H30: 1.56 | I30: 0.1 | J30: 0.43 | K30: 0 | L30: 0
B31: Soybean | C31: Na | D31: Na | E31: 0.02 | F31: 0.09 | G31: Na | H31: Na | I31: 0 | J31: 0 | K31: 0 | L31: 0
B32: Maize | C32: Na | D32: Na | E32: 0.6 | F32: 0.89 | G32: Na | H32: Na | I32: Na | J32: Na | K32: 0.6 | L32: 0.89
B33: RM Seed | C33: Na | D33: Na | E33: 2.47 | F33: 13.09 | G33: Na | H33: Na | I33: 1.02 | J33: 5.37 | K33: 1.43 | L33: 7.62
B34: Total for B | C34: =SUM(C28:C33) -> 8.63 | D34: 42.15 | E34: 5.91 | F34: 29.727385 | G34: 0.35 | H34: 1.56 | I34: 1.28 | J34: 6.65 | K34: 3.03 | L34: 13.41
A35: $ indicates as on Dec. 31, 2020
A36: Note: AGRIDEX volume are in '000 lots and is not included for computing the total volume in "000 tonnes" .
A37: Source: NCDEX

Sheet 73
A1: Table 73: Commodity-wise turnover and trading volume at ICEX, BSE and NSE
A2: Sr.No | B2: Name of the Commodity | C2: 2019-20 | E2: 2020-21$ | G2: 2019-12-01 | I2: 2020-11-01 | K2: 2020-12-01
C3: Volume ('000 tonnes) | D3: Value (₹ crore) | E3: Volume ('000 tonnes) | F3: Value (₹ crore) | G3: Volume ('000 tonnes) | H3: Value (₹ crore) | I3: Volume ('000 tonnes) | J3: Value (₹ crore) | K3: Volume ('000 tonnes) | L3: Value (₹ crore)
A4: 1 | B4: ICEX Futures | G4: ICEX
A5: A | B5: Gems & Stones
B6: Diamond 1 CT | C6: 778271.69 | D6: 27629.26524 | E6: 14575.9 | F6: 554.056107 | G6: 66453.56 | H6: 2368.596505 | I6: 0.8 | J6: 0.026107 | K6: 0 | L6: 0
B7: Diamond .5 CT | C7: 5676.056 | D7: 90.72140993 | E7: 0.19 | F7: 0.003195 | G7: 0.03 | H7: 0.000468 | I7: 0.1 | J7: 0.001718 | K7: 0 | L7: 0
B8: Diamond .3 CT | C8: 4.29 | D8: 0.04288 | E8: Na | F8: Na | G8: 0.32 | H8: 0.00288 | I8: Na | J8: Na | K8: Na | L8: Na
B9: Total for IA | D9: =SUM(D6:D8) -> 27720.02953 | F9: =SUM(F6:F8) -> 554.059302 | H9: =SUM(H6:H8) -> 2368.599853 | J9: =SUM(J6:J8) -> 0.027825 | L9: =SUM(L6:L8) -> 0
A10: B | B10: Metal other than gems & stones
B11: Steel Long | C11: 2450.71 | D11: 7437.73059 | E11: 251.664 | F11: 749.4 | G11: 227.12 | H11: 673.98815 | I11: 0 | J11: 0 | K11: 0.004 | L11: 1.8845
B12: Total for IB | C12: =SUM(C11) -> 2450.71 | D12: =SUM(D11) -> 7437.73059 | E12: =SUM(E11) -> 251.664 | F12: 749.4 | G12: 227.12 | H12: 673.98815 | I12: =SUM(I11) -> 0 | J12: =SUM(J11) -> 0 | K12: 0.004 | L12: 1.8845
A13: C | B13: Agricultural Commodities
B14: Isabgulseed | C14: 32.91 | D14: 319.81 | E14: Na | F14: Na | G14: 0 | H14: 0 | I14: Na | J14: Na | K14: Na | L14: Na
B15: Pepper Mini | C15: 27.004 | D15: 941.64446 | E15: Na | F15: Na | G15: 0.004 | H15: 0.13446 | I15: Na | J15: Na | K15: Na | L15: Na
B16: Rubber | C16: 146.981 | D16: 2034.212919 | E16: 10.4276 | F16: 123.48065 | G16: 3.508 | H16: 47.297158 | I16: 0 | J16: 0 | K16: 0.056 | L16: 0.890652
B17: Paddy Basmati | C17: 614.86 | D17: 2057.88776 | E17: 54.44 | F17: 185.04286 | G17: 73.84 | H17: 242.1951 | I17: Na | J17: Na | K17: Na | L17: Na
B18: Total for IC | C18: =SUM(C14:C17) -> 821.755 | D18: =SUM(D14:D17) -> 5353.555139 | E18: =SUM(E14:E17) -> 64.8676 | F18: 308.52351 | G18: 77.352 | H18: 289.626718 | I18: 0 | J18: 0 | K18: =SUM(K12,K14:K17) -> 0.06 | L18: 0.890652
B19: Total - ICEX Futures (1A+1B+1C) | C19: =SUM(C12,C18) -> 3272.465 | D19: =SUM(D9,D12,D18) -> 40511.31526 | E19: =SUM(E12,E18) -> 316.5316 | F19: =SUM(F9,F12,F18) -> 1611.982812 | G19: =SUM(G12,G18) -> 304.472 | H19: =SUM(H9,H12,H18) -> 3332.214721 | I19: =SUM(I12,I18) -> 0 | J19: =SUM(J9,J12,J18) -> 0.027825 | K19: =SUM(K12,K18) -> 0.064 | L19: =SUM(L9,L12,L18) -> 2.775152
B20: NSE
A21: 2 | B21: NSE Futures
A22: A | B22: Bullion
B23: Gold | C23: 0.010151 | D23: 3847.80826 | E23: 5e-06 | F23: 2.53859 | G23: 9.5e-05 | H23: 35.91934 | I23: 0 | J23: 0 | K23: 0 | L23: 0
B24: Gold Mini | C24: 0.0055579 | D24: 1903.462408 | E24: 0.0012231 | F24: 591.486684 | G24: 0.0001537 | H24: 58.867609 | I24: 3.71e-05 | J24: 18.669679 | K24: 3.06e-05 | L24: 15.143264
B25: Silver | C25: 0.00594 | D25: 22.331526 | E25: 0 | F25: 0 | G25: 0 | H25: 0 | I25: 0 | J25: 0 | K25: 0 | L25: 0
B26: Total for 2A | C26: =SUM(C23:C25) -> 0.0216489 | D26: =SUM(D23:D25) -> 5773.602194 | E26: =SUM(E23:E25) -> 0.0012281 | F26: 594.025274 | G26: =SUM(G23:G25) -> 0.0002487 | H26: 94.786949 | I26: 3.71e-05 | J26: 18.669679 | K26: 3.06e-05 | L26: 15.143264
A27: B | B27: Energy
B28: BR Crude | C28: 0.0008211459754 | D28: 256.7567 | E28: 0 | F28: 0 | G28: 1.336971351e-05 | H28: 4.57153 | I28: 0 | J28: 0 | K28: 0 | L28: 0
B29: BR Crude Mini | C29: 0.01004188267 | D29: 331.940381 | E29: 0 | F29: 0 | G29: 0.0005747612551 | H29: 19.166851 | I29: 0 | J29: 0 | K29: 0 | L29: 0
B30: Total for 2B | C30: =SUM(C28:C29) -> 0.01086302865 | D30: =SUM(D28:D29) -> 588.697081 | E30: 0 | F30: 0 | G30: 0.0005881309686 | H30: 23.738381 | I30: 0 | J30: 0 | K30: 0 | L30: 0
A31: C | B31: Agricultural Commodities
B32: Crude Degummed Soybean Oil | C32: Na | D32: Na | E32: 134.62 | F32: 1433.92384 | G32: 0 | H32: 0 | I32: 0 | J32: 0 | K32: 134.62 | L32: 1433.92384
B33: Total for 2C | C33: Na | D33: Na
B34: Total -NSE Futures (2A+2B+ 2C) | C34: =SUM(C26,C30,C33) -> 0.03251192865 | D34: =SUM(D26,D30,D33) -> 6362.299275 | E34: =SUM(E26,E30,E32) -> 134.6212281 | F34: 2027.949114 | G34: 0.0008368309686 | H34: 118.52533 | I34: 3.71e-05 | J34: 18.669679 | K34: 134.6200306 | L34: 1449.067104
B35: NSE Options
A36: D | B36: Bullion
B37: Gold Mini | C37: Na | D37: Na | E37: 0.0356543 | F37: 18131.68806 | G37: 0 | H37: 0 | I37: 0.0050917 | J37: 2633.312541 | K37: 0.0030536 | L37: 1537.81812
B38: Total - NSE Options( 2D) | C38: Na | D38: Na | E38: =SUM(E37) -> 0.0356543 | F38: 18131.68806 | G38: 0 | H38: 0 | I38: 0.0050917 | J38: 2633.312541 | K38: =SUM(K37) -> 0.0030536 | L38: =SUM(L37) -> 1537.81812
A40: 3 | B40: BSE Futures
A41: A | B41: Bullion
B42: Gold | C42: 0.020115 | D42: 6765.68687 | E42: 3e-05 | F42: 12.07 | G42: 0.000131 | H42: 49.91664 | I42: 0 | J42: 0 | K42: 0 | L42: 0
B43: Silver | C43: 0.47571 | D43: 1887.031472 | E43: 0.0006 | F43: 2.91 | G43: 0 | H43: 0 | I43: 0 | J43: 0 | K43: 0 | L43: 0
B44: Silver KG | C44: 1e-05 | D44: 0.0375 | E44: 0 | F44: 0 | G44: 0 | H44: 0 | I44: 0 | J44: 0 | K44: 0 | L44: 0
B45: Silver M | C45: 1e-05 | D45: 0.03749 | E45: 0 | F45: 0 | G45: 0 | H45: 0 | I45: 0 | J45: 0 | K45: 0 | L45: 0
B46: Gold M | C46: 0.0005694 | D46: 183.77492 | E46: 8.17e-05 | F46: 40.776041 | G46: 0 | H46: 0 | I46: 2.1e-05 | J46: 10.52684 | K46: 2.3e-05 | L46: 11.41952
B47: Total for 3A | C47: =SUM(C42:C46) -> 0.4964144 | D47: =SUM(D42:D46) -> 8836.568252 | E47: =SUM(E42:E46) -> 0.0007117 | F47: 55.756041 | G47: =SUM(G42:G46) -> 0.000131 | H47: 49.91664 | I47: 2.1e-05 | J47: 10.52684 | K47: 2.3e-05 | L47: 11.41952
A48: B | B48: Metals other than Bullion
B49: Copper | C49: 0.874 | D49: 39.26844 | E49: 0 | F49: 0 | G49: 0 | H49: 0 | I49: 0 | J49: 0 | K49: 0 | L49: 0
B50: Total for 3B | C50: =SUM(C49) -> 0.874 | D50: =SUM(D49) -> 39.26844 | E50: =SUM(E49) -> 0 | F50: 0 | G50: 0 | H50: 0 | I50: 0 | J50: 0 | K50: 0 | L50: 0
A51: C | B51: Agricultural Commodities
B52: Guar Gum | C52: 0.38 | D52: 3.35386 | E52: 0 | F52: 0 | G52: 0 | H52: 0 | I52: 0 | J52: 0 | K52: 0 | L52: 0
B53: Guar Seed | C53: 5273.01 | D53: 22019.75927 | E53: 467.97 | F53: 1652.09934 | G53: 527.59 | H53: 2130.313495 | I53: 0 | J53: 0 | K53: 0 | L53: 0
B54: Cotton | C54: 431.8935 | D54: 5500.83155 | E54: 0 | F54: 0 | G54: 0 | H54: 0 | I54: 0 | J54: 0 | K54: 0 | L54: 0
B55: Turmeric | C55: 295.4 | D55: 1858.58792 | E55: 199.9 | F55: 1130.83219 | G55: 5.31 | H55: 32.16309 | I55: 17.38 | J55: 99.50894 | K55: 9.47 | L55: 52.70447
B56: Cotton BSE | C56: 423.3034 | D56: 4731.14648 | E56: 0 | F56: 0 | G56: 53.346 | H56: 578.35396 | I56: 0 | J56: 0 | K56: 0 | L56: 0
B57: Soybean | C57: 150.77 | D57: 622.89709 | E57: 0 | F57: 0 | G57: 95.5 | H57: 405.15158 | I57: 0 | J57: 0 | K57: 0 | L57: 0
B58: Castorseed | C58: 84.3 | D58: 359.40201 | E58: 0 | F58: 0 | G58: 59.69 | H58: 253.28896 | I58: 0 | J58: 0 | K58: 0 | L58: 0
B59: Chana | C59: 83.13 | D59: 369.69528 | E59: 0 | F59: 0 | G59: 53.49 | H59: 237.38331 | I59: 0 | J59: 0 | K59: 0 | L59: 0
B60: Cotton29 | C60: 83.3255 | D60: 850.271075 | E60: 150.47975 | F60: 1423.749175 | G60: 0 | H60: 0 | I60: 0 | J60: 0 | K60: 0 | L60: 0
B61: BSE Almond | C61: Na | D61: Na | E61: 12.199 | F61: 379.00856 | G61: 0 | H61: 0 | I61: 2.293 | J61: 66.35064 | K61: 1.85 | L61: 57.30404
B62: Total for 3C | C62: =SUM(C52:C61) -> 6825.5124 | D62: =SUM(D52:D61) -> 36315.94453 | E62: =SUM(E52:E61) -> 830.54875 | F62: =SUM(F52:F61) -> 4585.689265 | G62: =SUM(G52:G61) -> 794.926 | H62: =SUM(H52:H61) -> 3636.654395 | I62: 19.673 | J62: 165.85958 | K62: 11.32 | L62: 110.00851
A63: D | B63: Energy
B64: OM Crude | C64: 422.851296 | D64: 1246.94774 | E64: 0.354706685 | F64: 0.57201 | G64: 0 | H64: 0 | I64: 0 | J64: 0 | K64: 0 | L64: 0
A65: C. | B65: NSE
A66: 1 | B66: Gold | G66: Na | H66: Na | I66: Na | J66: Na
A67: 2 | B67: Silver | G67: Na | H67: Na | I67: Na | J67: Na
B68: Total (NSE) | F68: 696.19 | G68: Na | H68: Na | I68: Na | J68: Na | L68: 696.19
B69: Total for 3D | C69: =SUM(C64) -> 422.851296 | D69: =SUM(D64) -> 1246.94774 | E69: =SUM(E64) -> 0.354706685 | F69: 0.57201 | G69: 0 | H69: 0 | I69: 0 | J69: 0 | K69: 0 | L69: 0
B70: Total- BSE Futures (3A+3B+3C+3D) | C70: =SUM(C47,C50,C62,C69) -> 7249.73411 | D70: =SUM(D47,D50,D62,D69) -> 46438.72897 | E70: =SUM(E42:E46,E49,E52:E61,E64) -> 830.9041684 | F70: =SUM(F42:F46,F49,F52:F61,F64) -> 4642.017316 | G70: =SUM(G47,G50,G62,G69) -> 794.926131 | H70: 3686.571035 | I70: 19.673021 | J70: 176.38642 | K70: 11.320023 | L70: =SUM(L47,L50,L62,L64) -> 121.42803
B71: BSE Options
A72: E | B72: Bullion
B73: Gold | C73: Na | D73: Na | E73: 0.094219 | F73: 48172.62985 | G73: 0 | H73: 0 | I73: 0.014066 | J73: 7137.24562 | K73: 0.007102 | L73: 3528.57883
B74: Silver | C74: Na | D74: Na | E74: 0.38202 | F74: 2435.398757 | G74: 0 | H74: 0 | I74: 0.06768 | J74: 423.9934695 | K74: 0.07521 | L74: 487.6486215
B75: Silver KG | C75: Na | D75: Na | E75: 0.097744 | F75: 581.924358 | G75: 0 | H75: 0 | I75: 0.011562 | J75: 73.7709133 | K75: 0.013446 | L75: 88.5799638
B76: Gold M | C76: Na | D76: Na | E76: 0.7087381 | F76: 354764.7227 | G76: 0 | H76: 0 | I76: 0.0901069 | J76: 46319.19704 | K76: 0.1225673 | L76: 62696.23432
B77: Total - BSE Options (3E) | C77: Na | D77: Na | E77: =SUM(E73:E76) -> 1.2827211 | F77: 405954.6756 | G77: 0 | H77: 0 | I77: 0.1834149 | J77: 53954.20704 | K77: 0.2183253 | L77: 66801.04174
A78: Note :
A79: 1 Volume for Diamond 1 CT, 0.5CT & 0.3CT are in cents and hence not included in volume ("000" tonnes)
A80: 2 Conversion factors: Brent Crude Oil (1 Tonne = 7.33 Barrels)
A81: $ indicates as on Dec. 31, 2020
A82: Source : ICEX, BSE and NSE

Sheet 74
A1: Table 74: Macro Economic Indicators
A2: I. GDP at Current prices for 2020-21 (₹ crore)# | F2: 19481975
A3: II. Gross Saving as a per cent of Gross national Disposable Income at current market prices in 2018-19! | F3: 29.7
A4: III. Gross Fixed Capital Formation as a per cent of GDP at current market prices in 2020-21# | F4: 24.2
A5: IV. Monetary and Banking Indicators | B5: 2020-08-01 | C5: 2020-09-01 | D5: 2020-10-01 | E5: 2020-11-01 | F5: 2020-12-01
A6: Cash Reserve Ratio (per cent) | B6: 3 | C6: 3 | D6: 3 | E6: 3 | F6: 3
A7: Repo Rate (per cent) | B7: 4 | C7: 4 | D7: 4 | E7: 4 | F7: 4
A8: Money Supply (M3) (₹ billion) | B8: 176478.74 | C8: 177410.65 | D8: 178048.85 | E8: 179382 | F8: 180591
A9: Aggregate Deposit (₹ billion) | B9: 141767.65 | C9: 142636.74 | D9: 142926.24 | E9: 143707 | F9: 144826
A10: Bank Credit (₹ billion) | B10: 102117.3 | C10: 102718.57 | D10: 103388.53 | E10: 104345 | F10: 105495
A11: V. Interest Rate
A12: Call Money Rate (Weighted Average) | B12: 3.43 | C12: 3.41 | D12: 3.41 | E12: 3.1 | F12: 5.11
A13: 91-Day-Treasury Bill (Primary Yield) | B13: 3.24 | C13: 3.36 | D13: 3.36 | E13: 2.93 | F13: 5.03
A14: Base rate (per cent) | B14: 7.40/9.00 | C14: 7.40/9.00 | D14: 7.40/8.80 | E14: 7.40/8.80 | F14: 8.45/9.40
A15: Term Deposit Rate > 1 year (Maximum) | B15: 5.00/5.50 | C15: 4.90/5.50 | D15: 4.90/5.50 | E15: 4.90/5.50 | F15: 6.2/6.4
A16: VI. Capital Market Indicators (₹crore)
A17: Equity Cash Turnover (BSE+NSE) | B17: 1375636.495 | C17: 1293354.004 | D17: 1156750.075 | E17: 1407947.89 | F17: 1473966.8
A18: Market Cap-BSE | B18: 15376302.71 | C18: 15524267.37 | D18: 15792249.91 | E18: 17414859.59 | F18: 18803518
A19: Market Cap-NSE | B19: 15234206.7 | C19: 15304722.35 | D19: 15587902.94 | E19: 17271314 | F19: 18646769
A20: Net FPI Investment in Equity | B20: 47080 | C20: -7783 | D20: 19541 | E20: 60357.67 | F20: 62016
A21: VII. Exchange Rate and Reserves
A22: Forex Reserves (USD million) | B22: 542013 | C22: 545638 | D22: 568494 | E22: 574821 | F22: 585324
A23: Re/ Dollar | B23: 73.35 | C23: 73.73 | D23: 73.97 | E23: 73.8 | F23: 73.58
A24: Re/Euro | B24: 87.07 | C24: 86.04 | D24: 86.97 | E24: 88.02 | F24: 89.81
A25: Forward Premia of USD 6-month | B25: 4.01 | C25: 3.91 | D25: 3.89 | E25: 4.23 | F25: 3.84
A26: VIII. Public Borrowing and Inflation Rate (Y-o-Y)
A27: Govt. Market Borrowing-Gross (₹ billion) | B27: 6,460^ | C27: 7660^ | D27: 8760^ | E27: 9270 | F27: 10270
A28: Wholesale Price Index (2011-12=100) Rate (in per cent) | B28: 0.41 | C28: 1.32 | D28: 1.48 | E28: 1.6 | F28: NA
A29: Consumer Price Index (2012 =100) Rate (in per cent) | B29: 6.69 | C29: 7.27 | D29: 7.61 | E29: 6.9 | F29: 4.6
A30: IX. Index of Industrial Production (Base year 2011-12 = 100)
A31: General | B31: 116.1 | C31: 123.2 | D31: 129.2 | E31: 126.3 | F31: NA
A32: Mining | B32: 83 | C32: 87.6 | D32: 98.2 | E32: 104.5 | F32: NA
A33: Manufacturing | B33: 117.4 | C33: 125.3 | D33: 131.5 | E33: 128.4 | F33: NA
A34: Electricity | B34: 162.7 | C34: 166.4 | D34: 162.2 | E34: 144.8 | F34: NA
A35: X. External Sector Indicators (USD million)
A36: Exports | B36: 22700 | C36: 27580 | D36: 24890 | E36: 23520 | F36: 26890
A37: Imports | B37: 29470 | C37: 30310 | D37: 33610 | E37: 33390 | F37: 42600
A38: Trade Balance | B38: -6770 | C38: -2730 | D38: -8720 | E38: -9870 | F38: -15710
A39: Notes:
A40: 1. # First Advance Estimates as per MOSPI press release dated 07.01.2021
A41: 2. ^ cumulative figure value of the respective month for 2020-21
A42: 3. Data for CPI, WPI, IIP and External sector have been compiled based on available information.
A43: Source : RBI, FBIL, MOSPI, Ministry of Commerce & Industry, Office of the Economic Adviser.
